Organisation Code,Organisation Label,Effective Date,Organisational Unit,Service Division Label,Category Internal Name,Purpose,Detailed Expenditure Code,Payment Date,Transaction Number,Irrecoverable VAT Amount,Amount,Capital Or Revenue,Beneficiary Name,Procurement Card
Http://opendatacommunities.org/id/metropolitan-district-council/leeds,Leeds City Council,30/09/2020,Resources and Housing,Leeds Building Services,Supplies and Services,Operational Materials,205,10/09/2020,2009-00001,0.00,21.50,R,A & A ELECTRICAL DISTRIBUTORS LTD,No
Http://opendatacommunities.org/id/metropolitan-district-council/leeds,Leeds City Council,30/09/2020,Resources and Housing,Leeds Building Services,Supplies and Services,Operational Materials,205,10/09/2020,2009-00002,0.00,79.00,R,A & A ELECTRICAL DISTRIBUTORS LTD,No
Http://opendatacommunities.org/id/metropolitan-district-council/leeds,Leeds City Council,30/09/2020,Adults and Health,Services For Older People Under 65 P/Dis,Third Party Payments,Sheltered Accommodation,569,16/09/2020,2009-00003,0.00,5400.00,R,A & V TRANSITIONAL HOMES,No
Http://opendatacommunities.org/id/metropolitan-district-council/leeds,Leeds City Council,30/09/2020,Resources and Housing,Leeds Building Services,Supplies and Services,Operational Materials,205,03/09/2020,2009-00004,0.00,37.08,R,A ANDREWS & SONS (MARBLES & TILES),No
Http://opendatacommunities.org/id/metropolitan-district-council/leeds,Leeds City Council,30/09/2020,Resources and Housing,Leeds Building Services,Supplies and Services,Operational Materials,205,03/09/2020,2009-00005,0.00,20.12,R,A ANDREWS & SONS (MARBLES & TILES),No
Http://opendatacommunities.org/id/metropolitan-district-council/leeds,Leeds City Council,30/09/2020,Resources and Housing,Leeds Building Services,Supplies and Services,Operational Materials,205,03/09/2020,2009-00006,0.00,27.21,R,A ANDREWS & SONS (MARBLES & TILES),No
Http://opendatacommunities.org/id/metropolitan-district-council/leeds,Leeds City Council,30/09/2020,Resources and Housing,Leeds Building Services,Supplies and Services,Operational Materials,205,03/09/2020,2009-00007,0.00,224.28,R,A ANDREWS & SONS (MARBLES & TILES),No
Http://opendatacommunities.org/id/metropolitan-district-council/leeds,Leeds City Council,30/09/2020,Resources and Housing,Leeds Building Services,Supplies and Services,Operational Materials,205,17/09/2020,2009-00008,0.00,21.26,R,A ANDREWS & SONS (MARBLES & TILES),No
Http://opendatacommunities.org/id/metropolitan-district-council/leeds,Leeds City Council,30/09/2020,Children and Families,Social Care,Third Party Payments,Services Rendered By Other Organisations,511,04/09/2020,2009-00009,0.00,173.01,R,REDACTED PERSONAL DATA,No
Http://opendatacommunities.org/id/metropolitan-district-council/leeds,Leeds City Council,30/09/2020,Resources and Housing,HRA Housing Leeds,Capital,CONSTRUCTION,3,04/09/2020,2009-00010,0.00,66091.57,C,A Connolly Limited,No
Http://opendatacommunities.org/id/metropolitan-district-council/leeds,Leeds City Council,30/09/2020,Resources and Housing,HRA Housing Leeds,Capital,CONSTRUCTION,3,15/09/2020,2009-00011,0.00,247790.02,C,A Connolly Limited,No
Http://opendatacommunities.org/id/metropolitan-district-council/leeds,Leeds City Council,30/09/2020,Resources and Housing,Leeds Building Services,Supplies and Services,Other Hired And Contracted Services,265,04/09/2020,2009-00012,0.00,2300.00,R,A Coole Electrical Ltd,No
Http://opendatacommunities.org/id/metropolitan-district-council/leeds,Leeds City Council,30/09/2020,Resources and Housing,Leeds Building Services,Supplies and Services,Other Hired And Contracted Services,265,04/09/2020,2009-00013,0.00,2413.00,R,A Coole Electrical Ltd,No
Http://opendatacommunities.org/id/metropolitan-district-council/leeds,Leeds City Council,30/09/2020,Resources and Housing,Leeds Building Services,Supplies and Services,Other Hired And Contracted Services,265,04/09/2020,2009-00014,0.00,2503.00,R,A Coole Electrical Ltd,No
Http://opendatacommunities.org/id/metropolitan-district-council/leeds,Leeds City Council,30/09/2020,Resources and Housing,Leeds Building Services,Supplies and Services,Other Hired And Contracted Services,265,04/09/2020,2009-00015,0.00,2413.00,R,A Coole Electrical Ltd,No
Http://opendatacommunities.org/id/metropolitan-district-council/leeds,Leeds City Council,30/09/2020,Resources and Housing,Leeds Building Services,Supplies and Services,Other Hired And Contracted Services,265,10/09/2020,2009-00016,0.00,85.00,R,A Coole Electrical Ltd,No
Http://opendatacommunities.org/id/metropolitan-district-council/leeds,Leeds City Council,30/09/2020,Resources and Housing,Leeds Building Services,Supplies and Services,Other Hired And Contracted Services,265,18/09/2020,2009-00017,0.00,1970.00,R,A Coole Electrical Ltd,No
Http://opendatacommunities.org/id/metropolitan-district-council/leeds,Leeds City Council,30/09/2020,Resources and Housing,Leeds Building Services,Supplies and Services,Other Hired And Contracted Services,265,18/09/2020,2009-00018,0.00,1245.00,R,A Coole Electrical Ltd,No
Http://opendatacommunities.org/id/metropolitan-district-council/leeds,Leeds City Council,30/09/2020,Resources and Housing,Leeds Building Services,Supplies and Services,Other Hired And Contracted Services,265,18/09/2020,2009-00019,0.00,1355.00,R,A Coole Electrical Ltd,No
Http://opendatacommunities.org/id/metropolitan-district-council/leeds,Leeds City Council,30/09/2020,Resources and Housing,Leeds Building Services,Supplies and Services,Other Hired And Contracted Services,265,18/09/2020,2009-00020,0.00,945.00,R,A Coole Electrical Ltd,No
Http://opendatacommunities.org/id/metropolitan-district-council/leeds,Leeds City Council,30/09/2020,Resources and Housing,Leeds Building Services,Supplies and Services,Other Hired And Contracted Services,265,18/09/2020,2009-00021,0.00,1270.00,R,A Coole Electrical Ltd,No
Http://opendatacommunities.org/id/metropolitan-district-council/leeds,Leeds City Council,30/09/2020,Resources and Housing,Leeds Building Services,Supplies and Services,Other Hired And Contracted Services,265,18/09/2020,2009-00022,0.00,975.00,R,A Coole Electrical Ltd,No
Http://opendatacommunities.org/id/metropolitan-district-council/leeds,Leeds City Council,30/09/2020,Resources and Housing,Leeds Building Services,Supplies and Services,Other Hired And Contracted Services,265,18/09/2020,2009-00023,0.00,1035.00,R,A Coole Electrical Ltd,No
Http://opendatacommunities.org/id/metropolitan-district-council/leeds,Leeds City Council,30/09/2020,Resources and Housing,Leeds Building Services,Supplies and Services,Other Hired And Contracted Services,265,18/09/2020,2009-00024,0.00,1245.00,R,A Coole Electrical Ltd,No
Http://opendatacommunities.org/id/metropolitan-district-council/leeds,Leeds City Council,30/09/2020,Resources and Housing,Leeds Building Services,Supplies and Services,Other Hired And Contracted Services,265,18/09/2020,2009-00025,0.00,2325.00,R,A Coole Electrical Ltd,No
Http://opendatacommunities.org/id/metropolitan-district-council/leeds,Leeds City Council,30/09/2020,Resources and Housing,Leeds Building Services,Supplies and Services,Other Hired And Contracted Services,265,18/09/2020,2009-00026,0.00,2410.00,R,A Coole Electrical Ltd,No
Http://opendatacommunities.org/id/metropolitan-district-council/leeds,Leeds City Council,30/09/2020,Resources and Housing,Leeds Building Services,Supplies and Services,Other Hired And Contracted Services,265,18/09/2020,2009-00027,0.00,2388.00,R,A Coole Electrical Ltd,No
Http://opendatacommunities.org/id/metropolitan-district-council/leeds,Leeds City Council,30/09/2020,Resources and Housing,Leeds Building Services,Supplies and Services,Other Hired And Contracted Services,265,18/09/2020,2009-00028,0.00,85.00,R,A Coole Electrical Ltd,No
Http://opendatacommunities.org/id/metropolitan-district-council/leeds,Leeds City Council,30/09/2020,Resources and Housing,Leeds Building Services,Supplies and Services,Other Hired And Contracted Services,265,25/09/2020,2009-00029,0.00,85.00,R,A Coole Electrical Ltd,No
Http://opendatacommunities.org/id/metropolitan-district-council/leeds,Leeds City Council,30/09/2020,City Development,Libraries  Arts & Heritage,Supplies and Services,Non-Recurring Grants,227,10/09/2020,2009-00030,0.00,109.00,R,A CRAVEN-GRIFFITHS,No
Http://opendatacommunities.org/id/metropolitan-district-council/leeds,Leeds City Council,30/09/2020,Communities and Environment,Customer Access,Supplies and Services,Bought In Professional Services,277,18/09/2020,2009-00031,0.00,18.00,R,A D Dumitru,No
Http://opendatacommunities.org/id/metropolitan-district-council/leeds,Leeds City Council,30/09/2020,Communities and Environment,Customer Access,Supplies and Services,Bought In Professional Services,277,30/09/2020,2009-00032,0.00,18.00,R,A D Dumitru,No
Http://opendatacommunities.org/id/metropolitan-district-council/leeds,Leeds City Council,30/09/2020,Children and Families,Social Care,Third Party Payments,Services Rendered By Voluntary Sector,505,02/09/2020,2009-00033,0.00,1029.60,R,REDACTED PERSONAL DATA,No
Http://opendatacommunities.org/id/metropolitan-district-council/leeds,Leeds City Council,30/09/2020,Children and Families,Social Care,Third Party Payments,Services Rendered By Voluntary Sector,505,04/09/2020,2009-00034,0.00,5252.72,R,REDACTED PERSONAL DATA,No
Http://opendatacommunities.org/id/metropolitan-district-council/leeds,Leeds City Council,30/09/2020,Children and Families,Social Care,Third Party Payments,Services Rendered By Other Organisations,511,02/09/2020,2009-00035,0.00,514.80,R,REDACTED PERSONAL DATA,No
Http://opendatacommunities.org/id/metropolitan-district-council/leeds,Leeds City Council,30/09/2020,Children and Families,Social Care,Third Party Payments,Services Rendered By Other Organisations,511,04/09/2020,2009-00036,0.00,473.04,R,REDACTED PERSONAL DATA,No
Http://opendatacommunities.org/id/metropolitan-district-council/leeds,Leeds City Council,30/09/2020,Resources and Housing,HRA Housing Leeds,Capital,OTHER COSTS,7,17/09/2020,2009-00037,0.00,100.00,C,REDACTED PERSONAL DATA,No
Http://opendatacommunities.org/id/metropolitan-district-council/leeds,Leeds City Council,30/09/2020,Children and Families,Social Care,Third Party Payments,Services Rendered By Other Organisations,511,04/09/2020,2009-00038,0.00,213.53,R,REDACTED PERSONAL DATA,No
Http://opendatacommunities.org/id/metropolitan-district-council/leeds,Leeds City Council,30/09/2020,Children and Families,Social Care,Third Party Payments,Services Rendered By Other Organisations,511,04/09/2020,2009-00039,0.00,624.15,R,REDACTED PERSONAL DATA,No
Http://opendatacommunities.org/id/metropolitan-district-council/leeds,Leeds City Council,30/09/2020,Children and Families,Social Care,Third Party Payments,Services Rendered By Other Organisations,511,02/09/2020,2009-00040,0.00,514.80,R,REDACTED PERSONAL DATA,No
Http://opendatacommunities.org/id/metropolitan-district-council/leeds,Leeds City Council,30/09/2020,Children and Families,Social Care,Third Party Payments,Services Rendered By Other Organisations,511,04/09/2020,2009-00041,0.00,213.53,R,REDACTED PERSONAL DATA,No
Http://opendatacommunities.org/id/metropolitan-district-council/leeds,Leeds City Council,30/09/2020,Adults and Health,Other Generic Services,Third Party Payments,Fees To Carers,563,16/09/2020,2009-00042,0.00,550.80,R,REDACTED PERSONAL DATA,No
Http://opendatacommunities.org/id/metropolitan-district-council/leeds,Leeds City Council,30/09/2020,Adults and Health,Other Generic Services,Third Party Payments,Fees To Carers,563,16/09/2020,2009-00043,0.00,63.00,R,REDACTED PERSONAL DATA,No
Http://opendatacommunities.org/id/metropolitan-district-council/leeds,Leeds City Council,30/09/2020,Resources and Housing,Leeds Building Services,Supplies and Services,Operational Materials,205,24/09/2020,2009-00044,0.00,125.65,R,A J H  Pump Supply & Repair Ltd,No
Http://opendatacommunities.org/id/metropolitan-district-council/leeds,Leeds City Council,30/09/2020,Resources and Housing,Leeds Building Services,Supplies and Services,Operational Materials,205,24/09/2020,2009-00045,0.00,1749.00,R,A J H  Pump Supply & Repair Ltd,No
Http://opendatacommunities.org/id/metropolitan-district-council/leeds,Leeds City Council,30/09/2020,Resources and Housing,Leeds Building Services,Supplies and Services,Operational Materials,205,24/09/2020,2009-00046,0.00,98.00,R,A J H  Pump Supply & Repair Ltd,No
Http://opendatacommunities.org/id/metropolitan-district-council/leeds,Leeds City Council,30/09/2020,Resources and Housing,Leeds Building Services,Supplies and Services,Operational Materials,205,24/09/2020,2009-00047,0.00,368.00,R,A J H  Pump Supply & Repair Ltd,No
Http://opendatacommunities.org/id/metropolitan-district-council/leeds,Leeds City Council,30/09/2020,Resources and Housing,Leeds Building Services,Supplies and Services,Operational Materials,205,24/09/2020,2009-00048,0.00,291.00,R,A J H  Pump Supply & Repair Ltd,No
Http://opendatacommunities.org/id/metropolitan-district-council/leeds,Leeds City Council,30/09/2020,Resources and Housing,Leeds Building Services,Supplies and Services,Operational Materials,205,24/09/2020,2009-00049,0.00,88.65,R,A J H  Pump Supply & Repair Ltd,No
Http://opendatacommunities.org/id/metropolitan-district-council/leeds,Leeds City Council,30/09/2020,Resources and Housing,Leeds Building Services,Supplies and Services,Operational Materials,205,24/09/2020,2009-00050,0.00,42.32,R,A J H  Pump Supply & Repair Ltd,No
Http://opendatacommunities.org/id/metropolitan-district-council/leeds,Leeds City Council,30/09/2020,Resources and Housing,Leeds Building Services,Supplies and Services,Operational Materials,205,24/09/2020,2009-00051,0.00,18.49,R,A J H  Pump Supply & Repair Ltd,No
Http://opendatacommunities.org/id/metropolitan-district-council/leeds,Leeds City Council,30/09/2020,Resources and Housing,Leeds Building Services,Supplies and Services,Operational Materials,205,24/09/2020,2009-00052,0.00,470.40,R,A J H  Pump Supply & Repair Ltd,No
Http://opendatacommunities.org/id/metropolitan-district-council/leeds,Leeds City Council,30/09/2020,Resources and Housing,Leeds Building Services,Supplies and Services,Operational Materials,205,24/09/2020,2009-00053,0.00,447.59,R,A J H  Pump Supply & Repair Ltd,No
Http://opendatacommunities.org/id/metropolitan-district-council/leeds,Leeds City Council,30/09/2020,Resources and Housing,Leeds Building Services,Supplies and Services,Operational Materials,205,24/09/2020,2009-00054,0.00,337.75,R,A J H  Pump Supply & Repair Ltd,No
Http://opendatacommunities.org/id/metropolitan-district-council/leeds,Leeds City Council,30/09/2020,Resources and Housing,Leeds Building Services,Supplies and Services,Operational Materials,205,24/09/2020,2009-00055,0.00,314.68,R,A J H  Pump Supply & Repair Ltd,No
Http://opendatacommunities.org/id/metropolitan-district-council/leeds,Leeds City Council,30/09/2020,Resources and Housing,Leeds Building Services,Supplies and Services,Operational Materials,205,24/09/2020,2009-00056,0.00,316.50,R,A J H  Pump Supply & Repair Ltd,No
Http://opendatacommunities.org/id/metropolitan-district-council/leeds,Leeds City Council,30/09/2020,Resources and Housing,Leeds Building Services,Supplies and Services,Operational Materials,205,24/09/2020,2009-00057,0.00,45.90,R,A J H  Pump Supply & Repair Ltd,No
Http://opendatacommunities.org/id/metropolitan-district-council/leeds,Leeds City Council,30/09/2020,Resources and Housing,Leeds Building Services,Supplies and Services,Operational Materials,205,24/09/2020,2009-00058,0.00,63.85,R,A J H  Pump Supply & Repair Ltd,No
Http://opendatacommunities.org/id/metropolitan-district-council/leeds,Leeds City Council,30/09/2020,Resources and Housing,Leeds Building Services,Supplies and Services,Operational Materials,205,24/09/2020,2009-00059,0.00,42.66,R,A J H  Pump Supply & Repair Ltd,No
Http://opendatacommunities.org/id/metropolitan-district-council/leeds,Leeds City Council,30/09/2020,Resources and Housing,Leeds Building Services,Supplies and Services,Operational Materials,205,24/09/2020,2009-00060,0.00,76.00,R,A J H  Pump Supply & Repair Ltd,No
Http://opendatacommunities.org/id/metropolitan-district-council/leeds,Leeds City Council,30/09/2020,Resources and Housing,Leeds Building Services,Supplies and Services,Operational Materials,205,24/09/2020,2009-00061,0.00,49.72,R,A J H  Pump Supply & Repair Ltd,No
Http://opendatacommunities.org/id/metropolitan-district-council/leeds,Leeds City Council,30/09/2020,Resources and Housing,Leeds Building Services,Supplies and Services,Operational Materials,205,24/09/2020,2009-00062,0.00,540.00,R,A J H  Pump Supply & Repair Ltd,No
Http://opendatacommunities.org/id/metropolitan-district-council/leeds,Leeds City Council,30/09/2020,Resources and Housing,Leeds Building Services,Supplies and Services,Operational Materials,205,24/09/2020,2009-00063,0.00,125.00,R,A J H  Pump Supply & Repair Ltd,No
Http://opendatacommunities.org/id/metropolitan-district-council/leeds,Leeds City Council,30/09/2020,Resources and Housing,Leeds Building Services,Supplies and Services,Operational Materials,205,24/09/2020,2009-00064,0.00,62.94,R,A J H  Pump Supply & Repair Ltd,No
Http://opendatacommunities.org/id/metropolitan-district-council/leeds,Leeds City Council,30/09/2020,Resources and Housing,Leeds Building Services,Supplies and Services,Operational Materials,205,24/09/2020,2009-00065,0.00,84.73,R,A J H  Pump Supply & Repair Ltd,No
Http://opendatacommunities.org/id/metropolitan-district-council/leeds,Leeds City Council,30/09/2020,Resources and Housing,Leeds Building Services,Supplies and Services,Operational Materials,205,24/09/2020,2009-00066,0.00,129.15,R,A J H  Pump Supply & Repair Ltd,No
Http://opendatacommunities.org/id/metropolitan-district-council/leeds,Leeds City Council,30/09/2020,Resources and Housing,Leeds Building Services,Supplies and Services,Operational Materials,205,24/09/2020,2009-00067,0.00,27.25,R,A J H  Pump Supply & Repair Ltd,No
Http://opendatacommunities.org/id/metropolitan-district-council/leeds,Leeds City Council,30/09/2020,Resources and Housing,Leeds Building Services,Supplies and Services,Operational Materials,205,24/09/2020,2009-00068,0.00,298.28,R,A J H  Pump Supply & Repair Ltd,No
Http://opendatacommunities.org/id/metropolitan-district-council/leeds,Leeds City Council,30/09/2020,Resources and Housing,Leeds Building Services,Supplies and Services,Operational Materials,205,24/09/2020,2009-00069,0.00,103.85,R,A J H  Pump Supply & Repair Ltd,No
Http://opendatacommunities.org/id/metropolitan-district-council/leeds,Leeds City Council,30/09/2020,Resources and Housing,Leeds Building Services,Supplies and Services,Operational Materials,205,24/09/2020,2009-00070,0.00,1290.00,R,A J H  Pump Supply & Repair Ltd,No
Http://opendatacommunities.org/id/metropolitan-district-council/leeds,Leeds City Council,30/09/2020,City Development,Libraries  Arts & Heritage,Supplies and Services,ART GALLERIES TOTAL STORES,3,11/09/2020,2009-00071,0.00,162.00,R,A J PROMOTIONS,No
Http://opendatacommunities.org/id/metropolitan-district-council/leeds,Leeds City Council,30/09/2020,City Development,Libraries  Arts & Heritage,Supplies and Services,ART GALLERIES TOTAL STORES,3,21/09/2020,2009-00072,0.00,212.50,R,A J PROMOTIONS,No
Http://opendatacommunities.org/id/metropolitan-district-council/leeds,Leeds City Council,30/09/2020,City Development,Economic Development,Supplies and Services,Grants To Businesses,243,09/09/2020,2009-00073,0.00,3450.00,R,A J Yeadon,No
Http://opendatacommunities.org/id/metropolitan-district-council/leeds,Leeds City Council,30/09/2020,Children and Families,Social Care,Third Party Payments,Services Rendered By Other Organisations,511,04/09/2020,2009-00074,0.00,2064.08,R,REDACTED PERSONAL DATA,No
Http://opendatacommunities.org/id/metropolitan-district-council/leeds,Leeds City Council,30/09/2020,City Development,Economic Development,Supplies and Services,Grants To Businesses,243,09/09/2020,2009-00075,0.00,2098.00,R,A K Wightman,No
Http://opendatacommunities.org/id/metropolitan-district-council/leeds,Leeds City Council,30/09/2020,Resources and Housing,HRA Housing Leeds,Capital,OTHER COSTS,7,10/09/2020,2009-00076,0.00,249.22,C,REDACTED PERSONAL DATA,No
Http://opendatacommunities.org/id/metropolitan-district-council/leeds,Leeds City Council,30/09/2020,Resources and Housing,HRA Housing Leeds,Capital,OTHER COSTS,7,29/09/2020,2009-00077,0.00,80.00,C,REDACTED PERSONAL DATA,No
Http://opendatacommunities.org/id/metropolitan-district-council/leeds,Leeds City Council,30/09/2020,Children and Families,Social Care,Third Party Payments,Services Rendered By Other Organisations,511,02/09/2020,2009-00078,0.00,1544.40,R,REDACTED PERSONAL DATA,No
Http://opendatacommunities.org/id/metropolitan-district-council/leeds,Leeds City Council,30/09/2020,Children and Families,Social Care,Third Party Payments,Services Rendered By Other Organisations,511,04/09/2020,2009-00079,0.00,640.58,R,REDACTED PERSONAL DATA,No
Http://opendatacommunities.org/id/metropolitan-district-council/leeds,Leeds City Council,30/09/2020,Communities and Environment,Customer Access,Supplies and Services,Bought In Professional Services,277,09/09/2020,2009-00080,0.00,18.00,R,A NAMAKI,No
Http://opendatacommunities.org/id/metropolitan-district-council/leeds,Leeds City Council,30/09/2020,Children and Families,Social Care,Third Party Payments,Services Rendered By Other Organisations,511,04/09/2020,2009-00081,0.00,295.65,R,REDACTED PERSONAL DATA,No
Http://opendatacommunities.org/id/metropolitan-district-council/leeds,Leeds City Council,30/09/2020,Children and Families,Social Care,Third Party Payments,Services Rendered By Other Organisations,511,02/09/2020,2009-00082,0.00,257.40,R,REDACTED PERSONAL DATA,No
Http://opendatacommunities.org/id/metropolitan-district-council/leeds,Leeds City Council,30/09/2020,Resources and Housing,Shared Services,Supplies and Services,Other Hired And Contracted Services,265,09/09/2020,2009-00083,0.00,75.00,R,A Star Couriers Ltd,No
Http://opendatacommunities.org/id/metropolitan-district-council/leeds,Leeds City Council,30/09/2020,City Development,Economic Development,Supplies and Services,Grants To Businesses,243,23/09/2020,2009-00084,0.00,3900.00,R,A Swatman Designs,No
Http://opendatacommunities.org/id/metropolitan-district-council/leeds,Leeds City Council,30/09/2020,City Development,Markets & City Centre Management,Supplies and Services,Publication And Promotion,267,03/09/2020,2009-00085,0.00,350.00,R,A T Graphics Limited,No
Http://opendatacommunities.org/id/metropolitan-district-council/leeds,Leeds City Council,30/09/2020,Children and Families,Social Care,Third Party Payments,Independent Fostering Agencies,509,03/09/2020,2009-00086,0.00,936.00,R,A Taxis,No
Http://opendatacommunities.org/id/metropolitan-district-council/leeds,Leeds City Council,30/09/2020,Children and Families,Social Care,Third Party Payments,Services Rendered By Other Organisations,511,04/09/2020,2009-00087,0.00,427.05,R,REDACTED PERSONAL DATA,No
Http://opendatacommunities.org/id/metropolitan-district-council/leeds,Leeds City Council,30/09/2020,Children and Families,Social Care,Third Party Payments,General External Residential Placements,507,03/09/2020,2009-00088,0.00,-21597.88,R,A Wilderness Way Ltd,No
Http://opendatacommunities.org/id/metropolitan-district-council/leeds,Leeds City Council,30/09/2020,Children and Families,Social Care,Third Party Payments,General External Residential Placements,507,03/09/2020,2009-00089,0.00,9753.39,R,A Wilderness Way Ltd,No
Http://opendatacommunities.org/id/metropolitan-district-council/leeds,Leeds City Council,30/09/2020,Children and Families,Social Care,Transfer Payments,Leaving Care Allowances,634,03/09/2020,2009-00090,0.00,100.00,R,A Wilderness Way Ltd,No
Http://opendatacommunities.org/id/metropolitan-district-council/leeds,Leeds City Council,30/09/2020,Children and Families,Social Care,Third Party Payments,General External Residential Placements,507,03/09/2020,2009-00091,0.00,155.70,R,A Wilderness Way Ltd,No
Http://opendatacommunities.org/id/metropolitan-district-council/leeds,Leeds City Council,30/09/2020,Children and Families,Social Care,Third Party Payments,General External Residential Placements,507,03/09/2020,2009-00092,0.00,33595.01,R,A Wilderness Way Ltd,No
Http://opendatacommunities.org/id/metropolitan-district-council/leeds,Leeds City Council,30/09/2020,Children and Families,Social Care,Third Party Payments,General External Residential Placements,507,25/09/2020,2009-00093,0.00,18.00,R,A Wilderness Way Ltd,No
Http://opendatacommunities.org/id/metropolitan-district-council/leeds,Leeds City Council,30/09/2020,Children and Families,Social Care,Third Party Payments,General External Residential Placements,507,25/09/2020,2009-00094,0.00,-6936.39,R,A Wilderness Way Ltd,No
Http://opendatacommunities.org/id/metropolitan-district-council/leeds,Leeds City Council,30/09/2020,Children and Families,Social Care,Third Party Payments,General External Residential Placements,507,25/09/2020,2009-00095,0.00,28785.67,R,A Wilderness Way Ltd,No
Http://opendatacommunities.org/id/metropolitan-district-council/leeds,Leeds City Council,30/09/2020,City Development,Economic Development,Supplies and Services,Grants To Businesses,243,09/09/2020,2009-00096,0.00,196.00,R,A&C Design Shop Fitting And Maintenance,No
Http://opendatacommunities.org/id/metropolitan-district-council/leeds,Leeds City Council,30/09/2020,Communities and Environment,Waste Management,Capital,FURNITURE AND EQUIPMENT,5,11/09/2020,2009-00097,0.00,8260.00,C,A&C Weber Uk Ltd,No
Http://opendatacommunities.org/id/metropolitan-district-council/leeds,Leeds City Council,30/09/2020,Communities and Environment,Waste Management,Supplies and Services,Office Consumables,210,18/09/2020,2009-00098,0.00,1096.25,R,A&C Weber Uk Ltd,No
Http://opendatacommunities.org/id/metropolitan-district-council/leeds,Leeds City Council,30/09/2020,Communities and Environment,Waste Management,Capital,FURNITURE AND EQUIPMENT,5,23/09/2020,2009-00099,0.00,8850.00,C,A&C Weber Uk Ltd,No
Http://opendatacommunities.org/id/metropolitan-district-council/leeds,Leeds City Council,30/09/2020,Resources and Housing,Leeds Building Services,Supplies and Services,Other Hired And Contracted Services,265,16/09/2020,2009-00100,0.00,1120.00,R,A1 STAIR LIFT SERVICES,No
Http://opendatacommunities.org/id/metropolitan-district-council/leeds,Leeds City Council,30/09/2020,Resources and Housing,Leeds Building Services,Supplies and Services,Other Hired And Contracted Services,265,17/09/2020,2009-00101,0.00,4195.00,R,A1 STAIR LIFT SERVICES,No
Http://opendatacommunities.org/id/metropolitan-district-council/leeds,Leeds City Council,30/09/2020,Resources and Housing,Leeds Building Services,Supplies and Services,Other Hired And Contracted Services,265,25/09/2020,2009-00102,0.00,250.00,R,A1 STAIR LIFT SERVICES,No
Http://opendatacommunities.org/id/metropolitan-district-council/leeds,Leeds City Council,30/09/2020,Children and Families,Social Care,Transfer Payments,Leaving Care Allowances,634,18/09/2020,2009-00103,0.00,75.00,R,REDACTED PERSONAL DATA,No
Http://opendatacommunities.org/id/metropolitan-district-council/leeds,Leeds City Council,30/09/2020,Children and Families,Social Care,Transfer Payments,Leaving Care Allowances,634,18/09/2020,2009-00104,0.00,60.00,R,REDACTED PERSONAL DATA,No
Http://opendatacommunities.org/id/metropolitan-district-council/leeds,Leeds City Council,30/09/2020,Children and Families,Social Care,Transfer Payments,Leaving Care Allowances,634,28/09/2020,2009-00105,0.00,100.00,R,REDACTED PERSONAL DATA,No
Http://opendatacommunities.org/id/metropolitan-district-council/leeds,Leeds City Council,30/09/2020,Adults and Health,Social Services Support Services,Employees,Training & Development,70,08/09/2020,2009-00106,0.00,13.00,R,REDACTED PERSONAL DATA,No
Http://opendatacommunities.org/id/metropolitan-district-council/leeds,Leeds City Council,30/09/2020,Children and Families,Social Care,Third Party Payments,Section 17,551,09/09/2020,2009-00107,0.00,100.00,R,REDACTED PERSONAL DATA,No
Http://opendatacommunities.org/id/metropolitan-district-council/leeds,Leeds City Council,30/09/2020,Adults and Health,Public Health,Third Party Payments,Public Health Commissioned Services,526,04/09/2020,2009-00108,0.00,163.28,R,Abbey Grange Medical Practice,No
Http://opendatacommunities.org/id/metropolitan-district-council/leeds,Leeds City Council,30/09/2020,Children and Families,Social Care,Third Party Payments,Allowances,546,02/09/2020,2009-00109,0.00,708.57,R,ABBIE O MAHONEY,No
Http://opendatacommunities.org/id/metropolitan-district-council/leeds,Leeds City Council,30/09/2020,Children and Families,Social Care,Third Party Payments,Allowances,546,29/09/2020,2009-00110,0.00,714.86,R,ABBIE O MAHONY,No
Http://opendatacommunities.org/id/metropolitan-district-council/leeds,Leeds City Council,30/09/2020,Children and Families,Social Care,Third Party Payments,Services Rendered By Other Organisations,511,02/09/2020,2009-00111,0.00,1544.40,R,Abc Daycare And Ozone Out Of School,No
Http://opendatacommunities.org/id/metropolitan-district-council/leeds,Leeds City Council,30/09/2020,Children and Families,Social Care,Third Party Payments,Services Rendered By Other Organisations,511,04/09/2020,2009-00112,0.00,3761.33,R,Abc Daycare And Ozone Out Of School,No
Http://opendatacommunities.org/id/metropolitan-district-council/leeds,Leeds City Council,30/09/2020,Children and Families,Social Care,Third Party Payments,Services Rendered By Voluntary Sector,505,17/09/2020,2009-00113,0.00,4789.47,R,Abc Daycare And Ozone Out Of School,No
Http://opendatacommunities.org/id/metropolitan-district-council/leeds,Leeds City Council,30/09/2020,City Development,Economic Development,Supplies and Services,Grants To Businesses,243,09/09/2020,2009-00114,0.00,1895.00,R,Abc Nursery @ Leeds United Fc,No
Http://opendatacommunities.org/id/metropolitan-district-council/leeds,Leeds City Council,30/09/2020,Children and Families,Social Care,Third Party Payments,Services Rendered By Other Organisations,511,02/09/2020,2009-00115,0.00,3326.40,R,ABC NURSERY AT LUFC,No
Http://opendatacommunities.org/id/metropolitan-district-council/leeds,Leeds City Council,30/09/2020,Children and Families,Social Care,Third Party Payments,Services Rendered By Other Organisations,511,04/09/2020,2009-00116,0.00,5338.13,R,ABC NURSERY AT LUFC,No
Http://opendatacommunities.org/id/metropolitan-district-council/leeds,Leeds City Council,30/09/2020,Children and Families,Social Care,Third Party Payments,Services Rendered By Other Organisations,511,02/09/2020,2009-00117,0.00,2316.60,R,Abc@D'S Childcare,No
Http://opendatacommunities.org/id/metropolitan-district-council/leeds,Leeds City Council,30/09/2020,Children and Families,Social Care,Third Party Payments,Services Rendered By Other Organisations,511,04/09/2020,2009-00118,0.00,3202.88,R,Abc@D'S Childcare,No
Http://opendatacommunities.org/id/metropolitan-district-council/leeds,Leeds City Council,30/09/2020,Communities and Environment,Customer Access,Supplies and Services,Bought In Professional Services,277,03/09/2020,2009-00119,0.00,18.00,R,Abdul Kalam,No
Http://opendatacommunities.org/id/metropolitan-district-council/leeds,Leeds City Council,30/09/2020,Communities and Environment,Customer Access,Supplies and Services,Bought In Professional Services,277,18/09/2020,2009-00120,0.00,9.00,R,Abdul Kalam,No
Http://opendatacommunities.org/id/metropolitan-district-council/leeds,Leeds City Council,30/09/2020,Communities and Environment,Customer Access,Supplies and Services,Bought In Professional Services,277,18/09/2020,2009-00121,0.00,18.00,R,Abdul Kalam,No
Http://opendatacommunities.org/id/metropolitan-district-council/leeds,Leeds City Council,30/09/2020,Communities and Environment,Customer Access,Supplies and Services,Bought In Professional Services,277,23/09/2020,2009-00122,0.00,9.00,R,Abdulahad Denha,No
Http://opendatacommunities.org/id/metropolitan-district-council/leeds,Leeds City Council,30/09/2020,Communities and Environment,Customer Access,Supplies and Services,Bought In Professional Services,277,03/09/2020,2009-00123,0.00,9.00,R,Abdulrahim Dastyar,No
Http://opendatacommunities.org/id/metropolitan-district-council/leeds,Leeds City Council,30/09/2020,Communities and Environment,Customer Access,Supplies and Services,Bought In Professional Services,277,03/09/2020,2009-00124,0.00,22.50,R,Abdulrahim Dastyar,No
Http://opendatacommunities.org/id/metropolitan-district-council/leeds,Leeds City Council,30/09/2020,Communities and Environment,Customer Access,Supplies and Services,Bought In Professional Services,277,03/09/2020,2009-00125,0.00,18.00,R,Abdulrahim Dastyar,No
Http://opendatacommunities.org/id/metropolitan-district-council/leeds,Leeds City Council,30/09/2020,Communities and Environment,Customer Access,Supplies and Services,Bought In Professional Services,277,09/09/2020,2009-00126,0.00,18.00,R,Abdulrahim Dastyar,No
Http://opendatacommunities.org/id/metropolitan-district-council/leeds,Leeds City Council,30/09/2020,Communities and Environment,Customer Access,Supplies and Services,Bought In Professional Services,277,18/09/2020,2009-00127,0.00,27.00,R,Abdulrahim Dastyar,No
Http://opendatacommunities.org/id/metropolitan-district-council/leeds,Leeds City Council,30/09/2020,Communities and Environment,Customer Access,Supplies and Services,Bought In Professional Services,277,23/09/2020,2009-00128,0.00,18.00,R,Abdulrahim Dastyar,No
Http://opendatacommunities.org/id/metropolitan-district-council/leeds,Leeds City Council,30/09/2020,Communities and Environment,Customer Access,Supplies and Services,Bought In Professional Services,277,30/09/2020,2009-00129,0.00,18.00,R,Abdulrahim Dastyar,No
Http://opendatacommunities.org/id/metropolitan-district-council/leeds,Leeds City Council,30/09/2020,Adults and Health,Services For Older People - 65 And Over,Third Party Payments,Nursing Home,570,04/09/2020,2009-00130,0.00,2269.67,R,Aberford Hall,No
Http://opendatacommunities.org/id/metropolitan-district-council/leeds,Leeds City Council,30/09/2020,Adults and Health,Services For Older People - 65 And Over,Third Party Payments,Nursing Home,570,16/09/2020,2009-00131,0.00,18751.26,R,Aberford Hall,No
Http://opendatacommunities.org/id/metropolitan-district-council/leeds,Leeds City Council,30/09/2020,Resources and Housing,Leeds Building Services,Supplies and Services,Operational Materials,205,16/09/2020,2009-00132,0.00,281.04,R,ABI GARAGE DOORS LTD,No
Http://opendatacommunities.org/id/metropolitan-district-council/leeds,Leeds City Council,30/09/2020,Resources and Housing,Leeds Building Services,Supplies and Services,Operational Materials,205,16/09/2020,2009-00133,0.00,281.04,R,ABI GARAGE DOORS LTD,No
Http://opendatacommunities.org/id/metropolitan-district-council/leeds,Leeds City Council,30/09/2020,Resources and Housing,Leeds Building Services,Supplies and Services,Operational Materials,205,16/09/2020,2009-00134,0.00,281.04,R,ABI GARAGE DOORS LTD,No
Http://opendatacommunities.org/id/metropolitan-district-council/leeds,Leeds City Council,30/09/2020,Resources and Housing,Leeds Building Services,Supplies and Services,Operational Materials,205,16/09/2020,2009-00135,0.00,281.04,R,ABI GARAGE DOORS LTD,No
Http://opendatacommunities.org/id/metropolitan-district-council/leeds,Leeds City Council,30/09/2020,Resources and Housing,Leeds Building Services,Supplies and Services,Operational Materials,205,17/09/2020,2009-00136,0.00,10.00,R,ABI GARAGE DOORS LTD,No
Http://opendatacommunities.org/id/metropolitan-district-council/leeds,Leeds City Council,30/09/2020,Children and Families,Learning,Income,Training & Education Courses Income,937,24/09/2020,2009-00137,0.00,173.35,R,REDACTED PERSONAL DATA,No
Http://opendatacommunities.org/id/metropolitan-district-council/leeds,Leeds City Council,30/09/2020,Communities and Environment,Parks and Countryside,Supplies and Services,Operational Materials,205,24/09/2020,2009-00138,0.00,56.13,R,REDACTED PERSONAL DATA,No
Http://opendatacommunities.org/id/metropolitan-district-council/leeds,Leeds City Council,30/09/2020,Communities and Environment,Waste Management,Supplies and Services,Publication And Promotion,267,18/09/2020,2009-00139,0.00,30.00,R,REDACTED PERSONAL DATA,No
Http://opendatacommunities.org/id/metropolitan-district-council/leeds,Leeds City Council,30/09/2020,Resources and Housing,Shared Services  ,Supplies and Services,Computer Software & Equipment,214,19/05/2020,2009-00140,0.00,1728.00,R,Ability Smart,Yes
Http://opendatacommunities.org/id/metropolitan-district-council/leeds,Leeds City Council,30/09/2020,Communities and Environment,Communities,Employees,Training & Development,70,16/09/2020,2009-00141,0.00,330.00,R,AbilityNet,No
Http://opendatacommunities.org/id/metropolitan-district-council/leeds,Leeds City Council,30/09/2020,City Development,Economic Development,Supplies and Services,Grants To Businesses,243,30/09/2020,2009-00142,0.00,25000.00,R,Abraham Moon & Sons,No
Http://opendatacommunities.org/id/metropolitan-district-council/leeds,Leeds City Council,30/09/2020,Children and Families,Social Care  ,Supplies and Services,Food & Drink,231,05/08/2020,2009-00143,0.00,8.06,R,Abu Bakar Limited,Yes
Http://opendatacommunities.org/id/metropolitan-district-council/leeds,Leeds City Council,30/09/2020,Adults and Health,Services For Adults Under 65 Mental/Dis,Third Party Payments,Fees - Level 4,520,01/09/2020,2009-00144,0.00,175.00,R,Abubaker Denja Mohammed,No
Http://opendatacommunities.org/id/metropolitan-district-council/leeds,Leeds City Council,30/09/2020,Adults and Health,Services For Adults Under 65 Mental/Dis,Third Party Payments,Fees - Level 4,520,01/09/2020,2009-00145,0.00,175.00,R,Abubaker Denja Mohammed,No
Http://opendatacommunities.org/id/metropolitan-district-council/leeds,Leeds City Council,30/09/2020,Adults and Health,Services For Adults Under 65 Mental/Dis,Third Party Payments,Fees - Level 4,520,01/09/2020,2009-00146,0.00,175.00,R,Abubaker Denja Mohammed,No
Http://opendatacommunities.org/id/metropolitan-district-council/leeds,Leeds City Council,30/09/2020,Adults and Health,Services For Adults Under 65 Mental/Dis,Third Party Payments,Fees - Level 4,520,01/09/2020,2009-00147,0.00,175.00,R,Abubaker Denja Mohammed,No
Http://opendatacommunities.org/id/metropolitan-district-council/leeds,Leeds City Council,30/09/2020,Adults and Health,Services For Adults Under 65 Mental/Dis,Third Party Payments,Fees - Level 4,520,01/09/2020,2009-00148,0.00,175.00,R,Abubaker Denja Mohammed,No
Http://opendatacommunities.org/id/metropolitan-district-council/leeds,Leeds City Council,30/09/2020,Adults and Health,Services For Adults Under 65 Mental/Dis,Third Party Payments,Fees - Level 4,520,10/09/2020,2009-00149,0.00,175.00,R,Abubaker Denja Mohammed,No
Http://opendatacommunities.org/id/metropolitan-district-council/leeds,Leeds City Council,30/09/2020,Adults and Health,Services For Adults Under 65 Mental/Dis,Third Party Payments,Fees - Level 4,520,10/09/2020,2009-00150,0.00,175.00,R,Abubaker Denja Mohammed,No
Http://opendatacommunities.org/id/metropolitan-district-council/leeds,Leeds City Council,30/09/2020,Adults and Health,Services For Adults Under 65 Mental/Dis,Third Party Payments,Fees - Level 4,520,10/09/2020,2009-00151,0.00,175.00,R,Abubaker Denja Mohammed,No
Http://opendatacommunities.org/id/metropolitan-district-council/leeds,Leeds City Council,30/09/2020,Adults and Health,Services For Adults Under 65 Mental/Dis,Third Party Payments,Fees - Level 4,520,11/09/2020,2009-00152,0.00,175.00,R,Abubaker Denja Mohammed,No
Http://opendatacommunities.org/id/metropolitan-district-council/leeds,Leeds City Council,30/09/2020,Adults and Health,Services For Adults Under 65 Mental/Dis,Third Party Payments,Fees - Level 4,520,11/09/2020,2009-00153,0.00,175.00,R,Abubaker Denja Mohammed,No
Http://opendatacommunities.org/id/metropolitan-district-council/leeds,Leeds City Council,30/09/2020,Adults and Health,Services For Adults Under 65 Mental/Dis,Third Party Payments,Fees - Level 4,520,25/09/2020,2009-00154,0.00,175.00,R,Abubaker Denja Mohammed,No
Http://opendatacommunities.org/id/metropolitan-district-council/leeds,Leeds City Council,30/09/2020,Adults and Health,Services For Adults Under 65 Mental/Dis,Third Party Payments,Fees - Level 4,520,25/09/2020,2009-00155,0.00,175.00,R,Abubaker Denja Mohammed,No
Http://opendatacommunities.org/id/metropolitan-district-council/leeds,Leeds City Council,30/09/2020,Adults and Health,Services For Adults Under 65 Mental/Dis,Third Party Payments,Fees - Level 4,520,25/09/2020,2009-00156,0.00,175.00,R,Abubaker Denja Mohammed,No
Http://opendatacommunities.org/id/metropolitan-district-council/leeds,Leeds City Council,30/09/2020,Resources and Housing,Finance  ,Employees,Best Value Training,70,06/08/2020,2009-00157,0.00,75.00,R,Acas,Yes
Http://opendatacommunities.org/id/metropolitan-district-council/leeds,Leeds City Council,30/09/2020,Resources and Housing,Strategic Housing Partnerships,Capital,CONSTRUCTION,3,03/09/2020,2009-00158,0.00,2111.04,C,ACCENT HOMES LTD,No
Http://opendatacommunities.org/id/metropolitan-district-council/leeds,Leeds City Council,30/09/2020,Resources and Housing,Strategic Housing Partnership & Support,Supplies and Services,Other Hired And Contracted Services,265,18/09/2020,2009-00159,0.00,438.88,R,Accent Housing Ltd,No
Http://opendatacommunities.org/id/metropolitan-district-council/leeds,Leeds City Council,30/09/2020,City Development,Economic Development,Supplies and Services,Grants To Businesses,243,24/09/2020,2009-00160,0.00,25000.00,R,Accent Ladies Ltd,No
Http://opendatacommunities.org/id/metropolitan-district-council/leeds,Leeds City Council,30/09/2020,Communities and Environment,Community Safety,Transport,Hire Of Movable Plant & Machinery,315,25/09/2020,2009-00161,0.00,1434.86,R,Access Hire Nationwide Ltd,No
Http://opendatacommunities.org/id/metropolitan-district-council/leeds,Leeds City Council,30/09/2020,Communities and Environment,Community Safety  ,Supplies and Services,Other Hired And Contracted Services,265,10/08/2020,2009-00162,0.00,13.13,R,Access Locksmiths,Yes
Http://opendatacommunities.org/id/metropolitan-district-council/leeds,Leeds City Council,30/09/2020,Communities and Environment,Customer Access  ,Supplies and Services,Operational Furniture And Equipment,203,19/08/2020,2009-00163,0.00,72.00,R,Access Locksmiths,Yes
Http://opendatacommunities.org/id/metropolitan-district-council/leeds,Leeds City Council,30/09/2020,Communities and Environment,Environmental Action (City Centre)  ,Supplies and Services,Operational Furniture And Equipment,203,25/08/2020,2009-00164,0.00,-80.66,R,Access Locksmiths,Yes
Http://opendatacommunities.org/id/metropolitan-district-council/leeds,Leeds City Council,30/09/2020,Communities and Environment,Environmental Action (City Centre)  ,Supplies and Services,Operational Furniture And Equipment,203,25/08/2020,2009-00165,0.00,80.66,R,Access Locksmiths,Yes
Http://opendatacommunities.org/id/metropolitan-district-council/leeds,Leeds City Council,30/09/2020,Communities and Environment,Customer Access  ,Supplies and Services,Operational Furniture And Equipment,203,26/08/2020,2009-00166,0.00,12.00,R,Access Locksmiths,Yes
Http://opendatacommunities.org/id/metropolitan-district-council/leeds,Leeds City Council,30/09/2020,Resources and Housing,HRA Housing Leeds,Capital,FURNITURE AND EQUIPMENT,5,11/09/2020,2009-00167,0.00,132.05,C,ACCESS LOCKSMITHS (LEEDS) LIMITED,No
Http://opendatacommunities.org/id/metropolitan-district-council/leeds,Leeds City Council,30/09/2020,Resources and Housing,Commercial Services,Supplies and Services,Operational Materials,205,14/09/2020,2009-00168,0.00,403.60,R,ACCESS LOCKSMITHS (LEEDS) LIMITED,No
Http://opendatacommunities.org/id/metropolitan-district-council/leeds,Leeds City Council,30/09/2020,Strategic Landlord,Housing Management,Premises,General Maintenance,104,18/09/2020,2009-00169,0.00,117.00,R,ACCESS LOCKSMITHS (LEEDS) LIMITED,No
Http://opendatacommunities.org/id/metropolitan-district-council/leeds,Leeds City Council,30/09/2020,Resources and Housing,HRA Housing Leeds,Capital,FURNITURE AND EQUIPMENT,5,18/09/2020,2009-00170,0.00,401.54,C,ACCESS LOCKSMITHS (LEEDS) LIMITED,No
Http://opendatacommunities.org/id/metropolitan-district-council/leeds,Leeds City Council,30/09/2020,Strategic Landlord,Housing Management,Supplies and Services,Research Costs,240,25/09/2020,2009-00171,0.00,114.00,R,ACCESS LOCKSMITHS (LEEDS) LIMITED,No
Http://opendatacommunities.org/id/metropolitan-district-council/leeds,Leeds City Council,30/09/2020,Strategic Landlord,Housing Management,Supplies and Services,Research Costs,240,25/09/2020,2009-00172,0.00,113.90,R,ACCESS LOCKSMITHS (LEEDS) LIMITED,No
Http://opendatacommunities.org/id/metropolitan-district-council/leeds,Leeds City Council,30/09/2020,Strategic Landlord,Housing Management,Supplies and Services,Resaleable Materials,204,25/09/2020,2009-00173,0.00,6.60,R,ACCESS LOCKSMITHS (LEEDS) LIMITED,No
Http://opendatacommunities.org/id/metropolitan-district-council/leeds,Leeds City Council,30/09/2020,Strategic Landlord,Housing Management,Premises,General Maintenance,104,25/09/2020,2009-00174,0.00,228.00,R,ACCESS LOCKSMITHS (LEEDS) LIMITED,No
Http://opendatacommunities.org/id/metropolitan-district-council/leeds,Leeds City Council as Accountable Body,30/09/2020,Social Services Pooled Budgets,Jcs For People With Learning Disabilitie,Supplies and Services,Other Equipment,203,18/09/2020,2009-00175,0.00,265.00,R,Accora,No
Http://opendatacommunities.org/id/metropolitan-district-council/leeds,Leeds City Council as Accountable Body,30/09/2020,Social Services Pooled Budgets,Jcs For People With Learning Disabilitie,Supplies and Services,Other Equipment,203,18/09/2020,2009-00176,0.00,200.00,R,Accora,No
Http://opendatacommunities.org/id/metropolitan-district-council/leeds,Leeds City Council,30/09/2020,City Development,Markets & City Centre Management  ,Premises,General Maintenance,104,18/08/2020,2009-00177,0.00,13.75,R,Accu.Co.Uk,Yes
Http://opendatacommunities.org/id/metropolitan-district-council/leeds,Leeds City Council,30/09/2020,City Development,Recreation,Supplies and Services,Operational Furniture And Equipment,203,03/09/2020,2009-00178,0.00,93.00,R,ACE CONTAINER SERVICES LIMITED,No
Http://opendatacommunities.org/id/metropolitan-district-council/leeds,Leeds City Council,30/09/2020,City Development,Recreation,Supplies and Services,Operational Furniture And Equipment,203,30/09/2020,2009-00179,0.00,90.00,R,ACE CONTAINER SERVICES LIMITED,No
Http://opendatacommunities.org/id/metropolitan-district-council/leeds,Leeds City Council,30/09/2020,City Development,Recreation,Transport,External Hire -Occasional,304,30/09/2020,2009-00180,0.00,124.50,R,ACE CONTAINER SERVICES LIMITED,No
Http://opendatacommunities.org/id/metropolitan-district-council/leeds,Leeds City Council,30/09/2020,City Development,Libraries  Arts & Heritage,Supplies and Services,Other Hired And Contracted Services,265,30/09/2020,2009-00181,0.00,45.00,R,ACE CONTAINER SERVICES LIMITED,No
Http://opendatacommunities.org/id/metropolitan-district-council/leeds,Leeds City Council,30/09/2020,City Development,Economic Development,Supplies and Services,Grants To Businesses,243,09/09/2020,2009-00182,0.00,2179.00,R,Ace Leaflet Distribution & Print Ltd,No
Http://opendatacommunities.org/id/metropolitan-district-council/leeds,Leeds City Council,30/09/2020,City Development,Economic Development,Supplies and Services,Grants To Businesses,243,09/09/2020,2009-00183,0.00,2991.00,R,Achievers Faith International Ministers,No
Http://opendatacommunities.org/id/metropolitan-district-council/leeds,Leeds City Council,30/09/2020,Resources and Housing,Sustainable Energy & Air Quality,Supplies and Services,PFI Deferred Prepayments,280,11/09/2020,2009-00184,0.00,224.00,R,Acorn Construction (Yorkshire) Ltd,No
Http://opendatacommunities.org/id/metropolitan-district-council/leeds,Leeds City Council,30/09/2020,Resources and Housing,Sustainable Energy & Air Quality,Supplies and Services,PFI Deferred Prepayments,280,11/09/2020,2009-00185,0.00,224.00,R,Acorn Construction (Yorkshire) Ltd,No
Http://opendatacommunities.org/id/metropolitan-district-council/leeds,Leeds City Council,30/09/2020,Resources and Housing,Sustainable Energy & Air Quality,Supplies and Services,PFI Deferred Prepayments,280,18/09/2020,2009-00186,0.00,280.00,R,Acorn Construction (Yorkshire) Ltd,No
Http://opendatacommunities.org/id/metropolitan-district-council/leeds,Leeds City Council,30/09/2020,City Development,Libraries  Arts & Heritage,Supplies and Services,Other Hired And Contracted Services,265,21/09/2020,2009-00187,0.00,1560.00,R,Acorn Construction (Yorkshire) Ltd,No
Http://opendatacommunities.org/id/metropolitan-district-council/leeds,Leeds City Council,30/09/2020,Children and Families,Social Care,Third Party Payments,Services Rendered By Other Organisations,511,04/09/2020,2009-00188,0.00,13025.03,R,ACORNS NURSERY,No
Http://opendatacommunities.org/id/metropolitan-district-council/leeds,Leeds City Council,30/09/2020,Adults and Health,Services For Older People - 65 And Over,Third Party Payments,Nursing Home,570,04/09/2020,2009-00189,0.00,2308.27,R,Acre Green,No
Http://opendatacommunities.org/id/metropolitan-district-council/leeds,Leeds City Council,30/09/2020,Adults and Health,Services For Older People - 65 And Over,Third Party Payments,Nursing Home,570,16/09/2020,2009-00190,0.00,20532.58,R,Acre Green,No
Http://opendatacommunities.org/id/metropolitan-district-council/leeds,Leeds City Council,30/09/2020,Adults and Health,Services For Older People - 65 And Over,Third Party Payments,Residential,580,16/09/2020,2009-00191,0.00,5170.12,R,Acre Green,No
Http://opendatacommunities.org/id/metropolitan-district-council/leeds,Leeds City Council,30/09/2020,Adults and Health,Services For Older People Under 65 P/Dis,Third Party Payments,Nursing Home,570,16/09/2020,2009-00192,0.00,26181.82,R,Acre Green,No
Http://opendatacommunities.org/id/metropolitan-district-council/leeds,Leeds City Council,30/09/2020,Adults and Health,Services For Older People Under 65 P/Dis,Third Party Payments,Residential,580,16/09/2020,2009-00193,0.00,1642.60,R,Acre Green,No
Http://opendatacommunities.org/id/metropolitan-district-council/leeds,Leeds City Council,30/09/2020,Children and Families,Social Care,Third Party Payments,Services Rendered By Other Organisations,511,02/09/2020,2009-00194,0.00,2059.20,R,Acre Wood Day Nursery,No
Http://opendatacommunities.org/id/metropolitan-district-council/leeds,Leeds City Council,30/09/2020,City Development,Economic Development,Supplies and Services,Grants To Businesses,243,02/09/2020,2009-00195,0.00,10000.00,R,Acre Wood Day Nursery,No
Http://opendatacommunities.org/id/metropolitan-district-council/leeds,Leeds City Council,30/09/2020,Children and Families,Social Care,Third Party Payments,Services Rendered By Other Organisations,511,04/09/2020,2009-00196,0.00,11530.35,R,Acre Wood Day Nursery,No
Http://opendatacommunities.org/id/metropolitan-district-council/leeds,Leeds City Council,30/09/2020,Resources and Housing,Technology  ,Supplies and Services,Computer Software & Equipment,214,31/07/2020,2009-00197,0.00,10410.95,R,Acs Business Supplies Lt,Yes
Http://opendatacommunities.org/id/metropolitan-district-council/leeds,Leeds City Council,30/09/2020,Resources and Housing,Technology  ,Supplies and Services,Office Consumables,210,27/08/2020,2009-00198,0.00,5229.24,R,Acs Business Supplies Lt,Yes
Http://opendatacommunities.org/id/metropolitan-district-council/leeds,Leeds City Council,30/09/2020,Resources and Housing,Leeds Building Services,Supplies and Services,Operational Materials,205,17/09/2020,2009-00199,0.00,32.09,R,Actavo Hire And Sales Uk Limited,No
Http://opendatacommunities.org/id/metropolitan-district-council/leeds,Leeds City Council,30/09/2020,Children and Families,Social Care,Third Party Payments,Independent Fostering Agencies,509,23/09/2020,2009-00200,0.00,4997.10,R,Action For Children Services Ltd,No
Http://opendatacommunities.org/id/metropolitan-district-council/leeds,Leeds City Council,30/09/2020,Children and Families,Social Care,Third Party Payments,Contact,548,08/09/2020,2009-00201,0.00,55.00,R,Active 8 Support Services,No
Http://opendatacommunities.org/id/metropolitan-district-council/leeds,Leeds City Council,30/09/2020,Children and Families,Social Care,Third Party Payments,Contact,548,15/09/2020,2009-00202,0.00,180.70,R,Active 8 Support Services,No
Http://opendatacommunities.org/id/metropolitan-district-council/leeds,Leeds City Council,30/09/2020,Children and Families,Social Care,Third Party Payments,Services Rendered By Other Organisations,511,02/09/2020,2009-00203,0.00,514.80,R,ACTIVE KIDS YEADON LLP,No
Http://opendatacommunities.org/id/metropolitan-district-council/leeds,Leeds City Council,30/09/2020,Children and Families,Social Care,Third Party Payments,Services Rendered By Other Organisations,511,04/09/2020,2009-00204,0.00,5694.00,R,ACTIVE KIDS YEADON LLP,No
Http://opendatacommunities.org/id/metropolitan-district-council/leeds,Leeds City Council,30/09/2020,City Development,Economic Development,Supplies and Services,Grants To Businesses,243,09/09/2020,2009-00205,0.00,964.00,R,Active Kids Yeadon Llp,No
Http://opendatacommunities.org/id/metropolitan-district-council/leeds,Leeds City Council,30/09/2020,Children and Families,Social Care,Third Party Payments,Services Rendered By Voluntary Sector,505,17/09/2020,2009-00206,0.00,568.44,R,ACTIVE KIDS YEADON LLP,No
Http://opendatacommunities.org/id/metropolitan-district-council/leeds,Leeds City Council,30/09/2020,Adults and Health,Services For Adults Under 65 Mental/Dis,Third Party Payments,Sheltered Accommodation,569,16/09/2020,2009-00207,0.00,29815.98,R,Active Pathways,No
Http://opendatacommunities.org/id/metropolitan-district-council/leeds,Leeds City Council,30/09/2020,Adults and Health,Services For Older People Under 65 P/Dis,Third Party Payments,Sheltered Accommodation,569,16/09/2020,2009-00208,0.00,7471.52,R,Active Pathways,No
Http://opendatacommunities.org/id/metropolitan-district-council/leeds,Leeds City Council as Accountable Body,30/09/2020,Social Services Pooled Budgets,Jcs For People With Learning Disabilitie,Third Party Payments,Sheltered Accommodation,569,16/09/2020,2009-00209,0.00,6670.99,R,Active Pathways,No
Http://opendatacommunities.org/id/metropolitan-district-council/leeds,Leeds City Council,30/09/2020,Communities and Environment,Cleaner Neighbourhood Teams,Premises,Removal Of Workplace Waste,126,04/09/2020,2009-00210,0.00,116.60,R,Acumen Waste Services Ltd,No
Http://opendatacommunities.org/id/metropolitan-district-council/leeds,Leeds City Council,30/09/2020,Communities and Environment,Waste Management,Supplies and Services,Recycling & Reuse Charges,234,09/09/2020,2009-00211,0.00,994.28,R,Acumen Waste Services Ltd,No
Http://opendatacommunities.org/id/metropolitan-district-council/leeds,Leeds City Council,30/09/2020,Communities and Environment,Cleaner Neighbourhood Teams,Supplies and Services,Operational Furniture And Equipment,203,09/09/2020,2009-00212,0.00,139.92,R,Acumen Waste Services Ltd,No
Http://opendatacommunities.org/id/metropolitan-district-council/leeds,Leeds City Council,30/09/2020,Communities and Environment,Cleaner Neighbourhood Teams,Supplies and Services,Operational Furniture And Equipment,203,11/09/2020,2009-00213,0.00,116.60,R,Acumen Waste Services Ltd,No
Http://opendatacommunities.org/id/metropolitan-district-council/leeds,Leeds City Council,30/09/2020,Communities and Environment,Cleaner Neighbourhood Teams,Supplies and Services,Operational Furniture And Equipment,203,11/09/2020,2009-00214,0.00,116.60,R,Acumen Waste Services Ltd,No
Http://opendatacommunities.org/id/metropolitan-district-council/leeds,Leeds City Council,30/09/2020,Communities and Environment,Waste Management,Supplies and Services,Recycling & Reuse Charges,234,11/09/2020,2009-00215,0.00,2015.55,R,Acumen Waste Services Ltd,No
Http://opendatacommunities.org/id/metropolitan-district-council/leeds,Leeds City Council,30/09/2020,Communities and Environment,Waste Management,Supplies and Services,Recycling & Reuse Charges,234,11/09/2020,2009-00216,0.00,2036.85,R,Acumen Waste Services Ltd,No
Http://opendatacommunities.org/id/metropolitan-district-council/leeds,Leeds City Council,30/09/2020,Communities and Environment,Cleaner Neighbourhood Teams,Premises,Removal Of Workplace Waste,126,11/09/2020,2009-00217,0.00,116.60,R,Acumen Waste Services Ltd,No
Http://opendatacommunities.org/id/metropolitan-district-council/leeds,Leeds City Council,30/09/2020,Communities and Environment,Cleaner Neighbourhood Teams,Supplies and Services,Operational Furniture And Equipment,203,16/09/2020,2009-00218,0.00,116.60,R,Acumen Waste Services Ltd,No
Http://opendatacommunities.org/id/metropolitan-district-council/leeds,Leeds City Council,30/09/2020,Communities and Environment,Cleaner Neighbourhood Teams,Supplies and Services,Operational Furniture And Equipment,203,18/09/2020,2009-00219,0.00,116.60,R,Acumen Waste Services Ltd,No
Http://opendatacommunities.org/id/metropolitan-district-council/leeds,Leeds City Council,30/09/2020,Communities and Environment,Waste Management,Supplies and Services,Recycling & Reuse Charges,234,23/09/2020,2009-00220,0.00,6851.30,R,Acumen Waste Services Ltd,No
Http://opendatacommunities.org/id/metropolitan-district-council/leeds,Leeds City Council,30/09/2020,Communities and Environment,Cleaner Neighbourhood Teams,Supplies and Services,Operational Furniture And Equipment,203,23/09/2020,2009-00221,0.00,116.60,R,Acumen Waste Services Ltd,No
Http://opendatacommunities.org/id/metropolitan-district-council/leeds,Leeds City Council,30/09/2020,Communities and Environment,Cleaner Neighbourhood Teams,Supplies and Services,Operational Furniture And Equipment,203,23/09/2020,2009-00222,0.00,116.60,R,Acumen Waste Services Ltd,No
Http://opendatacommunities.org/id/metropolitan-district-council/leeds,Leeds City Council,30/09/2020,Communities and Environment,Waste Management,Supplies and Services,Recycling & Reuse Charges,234,25/09/2020,2009-00223,0.00,1916.83,R,Acumen Waste Services Ltd,No
Http://opendatacommunities.org/id/metropolitan-district-council/leeds,Leeds City Council,30/09/2020,Communities and Environment,Waste Management,Supplies and Services,Recycling & Reuse Charges,234,25/09/2020,2009-00224,0.00,1916.83,R,Acumen Waste Services Ltd,No
Http://opendatacommunities.org/id/metropolitan-district-council/leeds,Leeds City Council,30/09/2020,Communities and Environment,Waste Management,Supplies and Services,Recycling & Reuse Charges,234,25/09/2020,2009-00225,0.00,982.92,R,Acumen Waste Services Ltd,No
Http://opendatacommunities.org/id/metropolitan-district-council/leeds,Leeds City Council,30/09/2020,Communities and Environment,Cleaner Neighbourhood Teams,Premises,Removal Of Workplace Waste,126,25/09/2020,2009-00226,0.00,116.60,R,Acumen Waste Services Ltd,No
Http://opendatacommunities.org/id/metropolitan-district-council/leeds,Leeds City Council,30/09/2020,Communities and Environment,Waste Management,Supplies and Services,Recycling & Reuse Charges,234,30/09/2020,2009-00227,0.00,972.26,R,Acumen Waste Services Ltd,No
Http://opendatacommunities.org/id/metropolitan-district-council/leeds,Leeds City Council,30/09/2020,Communities and Environment,Cleaner Neighbourhood Teams,Premises,Removal Of Workplace Waste,126,30/09/2020,2009-00228,0.00,116.60,R,Acumen Waste Services Ltd,No
Http://opendatacommunities.org/id/metropolitan-district-council/leeds,Leeds City Council,30/09/2020,Communities and Environment,Cleaner Neighbourhood Teams,Premises,Removal Of Workplace Waste,126,30/09/2020,2009-00229,0.00,116.60,R,Acumen Waste Services Ltd,No
Http://opendatacommunities.org/id/metropolitan-district-council/leeds,Leeds City Council,30/09/2020,Communities and Environment,Parks and Countryside,Supplies and Services,Resaleable Materials,204,04/09/2020,2009-00230,0.00,651.00,R,ACUSHNET EUROPE LIMITED,No
Http://opendatacommunities.org/id/metropolitan-district-council/leeds,Leeds City Council,30/09/2020,Communities and Environment,Parks and Countryside,Supplies and Services,Resaleable Materials,204,07/09/2020,2009-00231,0.00,402.00,R,ACUSHNET EUROPE LIMITED,No
Http://opendatacommunities.org/id/metropolitan-district-council/leeds,Leeds City Council,30/09/2020,Communities and Environment,Parks and Countryside,Supplies and Services,Resaleable Materials,204,07/09/2020,2009-00232,0.00,60.00,R,ACUSHNET EUROPE LIMITED,No
Http://opendatacommunities.org/id/metropolitan-district-council/leeds,Leeds City Council,30/09/2020,Communities and Environment,Parks and Countryside,Supplies and Services,Resaleable Materials,204,07/09/2020,2009-00233,0.00,135.00,R,ACUSHNET EUROPE LIMITED,No
Http://opendatacommunities.org/id/metropolitan-district-council/leeds,Leeds City Council,30/09/2020,City Development,Economic Development,Supplies and Services,Grants To Businesses,243,17/09/2020,2009-00234,0.00,15000.00,R,Acute Care Chiropractic Clinic Ltd,No
Http://opendatacommunities.org/id/metropolitan-district-council/leeds,Leeds City Council,30/09/2020,Resources and Housing,Shared Services,Supplies and Services,Other Hired And Contracted Services,265,03/09/2020,2009-00235,0.00,363.50,R,AD3 Envelope Printers Limited,No
Http://opendatacommunities.org/id/metropolitan-district-council/leeds,Leeds City Council,30/09/2020,Adults and Health,Social Services Support Services,Support Services,Legal Disbursements,411,11/09/2020,2009-00236,0.00,500.00,R,Adam Fullwood,No
Http://opendatacommunities.org/id/metropolitan-district-council/leeds,Leeds City Council,30/09/2020,City Development,Recreation,Income,Sporting & Other Recreational Fees,928,04/09/2020,2009-00237,0.00,164.58,R,REDACTED PERSONAL DATA,No
Http://opendatacommunities.org/id/metropolitan-district-council/leeds,Leeds City Council,30/09/2020,Resources and Housing,Strategic Housing Partnership & Support,Supplies and Services,Other Hired And Contracted Services,265,07/09/2020,2009-00238,0.00,1400.00,R,Adam Shields,No
Http://opendatacommunities.org/id/metropolitan-district-council/leeds,Leeds City Council,30/09/2020,Adults and Health,Services For Older People - 65 And Over,Third Party Payments,Nursing Home,570,16/09/2020,2009-00239,0.00,2584.00,R,Adbolton Hall,No
Http://opendatacommunities.org/id/metropolitan-district-council/leeds,Leeds City Council,30/09/2020,Resources and Housing,Commercial Services,Transport,Road Fund Licences,323,11/09/2020,2009-00240,0.00,315.00,R,Addison Motors Limited,No
Http://opendatacommunities.org/id/metropolitan-district-council/leeds,Leeds City Council,30/09/2020,Resources and Housing,Commercial Services,Transport,Road Fund Licences,323,11/09/2020,2009-00241,0.00,315.00,R,Addison Motors Limited,No
Http://opendatacommunities.org/id/metropolitan-district-council/leeds,Leeds City Council,30/09/2020,Resources and Housing,Commercial Services,Transport,Road Fund Licences,323,11/09/2020,2009-00242,0.00,315.00,R,Addison Motors Limited,No
Http://opendatacommunities.org/id/metropolitan-district-council/leeds,Leeds City Council,30/09/2020,Resources and Housing,Commercial Services,Transport,Road Fund Licences,323,11/09/2020,2009-00243,0.00,315.00,R,Addison Motors Limited,No
Http://opendatacommunities.org/id/metropolitan-district-council/leeds,Leeds City Council,30/09/2020,Resources and Housing,Civic Enterprise Leeds,Capital,TRANSPORT,4,11/09/2020,2009-00244,0.00,29571.72,C,Addison Motors Limited,No
Http://opendatacommunities.org/id/metropolitan-district-council/leeds,Leeds City Council,30/09/2020,Resources and Housing,Civic Enterprise Leeds,Capital,TRANSPORT,4,11/09/2020,2009-00245,0.00,29571.72,C,Addison Motors Limited,No
Http://opendatacommunities.org/id/metropolitan-district-council/leeds,Leeds City Council,30/09/2020,Resources and Housing,Civic Enterprise Leeds,Capital,TRANSPORT,4,11/09/2020,2009-00246,0.00,29571.72,C,Addison Motors Limited,No
Http://opendatacommunities.org/id/metropolitan-district-council/leeds,Leeds City Council,30/09/2020,Resources and Housing,Civic Enterprise Leeds,Capital,TRANSPORT,4,16/09/2020,2009-00247,0.00,29571.72,C,Addison Motors Limited,No
Http://opendatacommunities.org/id/metropolitan-district-council/leeds,Leeds City Council,30/09/2020,Resources and Housing,Commercial Services,Transport,Road Fund Licences,323,17/09/2020,2009-00248,0.00,315.00,R,Addison Motors Limited,No
Http://opendatacommunities.org/id/metropolitan-district-council/leeds,Leeds City Council,30/09/2020,Resources and Housing,Commercial Services,Transport,Road Fund Licences,323,17/09/2020,2009-00249,0.00,315.00,R,Addison Motors Limited,No
Http://opendatacommunities.org/id/metropolitan-district-council/leeds,Leeds City Council,30/09/2020,Resources and Housing,Civic Enterprise Leeds,Capital,TRANSPORT,4,17/09/2020,2009-00250,0.00,29571.72,C,Addison Motors Limited,No
Http://opendatacommunities.org/id/metropolitan-district-council/leeds,Leeds City Council,30/09/2020,Resources and Housing,Civic Enterprise Leeds,Capital,TRANSPORT,4,17/09/2020,2009-00251,0.00,29571.72,C,Addison Motors Limited,No
Http://opendatacommunities.org/id/metropolitan-district-council/leeds,Leeds City Council,30/09/2020,Resources and Housing,Civic Enterprise Leeds,Capital,TRANSPORT,4,17/09/2020,2009-00252,0.00,29571.72,C,Addison Motors Limited,No
Http://opendatacommunities.org/id/metropolitan-district-council/leeds,Leeds City Council,30/09/2020,Resources and Housing,Civic Enterprise Leeds,Capital,TRANSPORT,4,17/09/2020,2009-00253,0.00,29571.72,C,Addison Motors Limited,No
Http://opendatacommunities.org/id/metropolitan-district-council/leeds,Leeds City Council,30/09/2020,Resources and Housing,Commercial Services,Transport,Road Fund Licences,323,18/09/2020,2009-00254,0.00,315.00,R,Addison Motors Limited,No
Http://opendatacommunities.org/id/metropolitan-district-council/leeds,Leeds City Council,30/09/2020,Resources and Housing,Commercial Services,Transport,Road Fund Licences,323,18/09/2020,2009-00255,0.00,315.00,R,Addison Motors Limited,No
Http://opendatacommunities.org/id/metropolitan-district-council/leeds,Leeds City Council,30/09/2020,Resources and Housing,Commercial Services,Transport,Road Fund Licences,323,18/09/2020,2009-00256,0.00,315.00,R,Addison Motors Limited,No
Http://opendatacommunities.org/id/metropolitan-district-council/leeds,Leeds City Council,30/09/2020,Resources and Housing,Commercial Services,Transport,Road Fund Licences,323,18/09/2020,2009-00257,0.00,55.00,R,Addison Motors Limited,No
Http://opendatacommunities.org/id/metropolitan-district-council/leeds,Leeds City Council,30/09/2020,Resources and Housing,Commercial Services,Transport,Road Fund Licences,323,18/09/2020,2009-00258,0.00,55.00,R,Addison Motors Limited,No
Http://opendatacommunities.org/id/metropolitan-district-council/leeds,Leeds City Council,30/09/2020,Resources and Housing,Civic Enterprise Leeds,Capital,TRANSPORT,4,18/09/2020,2009-00259,0.00,29571.72,C,Addison Motors Limited,No
Http://opendatacommunities.org/id/metropolitan-district-council/leeds,Leeds City Council,30/09/2020,Resources and Housing,Civic Enterprise Leeds,Capital,TRANSPORT,4,18/09/2020,2009-00260,0.00,22755.61,C,Addison Motors Limited,No
Http://opendatacommunities.org/id/metropolitan-district-council/leeds,Leeds City Council,30/09/2020,Resources and Housing,Civic Enterprise Leeds,Capital,TRANSPORT,4,18/09/2020,2009-00261,0.00,22755.61,C,Addison Motors Limited,No
Http://opendatacommunities.org/id/metropolitan-district-council/leeds,Leeds City Council,30/09/2020,Resources and Housing,Civic Enterprise Leeds,Capital,TRANSPORT,4,18/09/2020,2009-00262,0.00,35940.86,C,Addison Motors Limited,No
Http://opendatacommunities.org/id/metropolitan-district-council/leeds,Leeds City Council,30/09/2020,Resources and Housing,Civic Enterprise Leeds,Capital,TRANSPORT,4,18/09/2020,2009-00263,0.00,35940.86,C,Addison Motors Limited,No
Http://opendatacommunities.org/id/metropolitan-district-council/leeds,Leeds City Council,30/09/2020,Resources and Housing,Commercial Services,Transport,Road Fund Licences,323,22/09/2020,2009-00264,0.00,320.00,R,Addison Motors Limited,No
Http://opendatacommunities.org/id/metropolitan-district-council/leeds,Leeds City Council,30/09/2020,Resources and Housing,Commercial Services,Transport,Road Fund Licences,323,22/09/2020,2009-00265,0.00,320.00,R,Addison Motors Limited,No
Http://opendatacommunities.org/id/metropolitan-district-council/leeds,Leeds City Council,30/09/2020,Adults and Health,Public Health,Third Party Payments,Public Health Commissioned Services,526,04/09/2020,2009-00266,0.00,828.20,R,Addlestone & Partners,No
Http://opendatacommunities.org/id/metropolitan-district-council/leeds,Leeds City Council,30/09/2020,Resources and Housing,Technology  ,Employees,Agency Staff,8,11/08/2020,2009-00267,0.00,46882.54,R,Adecco Alfred Marks,Yes
Http://opendatacommunities.org/id/metropolitan-district-council/leeds,Leeds City Council,30/09/2020,Resources and Housing,Technology  ,Employees,Agency Staff,8,25/08/2020,2009-00268,0.00,60129.98,R,Adecco Alfred Marks,Yes
Http://opendatacommunities.org/id/metropolitan-district-council/leeds,Leeds City Council,30/09/2020,City Development,Economic Development,Supplies and Services,Grants To Businesses,243,09/09/2020,2009-00269,0.00,1313.00,R,Adel Dental Practice,No
Http://opendatacommunities.org/id/metropolitan-district-council/leeds,Leeds City Council,30/09/2020,Children and Families,Social Care,Third Party Payments,Services Rendered By Voluntary Sector,505,02/09/2020,2009-00270,0.00,2059.20,R,ADEL PRE SCHOOL,No
Http://opendatacommunities.org/id/metropolitan-district-council/leeds,Leeds City Council,30/09/2020,Children and Families,Social Care,Third Party Payments,Services Rendered By Other Organisations,511,04/09/2020,2009-00271,0.00,3477.72,R,ADEL PRE SCHOOL,No
Http://opendatacommunities.org/id/metropolitan-district-council/leeds,Leeds City Council,30/09/2020,Children and Families,Social Care,Third Party Payments,Services Rendered By Voluntary Sector,505,17/09/2020,2009-00272,0.00,3831.58,R,ADEL PRE SCHOOL,No
Http://opendatacommunities.org/id/metropolitan-district-council/leeds,Leeds City Council,30/09/2020,City Development,Economic Development,Supplies and Services,Grants To Businesses,243,09/09/2020,2009-00273,0.00,4676.00,R,Adel Sports And Social Club,No
Http://opendatacommunities.org/id/metropolitan-district-council/leeds,Leeds City Council,30/09/2020,City Development,Recreation,Supplies and Services,Bought In Professional Services,277,30/09/2020,2009-00274,0.00,100.00,R,Adele Battersby,No
Http://opendatacommunities.org/id/metropolitan-district-council/leeds,Leeds City Council,30/09/2020,City Development,Recreation,Supplies and Services,Bought In Professional Services,277,30/09/2020,2009-00275,0.00,260.00,R,Adele Battersby,No
Http://opendatacommunities.org/id/metropolitan-district-council/leeds,Leeds City Council,30/09/2020,Children and Families,Social Care,Third Party Payments, Direct Work,549,09/09/2020,2009-00276,0.00,24.00,R,REDACTED PERSONAL DATA,No
Http://opendatacommunities.org/id/metropolitan-district-council/leeds,Leeds City Council,30/09/2020,Children and Families,Social Care,Third Party Payments,Services Rendered By Other Organisations,511,04/09/2020,2009-00277,0.00,854.10,R,REDACTED PERSONAL DATA,No
Http://opendatacommunities.org/id/metropolitan-district-council/leeds,Leeds City Council,30/09/2020,Children and Families,Social Care,Third Party Payments,Placement Support,550,17/09/2020,2009-00278,0.00,210.60,R,REDACTED PERSONAL DATA,No
Http://opendatacommunities.org/id/metropolitan-district-council/leeds,Leeds City Council,30/09/2020,City Development,Economic Development,Supplies and Services,Grants To Businesses,243,15/09/2020,2009-00279,0.00,5340.00,R,Aden Home Improvement,No
Http://opendatacommunities.org/id/metropolitan-district-council/leeds,Leeds City Council,30/09/2020,Resources and Housing,Leeds Building Services,Supplies and Services,Operational Materials,205,17/09/2020,2009-00280,0.00,372.90,R,ADI Global,No
Http://opendatacommunities.org/id/metropolitan-district-council/leeds,Leeds City Council,30/09/2020,Resources and Housing,Leeds Building Services,Supplies and Services,Operational Materials,205,21/09/2020,2009-00281,0.00,845.80,R,ADI Global,No
Http://opendatacommunities.org/id/metropolitan-district-council/leeds,Leeds City Council,30/09/2020,Resources and Housing,Leeds Building Services,Supplies and Services,Operational Materials,205,21/09/2020,2009-00282,0.00,394.45,R,ADI Global,No
Http://opendatacommunities.org/id/metropolitan-district-council/leeds,Leeds City Council,30/09/2020,Resources and Housing,Leeds Building Services,Supplies and Services,Operational Materials,205,21/09/2020,2009-00283,0.00,71.85,R,ADI Global,No
Http://opendatacommunities.org/id/metropolitan-district-council/leeds,Leeds City Council,30/09/2020,Resources and Housing,Leeds Building Services,Supplies and Services,Operational Materials,205,21/09/2020,2009-00284,0.00,406.05,R,ADI Global,No
Http://opendatacommunities.org/id/metropolitan-district-council/leeds,Leeds City Council,30/09/2020,Resources and Housing,Leeds Building Services,Supplies and Services,Operational Materials,205,21/09/2020,2009-00285,0.00,361.17,R,ADI Global,No
Http://opendatacommunities.org/id/metropolitan-district-council/leeds,Leeds City Council,30/09/2020,Resources and Housing,HRA Council Housing Growth Programme,Capital,LAND,1,03/09/2020,2009-00286,0.00,250.00,C,Adie Pepperdine Ltd,No
Http://opendatacommunities.org/id/metropolitan-district-council/leeds,Leeds City Council,30/09/2020,City Development,Libraries  Arts & Heritage  ,Supplies and Services,Computer Software & Equipment,214,02/08/2020,2009-00287,0.00,25.28,R,Adobe Creative Cloud,Yes
Http://opendatacommunities.org/id/metropolitan-district-council/leeds,Leeds City Council,30/09/2020,Children and Families,Social Care,Third Party Payments,Independent Fostering Agencies,509,04/09/2020,2009-00288,0.00,3689.00,R,Adolescent And Childrens Trust,No
Http://opendatacommunities.org/id/metropolitan-district-council/leeds,Leeds City Council,30/09/2020,Children and Families,Social Care,Third Party Payments,Independent Fostering Agencies,509,04/09/2020,2009-00289,0.00,3503.00,R,Adolescent And Childrens Trust,No
Http://opendatacommunities.org/id/metropolitan-district-council/leeds,Leeds City Council,30/09/2020,Children and Families,Social Care,Third Party Payments,Independent Fostering Agencies,509,04/09/2020,2009-00290,0.00,3503.00,R,Adolescent And Childrens Trust,No
Http://opendatacommunities.org/id/metropolitan-district-council/leeds,Leeds City Council,30/09/2020,Children and Families,Social Care,Third Party Payments,Independent Fostering Agencies,509,04/09/2020,2009-00291,0.00,3503.00,R,Adolescent And Childrens Trust,No
Http://opendatacommunities.org/id/metropolitan-district-council/leeds,Leeds City Council,30/09/2020,Children and Families,Social Care,Third Party Payments,Independent Fostering Agencies,509,04/09/2020,2009-00292,0.00,3689.00,R,Adolescent And Childrens Trust,No
Http://opendatacommunities.org/id/metropolitan-district-council/leeds,Leeds City Council,30/09/2020,Children and Families,Social Care,Third Party Payments,Independent Fostering Agencies,509,04/09/2020,2009-00293,0.00,3689.00,R,Adolescent And Childrens Trust,No
Http://opendatacommunities.org/id/metropolitan-district-council/leeds,Leeds City Council,30/09/2020,Children and Families,Social Care,Third Party Payments,Independent Fostering Agencies,509,04/09/2020,2009-00294,0.00,3503.00,R,Adolescent And Childrens Trust,No
Http://opendatacommunities.org/id/metropolitan-district-council/leeds,Leeds City Council,30/09/2020,Children and Families,Social Care,Third Party Payments,Independent Fostering Agencies,509,04/09/2020,2009-00295,0.00,3503.00,R,Adolescent And Childrens Trust,No
Http://opendatacommunities.org/id/metropolitan-district-council/leeds,Leeds City Council,30/09/2020,Children and Families,Social Care,Third Party Payments,Independent Fostering Agencies,509,04/09/2020,2009-00296,0.00,3503.00,R,Adolescent And Childrens Trust,No
Http://opendatacommunities.org/id/metropolitan-district-council/leeds,Leeds City Council,30/09/2020,Children and Families,Social Care,Third Party Payments,Independent Fostering Agencies,509,04/09/2020,2009-00297,0.00,3689.00,R,Adolescent And Childrens Trust,No
Http://opendatacommunities.org/id/metropolitan-district-council/leeds,Leeds City Council,30/09/2020,Children and Families,Social Care,Third Party Payments,Independent Fostering Agencies,509,04/09/2020,2009-00298,0.00,3503.00,R,Adolescent And Childrens Trust,No
Http://opendatacommunities.org/id/metropolitan-district-council/leeds,Leeds City Council,30/09/2020,Children and Families,Social Care,Third Party Payments,Independent Fostering Agencies,509,04/09/2020,2009-00299,0.00,4534.99,R,Adolescent And Childrens Trust,No
Http://opendatacommunities.org/id/metropolitan-district-council/leeds,Leeds City Council,30/09/2020,Children and Families,Social Care,Third Party Payments,Independent Fostering Agencies,509,04/09/2020,2009-00300,0.00,3689.00,R,Adolescent And Childrens Trust,No
Http://opendatacommunities.org/id/metropolitan-district-council/leeds,Leeds City Council,30/09/2020,Children and Families,Social Care,Third Party Payments,Independent Fostering Agencies,509,04/09/2020,2009-00301,0.00,3689.00,R,Adolescent And Childrens Trust,No
Http://opendatacommunities.org/id/metropolitan-district-council/leeds,Leeds City Council as Accountable Body,30/09/2020,Social Services Pooled Budgets,Jcs For People With Learning Disabilitie,Third Party Payments,Residential,580,07/09/2020,2009-00302,0.00,2609.36,R,ADRIAN HOUSE,No
Http://opendatacommunities.org/id/metropolitan-district-council/leeds,Leeds City Council as Accountable Body,30/09/2020,Social Services Pooled Budgets,Jcs For People With Learning Disabilitie,Third Party Payments,Residential,580,08/09/2020,2009-00303,0.00,2609.36,R,ADRIAN HOUSE,No
Http://opendatacommunities.org/id/metropolitan-district-council/leeds,Leeds City Council,30/09/2020,City Development,Economic Development,Supplies and Services,Grants To Businesses,243,09/09/2020,2009-00304,0.00,3195.00,R,Ads Fleet Services,No
Http://opendatacommunities.org/id/metropolitan-district-council/leeds,Leeds City Council as Accountable Body,30/09/2020,Social Services Pooled Budgets,Jcs For People With Learning Disabilitie,Third Party Payments,Home Care,568,02/09/2020,2009-00305,0.00,1332.24,R,Adult Placement Services,No
Http://opendatacommunities.org/id/metropolitan-district-council/leeds,Leeds City Council as Accountable Body,30/09/2020,Social Services Pooled Budgets,Jcs For People With Learning Disabilitie,Third Party Payments,Home Care,568,02/09/2020,2009-00306,0.00,1332.24,R,Adult Placement Services,No
Http://opendatacommunities.org/id/metropolitan-district-council/leeds,Leeds City Council as Accountable Body,30/09/2020,Social Services Pooled Budgets,Jcs For People With Learning Disabilitie,Third Party Payments,Home Care,568,02/09/2020,2009-00307,0.00,1332.24,R,Adult Placement Services,No
Http://opendatacommunities.org/id/metropolitan-district-council/leeds,Leeds City Council as Accountable Body,30/09/2020,Social Services Pooled Budgets,Jcs For People With Learning Disabilitie,Third Party Payments,Home Care,568,02/09/2020,2009-00308,0.00,823.81,R,Adult Placement Services,No
Http://opendatacommunities.org/id/metropolitan-district-council/leeds,Leeds City Council as Accountable Body,30/09/2020,Social Services Pooled Budgets,Jcs For People With Learning Disabilitie,Third Party Payments,Home Care,568,02/09/2020,2009-00309,0.00,406.90,R,Adult Placement Services,No
Http://opendatacommunities.org/id/metropolitan-district-council/leeds,Leeds City Council as Accountable Body,30/09/2020,Social Services Pooled Budgets,Jcs For People With Learning Disabilitie,Third Party Payments,Home Care,568,02/09/2020,2009-00310,0.00,813.80,R,Adult Placement Services,No
Http://opendatacommunities.org/id/metropolitan-district-council/leeds,Leeds City Council as Accountable Body,30/09/2020,Social Services Pooled Budgets,Jcs For People With Learning Disabilitie,Third Party Payments,Home Care,568,02/09/2020,2009-00311,0.00,333.06,R,Adult Placement Services,No
Http://opendatacommunities.org/id/metropolitan-district-council/leeds,Leeds City Council as Accountable Body,30/09/2020,Social Services Pooled Budgets,Jcs For People With Learning Disabilitie,Third Party Payments,Home Care,568,02/09/2020,2009-00312,0.00,823.81,R,Adult Placement Services,No
Http://opendatacommunities.org/id/metropolitan-district-council/leeds,Leeds City Council as Accountable Body,30/09/2020,Social Services Pooled Budgets,Jcs For People With Learning Disabilitie,Third Party Payments,Home Care,568,02/09/2020,2009-00313,0.00,895.18,R,Adult Placement Services,No
Http://opendatacommunities.org/id/metropolitan-district-council/leeds,Leeds City Council as Accountable Body,30/09/2020,Social Services Pooled Budgets,Jcs For People With Learning Disabilitie,Third Party Payments,Home Care,568,02/09/2020,2009-00314,0.00,773.11,R,Adult Placement Services,No
Http://opendatacommunities.org/id/metropolitan-district-council/leeds,Leeds City Council as Accountable Body,30/09/2020,Social Services Pooled Budgets,Jcs For People With Learning Disabilitie,Third Party Payments,Home Care,568,02/09/2020,2009-00315,0.00,935.87,R,Adult Placement Services,No
Http://opendatacommunities.org/id/metropolitan-district-council/leeds,Leeds City Council,30/09/2020,City Development,Economic Development,Supplies and Services,Grants To Businesses,243,16/09/2020,2009-00316,0.00,15000.00,R,Advanced Oral Care Ltd,No
Http://opendatacommunities.org/id/metropolitan-district-council/leeds,Leeds City Council,30/09/2020,Resources and Housing,HRA Council Housing Growth Programme,Capital,LAND,1,03/09/2020,2009-00317,0.00,64084.02,C,Advantage Property Lawyers,No
Http://opendatacommunities.org/id/metropolitan-district-council/leeds,Leeds City Council,30/09/2020,Resources and Housing,HRA Council Housing Growth Programme,Capital,LAND,1,16/09/2020,2009-00318,0.00,6293.63,C,Advantage Property Lawyers,No
Http://opendatacommunities.org/id/metropolitan-district-council/leeds,Leeds City Council,30/09/2020,City Development,Economic Development,Supplies and Services,Grants To Businesses,243,09/09/2020,2009-00319,0.00,4281.00,R,Adventure Photography Ltd,No
Http://opendatacommunities.org/id/metropolitan-district-council/leeds,Leeds City Council as Accountable Body,30/09/2020,Social Services Pooled Budgets,Jcs For People With Learning Disabilitie,Third Party Payments,Residential,580,16/09/2020,2009-00320,0.00,17134.76,R,ADVITAM LTD,No
Http://opendatacommunities.org/id/metropolitan-district-council/leeds,Leeds City Council as Accountable Body,30/09/2020,Social Services Pooled Budgets,Jcs For People With Learning Disabilitie,Supplies and Services,Other Hired And Contracted Services,265,10/09/2020,2009-00321,0.00,20.10,R,Advonet,No
Http://opendatacommunities.org/id/metropolitan-district-council/leeds,Leeds City Council,30/09/2020,Adults and Health,Services For Older People - 65 And Over,Third Party Payments,Payments To Voluntary Organisations,561,30/09/2020,2009-00322,0.00,105583.33,R,Advonet,No
Http://opendatacommunities.org/id/metropolitan-district-council/leeds,Leeds City Council,30/09/2020,Adults and Health,Services For Adults Under 65 Mental/Dis,Third Party Payments,Fees - Level 4,520,01/09/2020,2009-00323,0.00,198.00,R,AE BIA Assessments Limited,No
Http://opendatacommunities.org/id/metropolitan-district-council/leeds,Leeds City Council,30/09/2020,Adults and Health,Services For Adults Under 65 Mental/Dis,Third Party Payments,Fees - Level 4,520,01/09/2020,2009-00324,0.00,198.00,R,AE BIA Assessments Limited,No
Http://opendatacommunities.org/id/metropolitan-district-council/leeds,Leeds City Council,30/09/2020,Adults and Health,Services For Adults Under 65 Mental/Dis,Third Party Payments,Fees - Level 4,520,08/09/2020,2009-00325,0.00,198.00,R,AE BIA Assessments Limited,No
Http://opendatacommunities.org/id/metropolitan-district-council/leeds,Leeds City Council,30/09/2020,Adults and Health,Services For Adults Under 65 Mental/Dis,Third Party Payments,Fees - Level 4,520,14/09/2020,2009-00326,0.00,198.00,R,AE BIA Assessments Limited,No
Http://opendatacommunities.org/id/metropolitan-district-council/leeds,Leeds City Council,30/09/2020,Adults and Health,Services For Adults Under 65 Mental/Dis,Third Party Payments,Fees - Level 4,520,14/09/2020,2009-00327,0.00,198.00,R,AE BIA Assessments Limited,No
Http://opendatacommunities.org/id/metropolitan-district-council/leeds,Leeds City Council,30/09/2020,Adults and Health,Services For Adults Under 65 Mental/Dis,Third Party Payments,Fees - Level 4,520,14/09/2020,2009-00328,0.00,198.00,R,AE BIA Assessments Limited,No
Http://opendatacommunities.org/id/metropolitan-district-council/leeds,Leeds City Council,30/09/2020,Adults and Health,Services For Adults Under 65 Mental/Dis,Third Party Payments,Fees - Level 4,520,14/09/2020,2009-00329,0.00,198.00,R,AE BIA Assessments Limited,No
Http://opendatacommunities.org/id/metropolitan-district-council/leeds,Leeds City Council,30/09/2020,Adults and Health,Services For Adults Under 65 Mental/Dis,Third Party Payments,Fees - Level 4,520,14/09/2020,2009-00330,0.00,198.00,R,AE BIA Assessments Limited,No
Http://opendatacommunities.org/id/metropolitan-district-council/leeds,Leeds City Council,30/09/2020,Adults and Health,Services For Adults Under 65 Mental/Dis,Third Party Payments,Fees - Level 4,520,14/09/2020,2009-00331,0.00,198.00,R,AE BIA Assessments Limited,No
Http://opendatacommunities.org/id/metropolitan-district-council/leeds,Leeds City Council,30/09/2020,Adults and Health,Services For Adults Under 65 Mental/Dis,Third Party Payments,Fees - Level 4,520,18/09/2020,2009-00332,0.00,284.85,R,AE BIA Assessments Limited,No
Http://opendatacommunities.org/id/metropolitan-district-council/leeds,Leeds City Council,30/09/2020,Adults and Health,Services For Adults Under 65 Mental/Dis,Third Party Payments,Fees - Level 4,520,18/09/2020,2009-00333,0.00,198.00,R,AE BIA Assessments Limited,No
Http://opendatacommunities.org/id/metropolitan-district-council/leeds,Leeds City Council,30/09/2020,Adults and Health,Services For Adults Under 65 Mental/Dis,Third Party Payments,Fees - Level 4,520,21/09/2020,2009-00334,0.00,198.00,R,AE BIA Assessments Limited,No
Http://opendatacommunities.org/id/metropolitan-district-council/leeds,Leeds City Council,30/09/2020,City Development,Highways,Capital,OTHER COSTS,7,04/09/2020,2009-00335,0.00,72145.00,C,Aecom Limited,No
Http://opendatacommunities.org/id/metropolitan-district-council/leeds,Leeds City Council,30/09/2020,City Development,Highways,Capital,OTHER COSTS,7,10/09/2020,2009-00336,0.00,52794.02,C,Aecom Limited,No
Http://opendatacommunities.org/id/metropolitan-district-council/leeds,Leeds City Council,30/09/2020,City Development,Highways,Capital,OTHER COSTS,7,22/09/2020,2009-00337,0.00,52008.40,C,Aecom Limited,No
Http://opendatacommunities.org/id/metropolitan-district-council/leeds,Leeds City Council,30/09/2020,Adults and Health,Services For Adults Under 65 Mental/Dis,Third Party Payments,Home Care,568,03/09/2020,2009-00338,0.00,2006.13,R,Aegis Care Solutions Ltd,No
Http://opendatacommunities.org/id/metropolitan-district-council/leeds,Leeds City Council,30/09/2020,Adults and Health,Services For Adults Under 65 Mental/Dis,Third Party Payments,Home Care,568,03/09/2020,2009-00339,0.00,727.10,R,Aegis Care Solutions Ltd,No
Http://opendatacommunities.org/id/metropolitan-district-council/leeds,Leeds City Council,30/09/2020,Adults and Health,Services For Adults Under 65 Mental/Dis,Third Party Payments,Home Care,568,03/09/2020,2009-00340,0.00,4159.20,R,Aegis Care Solutions Ltd,No
Http://opendatacommunities.org/id/metropolitan-district-council/leeds,Leeds City Council,30/09/2020,Adults and Health,Services For Adults Under 65 Mental/Dis,Third Party Payments,Home Care,568,03/09/2020,2009-00341,0.00,896.20,R,Aegis Care Solutions Ltd,No
Http://opendatacommunities.org/id/metropolitan-district-council/leeds,Leeds City Council,30/09/2020,Adults and Health,Services For Adults Under 65 Mental/Dis,Third Party Payments,Home Care,568,03/09/2020,2009-00342,0.00,1215.90,R,Aegis Care Solutions Ltd,No
Http://opendatacommunities.org/id/metropolitan-district-council/leeds,Leeds City Council,30/09/2020,Adults and Health,Services For Adults Under 65 Mental/Dis,Third Party Payments,Home Care,568,03/09/2020,2009-00343,0.00,1597.70,R,Aegis Care Solutions Ltd,No
Http://opendatacommunities.org/id/metropolitan-district-council/leeds,Leeds City Council,30/09/2020,Adults and Health,Services For Adults Under 65 Mental/Dis,Third Party Payments,Home Care,568,03/09/2020,2009-00344,0.00,356.00,R,Aegis Care Solutions Ltd,No
Http://opendatacommunities.org/id/metropolitan-district-council/leeds,Leeds City Council,30/09/2020,Adults and Health,Services For Adults Under 65 Mental/Dis,Third Party Payments,Home Care,568,03/09/2020,2009-00345,0.00,480.60,R,Aegis Care Solutions Ltd,No
Http://opendatacommunities.org/id/metropolitan-district-council/leeds,Leeds City Council,30/09/2020,Adults and Health,Services For Adults Under 65 Mental/Dis,Third Party Payments,Home Care,568,03/09/2020,2009-00346,0.00,1002.30,R,Aegis Care Solutions Ltd,No
Http://opendatacommunities.org/id/metropolitan-district-council/leeds,Leeds City Council,30/09/2020,Adults and Health,Services For Adults Under 65 Mental/Dis,Third Party Payments,Home Care,568,03/09/2020,2009-00347,0.00,703.10,R,Aegis Care Solutions Ltd,No
Http://opendatacommunities.org/id/metropolitan-district-council/leeds,Leeds City Council,30/09/2020,Adults and Health,Services For Older People - 65 And Over,Third Party Payments,Home Care,568,16/09/2020,2009-00348,0.00,10838.90,R,Aegis Care Solutions Ltd,No
Http://opendatacommunities.org/id/metropolitan-district-council/leeds,Leeds City Council,30/09/2020,Adults and Health,Services For Older People - 65 And Over,Third Party Payments,HCAIT Other,577,16/09/2020,2009-00349,0.00,306.40,R,Aegis Care Solutions Ltd,No
Http://opendatacommunities.org/id/metropolitan-district-council/leeds,Leeds City Council,30/09/2020,Adults and Health,Services For Older People Under 65 P/Dis,Third Party Payments,Home Care,568,16/09/2020,2009-00350,0.00,4093.60,R,Aegis Care Solutions Ltd,No
Http://opendatacommunities.org/id/metropolitan-district-council/leeds,Leeds City Council as Accountable Body,30/09/2020,Social Services Pooled Budgets,Jcs For People With Learning Disabilitie,Third Party Payments,Home Care,568,16/09/2020,2009-00351,0.00,2436.00,R,Aegis Care Solutions Ltd,No
Http://opendatacommunities.org/id/metropolitan-district-council/leeds,Leeds City Council,30/09/2020,City Development,Economic Development,Supplies and Services,Grants To Businesses,243,09/09/2020,2009-00352,0.00,3837.00,R,Aerotech Abrasives Group,No
Http://opendatacommunities.org/id/metropolitan-district-council/leeds,Leeds City Council as Accountable Body,30/09/2020,Social Services Pooled Budgets,Jcs For People With Learning Disabilitie,Third Party Payments,Home Care,568,02/09/2020,2009-00353,0.00,1613.28,R,Affinity Trust,No
Http://opendatacommunities.org/id/metropolitan-district-council/leeds,Leeds City Council,30/09/2020,Adults and Health,Services For Adults Under 65 Mental/Dis,Third Party Payments,Home Care,568,02/09/2020,2009-00354,0.00,511.36,R,Affinity Trust,No
Http://opendatacommunities.org/id/metropolitan-district-council/leeds,Leeds City Council,30/09/2020,Adults and Health,Services For Older People Under 65 P/Dis,Third Party Payments,Day Centre,564,03/09/2020,2009-00355,0.00,537.32,R,Affinity Trust,No
Http://opendatacommunities.org/id/metropolitan-district-council/leeds,Leeds City Council,30/09/2020,Adults and Health,Services For Older People Under 65 P/Dis,Third Party Payments,Home Care,568,03/09/2020,2009-00356,0.00,1227.86,R,Affinity Trust,No
Http://opendatacommunities.org/id/metropolitan-district-council/leeds,Leeds City Council,30/09/2020,Adults and Health,Services For Older People - 65 And Over,Third Party Payments,Home Care,568,03/09/2020,2009-00357,0.00,511.36,R,Affinity Trust,No
Http://opendatacommunities.org/id/metropolitan-district-council/leeds,Leeds City Council as Accountable Body,30/09/2020,Social Services Pooled Budgets,Jcs For People With Learning Disabilitie,Third Party Payments,Day Centre,564,04/09/2020,2009-00358,0.00,1440.00,R,Affinity Trust,No
Http://opendatacommunities.org/id/metropolitan-district-council/leeds,Leeds City Council as Accountable Body,30/09/2020,Social Services Pooled Budgets,Jcs For People With Learning Disabilitie,Third Party Payments,Home Care,568,04/09/2020,2009-00359,0.00,1080.00,R,Affinity Trust,No
Http://opendatacommunities.org/id/metropolitan-district-council/leeds,Leeds City Council as Accountable Body,30/09/2020,Social Services Pooled Budgets,Jcs For People With Learning Disabilitie,Third Party Payments,Day Centre,564,04/09/2020,2009-00360,0.00,720.00,R,Affinity Trust,No
Http://opendatacommunities.org/id/metropolitan-district-council/leeds,Leeds City Council as Accountable Body,30/09/2020,Social Services Pooled Budgets,Jcs For People With Learning Disabilitie,Third Party Payments,Home Care,568,04/09/2020,2009-00361,0.00,1560.00,R,Affinity Trust,No
Http://opendatacommunities.org/id/metropolitan-district-council/leeds,Leeds City Council as Accountable Body,30/09/2020,Social Services Pooled Budgets,Jcs For People With Learning Disabilitie,Third Party Payments,Home Care,568,04/09/2020,2009-00362,0.00,2640.00,R,Affinity Trust,No
Http://opendatacommunities.org/id/metropolitan-district-council/leeds,Leeds City Council as Accountable Body,30/09/2020,Social Services Pooled Budgets,Jcs For People With Learning Disabilitie,Third Party Payments,Home Care,568,04/09/2020,2009-00363,0.00,2011.20,R,Affinity Trust,No
Http://opendatacommunities.org/id/metropolitan-district-council/leeds,Leeds City Council as Accountable Body,30/09/2020,Social Services Pooled Budgets,Jcs For People With Learning Disabilitie,Third Party Payments,Home Care,568,04/09/2020,2009-00364,0.00,1980.00,R,Affinity Trust,No
Http://opendatacommunities.org/id/metropolitan-district-council/leeds,Leeds City Council as Accountable Body,30/09/2020,Social Services Pooled Budgets,Jcs For People With Learning Disabilitie,Third Party Payments,Day Centre,564,04/09/2020,2009-00365,0.00,1080.00,R,Affinity Trust,No
Http://opendatacommunities.org/id/metropolitan-district-council/leeds,Leeds City Council as Accountable Body,30/09/2020,Social Services Pooled Budgets,Jcs For People With Learning Disabilitie,Third Party Payments,Day Centre,564,04/09/2020,2009-00366,0.00,2031.48,R,Affinity Trust,No
Http://opendatacommunities.org/id/metropolitan-district-council/leeds,Leeds City Council as Accountable Body,30/09/2020,Social Services Pooled Budgets,Jcs For People With Learning Disabilitie,Third Party Payments,Home Care,568,04/09/2020,2009-00367,0.00,770.96,R,Affinity Trust,No
Http://opendatacommunities.org/id/metropolitan-district-council/leeds,Leeds City Council as Accountable Body,30/09/2020,Social Services Pooled Budgets,Jcs For People With Learning Disabilitie,Third Party Payments,Home Care,568,04/09/2020,2009-00368,0.00,3446.80,R,Affinity Trust,No
Http://opendatacommunities.org/id/metropolitan-district-council/leeds,Leeds City Council as Accountable Body,30/09/2020,Social Services Pooled Budgets,Jcs For People With Learning Disabilitie,Third Party Payments,Day Centre,564,04/09/2020,2009-00369,0.00,525.72,R,Affinity Trust,No
Http://opendatacommunities.org/id/metropolitan-district-council/leeds,Leeds City Council as Accountable Body,30/09/2020,Social Services Pooled Budgets,Jcs For People With Learning Disabilitie,Third Party Payments,Home Care,568,04/09/2020,2009-00370,0.00,1613.28,R,Affinity Trust,No
Http://opendatacommunities.org/id/metropolitan-district-council/leeds,Leeds City Council as Accountable Body,30/09/2020,Social Services Pooled Budgets,Jcs For People With Learning Disabilitie,Third Party Payments,Home Care,568,04/09/2020,2009-00371,0.00,804.48,R,Affinity Trust,No
Http://opendatacommunities.org/id/metropolitan-district-council/leeds,Leeds City Council as Accountable Body,30/09/2020,Social Services Pooled Budgets,Jcs For People With Learning Disabilitie,Third Party Payments,Home Care,568,04/09/2020,2009-00372,0.00,1504.72,R,Affinity Trust,No
Http://opendatacommunities.org/id/metropolitan-district-council/leeds,Leeds City Council as Accountable Body,30/09/2020,Social Services Pooled Budgets,Jcs For People With Learning Disabilitie,Third Party Payments,Home Care,568,04/09/2020,2009-00373,0.00,1800.00,R,Affinity Trust,No
Http://opendatacommunities.org/id/metropolitan-district-council/leeds,Leeds City Council as Accountable Body,30/09/2020,Social Services Pooled Budgets,Jcs For People With Learning Disabilitie,Third Party Payments,Home Care,568,04/09/2020,2009-00374,0.00,1005.60,R,Affinity Trust,No
Http://opendatacommunities.org/id/metropolitan-district-council/leeds,Leeds City Council as Accountable Body,30/09/2020,Social Services Pooled Budgets,Jcs For People With Learning Disabilitie,Third Party Payments,Home Care,568,04/09/2020,2009-00375,0.00,360.00,R,Affinity Trust,No
Http://opendatacommunities.org/id/metropolitan-district-council/leeds,Leeds City Council as Accountable Body,30/09/2020,Social Services Pooled Budgets,Jcs For People With Learning Disabilitie,Third Party Payments,Day Centre,564,04/09/2020,2009-00376,0.00,714.78,R,Affinity Trust,No
Http://opendatacommunities.org/id/metropolitan-district-council/leeds,Leeds City Council as Accountable Body,30/09/2020,Social Services Pooled Budgets,Jcs For People With Learning Disabilitie,Third Party Payments,Home Care,568,04/09/2020,2009-00377,0.00,2346.40,R,Affinity Trust,No
Http://opendatacommunities.org/id/metropolitan-district-council/leeds,Leeds City Council as Accountable Body,30/09/2020,Social Services Pooled Budgets,Jcs For People With Learning Disabilitie,Third Party Payments,Day Centre,564,04/09/2020,2009-00378,0.00,1440.00,R,Affinity Trust,No
Http://opendatacommunities.org/id/metropolitan-district-council/leeds,Leeds City Council as Accountable Body,30/09/2020,Social Services Pooled Budgets,Jcs For People With Learning Disabilitie,Third Party Payments,Home Care,568,04/09/2020,2009-00379,0.00,336.40,R,Affinity Trust,No
Http://opendatacommunities.org/id/metropolitan-district-council/leeds,Leeds City Council,30/09/2020,Adults and Health,Services For Older People Under 65 P/Dis,Third Party Payments,Home Care,568,09/09/2020,2009-00380,0.00,1143.76,R,Affinity Trust,No
Http://opendatacommunities.org/id/metropolitan-district-council/leeds,Leeds City Council as Accountable Body,30/09/2020,Social Services Pooled Budgets,Jcs For People With Learning Disabilitie,Third Party Payments,Home Care,568,10/09/2020,2009-00381,0.00,1342.32,R,Affinity Trust,No
Http://opendatacommunities.org/id/metropolitan-district-council/leeds,Leeds City Council as Accountable Body,30/09/2020,Social Services Pooled Budgets,Jcs For People With Learning Disabilitie,Third Party Payments,Home Care,568,10/09/2020,2009-00382,0.00,575.28,R,Affinity Trust,No
Http://opendatacommunities.org/id/metropolitan-district-council/leeds,Leeds City Council as Accountable Body,30/09/2020,Social Services Pooled Budgets,Jcs For People With Learning Disabilitie,Third Party Payments,Home Care,568,10/09/2020,2009-00383,0.00,2040.00,R,Affinity Trust,No
Http://opendatacommunities.org/id/metropolitan-district-council/leeds,Leeds City Council as Accountable Body,30/09/2020,Social Services Pooled Budgets,Jcs For People With Learning Disabilitie,Third Party Payments,Home Care,568,10/09/2020,2009-00384,0.00,990.76,R,Affinity Trust,No
Http://opendatacommunities.org/id/metropolitan-district-council/leeds,Leeds City Council as Accountable Body,30/09/2020,Social Services Pooled Budgets,Jcs For People With Learning Disabilitie,Third Party Payments,Day Centre,564,10/09/2020,2009-00385,0.00,416.64,R,Affinity Trust,No
Http://opendatacommunities.org/id/metropolitan-district-council/leeds,Leeds City Council as Accountable Body,30/09/2020,Social Services Pooled Budgets,Jcs For People With Learning Disabilitie,Third Party Payments,Home Care,568,10/09/2020,2009-00386,0.00,1377.75,R,Affinity Trust,No
Http://opendatacommunities.org/id/metropolitan-district-council/leeds,Leeds City Council as Accountable Body,30/09/2020,Social Services Pooled Budgets,Jcs For People With Learning Disabilitie,Third Party Payments,Home Care,568,10/09/2020,2009-00387,0.00,1211.04,R,Affinity Trust,No
Http://opendatacommunities.org/id/metropolitan-district-council/leeds,Leeds City Council as Accountable Body,30/09/2020,Social Services Pooled Budgets,Jcs For People With Learning Disabilitie,Third Party Payments,Home Care,568,10/09/2020,2009-00388,0.00,639.20,R,Affinity Trust,No
Http://opendatacommunities.org/id/metropolitan-district-council/leeds,Leeds City Council as Accountable Body,30/09/2020,Social Services Pooled Budgets,Jcs For People With Learning Disabilitie,Third Party Payments,Day Centre,564,10/09/2020,2009-00389,0.00,639.20,R,Affinity Trust,No
Http://opendatacommunities.org/id/metropolitan-district-council/leeds,Leeds City Council as Accountable Body,30/09/2020,Social Services Pooled Budgets,Jcs For People With Learning Disabilitie,Third Party Payments,Home Care,568,10/09/2020,2009-00390,0.00,408.00,R,Affinity Trust,No
Http://opendatacommunities.org/id/metropolitan-district-council/leeds,Leeds City Council as Accountable Body,30/09/2020,Social Services Pooled Budgets,Jcs For People With Learning Disabilitie,Third Party Payments,Home Care,568,10/09/2020,2009-00391,0.00,1086.64,R,Affinity Trust,No
Http://opendatacommunities.org/id/metropolitan-district-council/leeds,Leeds City Council as Accountable Body,30/09/2020,Social Services Pooled Budgets,Jcs For People With Learning Disabilitie,Third Party Payments,Home Care,568,10/09/2020,2009-00392,0.00,4042.94,R,Affinity Trust,No
Http://opendatacommunities.org/id/metropolitan-district-council/leeds,Leeds City Council as Accountable Body,30/09/2020,Social Services Pooled Budgets,Jcs For People With Learning Disabilitie,Third Party Payments,Home Care,568,10/09/2020,2009-00393,0.00,408.64,R,Affinity Trust,No
Http://opendatacommunities.org/id/metropolitan-district-council/leeds,Leeds City Council as Accountable Body,30/09/2020,Social Services Pooled Budgets,Jcs For People With Learning Disabilitie,Third Party Payments,Home Care,568,10/09/2020,2009-00394,0.00,941.92,R,Affinity Trust,No
Http://opendatacommunities.org/id/metropolitan-district-council/leeds,Leeds City Council as Accountable Body,30/09/2020,Social Services Pooled Budgets,Jcs For People With Learning Disabilitie,Third Party Payments,Home Care,568,10/09/2020,2009-00395,0.00,958.80,R,Affinity Trust,No
Http://opendatacommunities.org/id/metropolitan-district-council/leeds,Leeds City Council as Accountable Body,30/09/2020,Social Services Pooled Budgets,Jcs For People With Learning Disabilitie,Third Party Payments,Home Care,568,10/09/2020,2009-00396,0.00,767.04,R,Affinity Trust,No
Http://opendatacommunities.org/id/metropolitan-district-council/leeds,Leeds City Council as Accountable Body,30/09/2020,Social Services Pooled Budgets,Jcs For People With Learning Disabilitie,Third Party Payments,Home Care,568,10/09/2020,2009-00397,0.00,639.20,R,Affinity Trust,No
Http://opendatacommunities.org/id/metropolitan-district-council/leeds,Leeds City Council as Accountable Body,30/09/2020,Social Services Pooled Budgets,Jcs For People With Learning Disabilitie,Third Party Payments,Home Care,568,10/09/2020,2009-00398,0.00,255.68,R,Affinity Trust,No
Http://opendatacommunities.org/id/metropolitan-district-council/leeds,Leeds City Council as Accountable Body,30/09/2020,Social Services Pooled Budgets,Jcs For People With Learning Disabilitie,Third Party Payments,Home Care,568,10/09/2020,2009-00399,0.00,319.60,R,Affinity Trust,No
Http://opendatacommunities.org/id/metropolitan-district-council/leeds,Leeds City Council as Accountable Body,30/09/2020,Social Services Pooled Budgets,Jcs For People With Learning Disabilitie,Third Party Payments,Home Care,568,10/09/2020,2009-00400,0.00,420.00,R,Affinity Trust,No
Http://opendatacommunities.org/id/metropolitan-district-council/leeds,Leeds City Council as Accountable Body,30/09/2020,Social Services Pooled Budgets,Jcs For People With Learning Disabilitie,Third Party Payments,Home Care,568,16/09/2020,2009-00401,0.00,319.60,R,Affinity Trust,No
Http://opendatacommunities.org/id/metropolitan-district-council/leeds,Leeds City Council,30/09/2020,Adults and Health,Services For Adults Under 65 Mental/Dis,Third Party Payments,HCAIT Community Support,575,16/09/2020,2009-00402,0.00,336.40,R,Affinity Trust,No
Http://opendatacommunities.org/id/metropolitan-district-council/leeds,Leeds City Council as Accountable Body,30/09/2020,Social Services Pooled Budgets,Jcs For People With Learning Disabilitie,Third Party Payments,Home Care,568,16/09/2020,2009-00403,0.00,319.60,R,Affinity Trust,No
Http://opendatacommunities.org/id/metropolitan-district-council/leeds,Leeds City Council,30/09/2020,Adults and Health,Services For Adults Under 65 Mental/Dis,Third Party Payments,HCAIT Community Support,575,16/09/2020,2009-00404,0.00,336.40,R,Affinity Trust,No
Http://opendatacommunities.org/id/metropolitan-district-council/leeds,Leeds City Council,30/09/2020,Adults and Health,Services For Older People Under 65 P/Dis,Third Party Payments,Day Centre,564,24/09/2020,2009-00405,0.00,537.32,R,Affinity Trust,No
Http://opendatacommunities.org/id/metropolitan-district-council/leeds,Leeds City Council as Accountable Body,30/09/2020,Social Services Pooled Budgets,Jcs For People With Learning Disabilitie,Third Party Payments,Home Care,568,28/09/2020,2009-00406,0.00,1613.28,R,Affinity Trust,No
Http://opendatacommunities.org/id/metropolitan-district-council/leeds,Leeds City Council as Accountable Body,30/09/2020,Social Services Pooled Budgets,Jcs For People With Learning Disabilitie,Third Party Payments,Day Centre,564,30/09/2020,2009-00407,0.00,639.20,R,Affinity Trust,No
Http://opendatacommunities.org/id/metropolitan-district-council/leeds,Leeds City Council as Accountable Body,30/09/2020,Social Services Pooled Budgets,Jcs For People With Learning Disabilitie,Third Party Payments,Home Care,568,30/09/2020,2009-00408,0.00,1177.40,R,Affinity Trust,No
Http://opendatacommunities.org/id/metropolitan-district-council/leeds,Leeds City Council as Accountable Body,30/09/2020,Social Services Pooled Budgets,Jcs For People With Learning Disabilitie,Third Party Payments,Home Care,568,30/09/2020,2009-00409,0.00,958.80,R,Affinity Trust,No
Http://opendatacommunities.org/id/metropolitan-district-council/leeds,Leeds City Council as Accountable Body,30/09/2020,Social Services Pooled Budgets,Jcs For People With Learning Disabilitie,Third Party Payments,Home Care,568,30/09/2020,2009-00410,0.00,111.86,R,Affinity Trust,No
Http://opendatacommunities.org/id/metropolitan-district-council/leeds,Leeds City Council,30/09/2020,Adults and Health,Services For Older People Under 65 P/Dis,Third Party Payments,Sheltered Accommodation,569,16/09/2020,2009-00411,0.00,8290.80,R,Affinity Trust North Divisional Office,No
Http://opendatacommunities.org/id/metropolitan-district-council/leeds,Leeds City Council as Accountable Body,30/09/2020,Social Services Pooled Budgets,Jcs For People With Learning Disabilitie,Third Party Payments,Sheltered Accommodation,569,16/09/2020,2009-00412,0.00,120021.80,R,Affinity Trust North Divisional Office,No
Http://opendatacommunities.org/id/metropolitan-district-council/leeds,Leeds City Council,30/09/2020,Communities and Environment,Parks and Countryside  ,Transport,Hire Of Movable Plant & Machinery,315,04/08/2020,2009-00413,0.00,135.00,R,Afi Uplift,Yes
Http://opendatacommunities.org/id/metropolitan-district-council/leeds,Leeds City Council,30/09/2020,Communities and Environment,Parks and Countryside  ,Transport,Hire Of Movable Plant & Machinery,315,04/08/2020,2009-00414,0.00,100.00,R,Afi Uplift,Yes
Http://opendatacommunities.org/id/metropolitan-district-council/leeds,Leeds City Council,30/09/2020,Communities and Environment,Parks and Countryside  ,Transport,Hire Of Movable Plant & Machinery,315,04/08/2020,2009-00415,0.00,100.00,R,Afi Uplift,Yes
Http://opendatacommunities.org/id/metropolitan-district-council/leeds,Leeds City Council,30/09/2020,Communities and Environment,Parks and Countryside  ,Transport,External Hire -Occasional,304,04/08/2020,2009-00416,0.00,950.00,R,Afi Uplift,Yes
Http://opendatacommunities.org/id/metropolitan-district-council/leeds,Leeds City Council,30/09/2020,Communities and Environment,Parks and Countryside  ,Transport,External Hire -Occasional,304,04/08/2020,2009-00417,0.00,950.00,R,Afi Uplift,Yes
Http://opendatacommunities.org/id/metropolitan-district-council/leeds,Leeds City Council,30/09/2020,Communities and Environment,Parks and Countryside  ,Transport,External Hire -Occasional,304,04/08/2020,2009-00418,0.00,950.00,R,Afi Uplift,Yes
Http://opendatacommunities.org/id/metropolitan-district-council/leeds,Leeds City Council,30/09/2020,Communities and Environment,Parks and Countryside  ,Transport,Hire Of Movable Plant & Machinery,315,04/08/2020,2009-00419,0.00,100.00,R,Afi Uplift,Yes
Http://opendatacommunities.org/id/metropolitan-district-council/leeds,Leeds City Council,30/09/2020,Communities and Environment,Parks and Countryside  ,Transport,External Hire -Occasional,304,04/08/2020,2009-00420,0.00,950.00,R,Afi Uplift,Yes
Http://opendatacommunities.org/id/metropolitan-district-council/leeds,Leeds City Council,30/09/2020,Communities and Environment,Parks and Countryside  ,Transport,Hire Of Movable Plant & Machinery,315,04/08/2020,2009-00421,0.00,100.00,R,Afi Uplift,Yes
Http://opendatacommunities.org/id/metropolitan-district-council/leeds,Leeds City Council,30/09/2020,Communities and Environment,Parks and Countryside  ,Transport,External Hire -Occasional,304,04/08/2020,2009-00422,0.00,950.00,R,Afi Uplift,Yes
Http://opendatacommunities.org/id/metropolitan-district-council/leeds,Leeds City Council,30/09/2020,City Development,Economic Development,Supplies and Services,Grants To Businesses,243,09/09/2020,2009-00423,0.00,4500.00,R,After The Bell,No
Http://opendatacommunities.org/id/metropolitan-district-council/leeds,Leeds City Council,30/09/2020,Communities and Environment,Parks and Countryside  ,Premises,Maintenance Of Buildings,101,20/08/2020,2009-00424,0.00,156.00,R,Agrovista UK Ltd,Yes
Http://opendatacommunities.org/id/metropolitan-district-council/leeds,Leeds City Council,30/09/2020,City Development,Economic Development,Supplies and Services,Grants To Businesses,243,09/09/2020,2009-00425,0.00,278.00,R,Ahead Partnership Ltd,No
Http://opendatacommunities.org/id/metropolitan-district-council/leeds,Leeds City Council,30/09/2020,Communities and Environment,Customer Access,Supplies and Services,Bought In Professional Services,277,09/09/2020,2009-00426,0.00,27.00,R,Ahmed Moustafa Moustafa Mousa,No
Http://opendatacommunities.org/id/metropolitan-district-council/leeds,Leeds City Council,30/09/2020,Communities and Environment,Customer Access,Supplies and Services,Bought In Professional Services,277,23/09/2020,2009-00427,0.00,40.50,R,Ahmed Moustafa Moustafa Mousa,No
Http://opendatacommunities.org/id/metropolitan-district-council/leeds,Leeds City Council,30/09/2020,Communities and Environment,Customer Access,Supplies and Services,Bought In Professional Services,277,23/09/2020,2009-00428,0.00,14.10,R,Ahmed Moustafa Moustafa Mousa,No
Http://opendatacommunities.org/id/metropolitan-district-council/leeds,Leeds City Council,30/09/2020,Communities and Environment,Customer Access,Supplies and Services,Bought In Professional Services,277,30/09/2020,2009-00429,0.00,9.00,R,Ahmed Moustafa Moustafa Mousa,No
Http://opendatacommunities.org/id/metropolitan-district-council/leeds,Leeds City Council,30/09/2020,Adults and Health,Services For Adults Under 65 Mental/Dis,Supplies and Services,Office Consumables,210,01/09/2020,2009-00430,0.00,99.95,R,AIDAPT BATHROOMS LTD,No
Http://opendatacommunities.org/id/metropolitan-district-council/leeds,Leeds City Council,30/09/2020,Adults and Health,Services For Adults Under 65 Mental/Dis,Supplies and Services,Office Consumables,210,01/09/2020,2009-00431,0.00,379.81,R,AIDAPT BATHROOMS LTD,No
Http://opendatacommunities.org/id/metropolitan-district-council/leeds,Leeds City Council,30/09/2020,Adults and Health,Services For Adults Under 65 Mental/Dis,Supplies and Services,Office Consumables,210,01/09/2020,2009-00432,0.00,399.80,R,AIDAPT BATHROOMS LTD,No
Http://opendatacommunities.org/id/metropolitan-district-council/leeds,Leeds City Council,30/09/2020,Adults and Health,Services For Adults Under 65 Mental/Dis,Supplies and Services,Office Consumables,210,01/09/2020,2009-00433,0.00,279.86,R,AIDAPT BATHROOMS LTD,No
Http://opendatacommunities.org/id/metropolitan-district-council/leeds,Leeds City Council as Accountable Body,30/09/2020,Social Services Pooled Budgets,Leeds Community Equip Store Pooled Budgt,Supplies and Services,Other Equipment,203,01/09/2020,2009-00434,0.00,773.70,R,AIDAPT BATHROOMS LTD,No
Http://opendatacommunities.org/id/metropolitan-district-council/leeds,Leeds City Council as Accountable Body,30/09/2020,Social Services Pooled Budgets,Leeds Community Equip Store Pooled Budgt,Supplies and Services,Other Equipment,203,01/09/2020,2009-00435,0.00,1999.68,R,AIDAPT BATHROOMS LTD,No
Http://opendatacommunities.org/id/metropolitan-district-council/leeds,Leeds City Council,30/09/2020,Adults and Health,Services For Adults Under 65 Mental/Dis,Supplies and Services,Office Consumables,210,01/09/2020,2009-00436,0.00,19.99,R,AIDAPT BATHROOMS LTD,No
Http://opendatacommunities.org/id/metropolitan-district-council/leeds,Leeds City Council as Accountable Body,30/09/2020,Social Services Pooled Budgets,Leeds Community Equip Store Pooled Budgt,Supplies and Services,Other Equipment,203,01/09/2020,2009-00437,0.00,722.12,R,AIDAPT BATHROOMS LTD,No
Http://opendatacommunities.org/id/metropolitan-district-council/leeds,Leeds City Council as Accountable Body,30/09/2020,Social Services Pooled Budgets,Leeds Community Equip Store Pooled Budgt,Supplies and Services,Other Equipment,203,01/09/2020,2009-00438,0.00,1519.75,R,AIDAPT BATHROOMS LTD,No
Http://opendatacommunities.org/id/metropolitan-district-council/leeds,Leeds City Council as Accountable Body,30/09/2020,Social Services Pooled Budgets,Leeds Community Equip Store Pooled Budgt,Supplies and Services,Other Equipment,203,01/09/2020,2009-00439,0.00,302.00,R,AIDAPT BATHROOMS LTD,No
Http://opendatacommunities.org/id/metropolitan-district-council/leeds,Leeds City Council as Accountable Body,30/09/2020,Social Services Pooled Budgets,Leeds Community Equip Store Pooled Budgt,Supplies and Services,Other Equipment,203,01/09/2020,2009-00440,0.00,386.85,R,AIDAPT BATHROOMS LTD,No
Http://opendatacommunities.org/id/metropolitan-district-council/leeds,Leeds City Council as Accountable Body,30/09/2020,Social Services Pooled Budgets,Leeds Community Equip Store Pooled Budgt,Supplies and Services,Other Equipment,203,01/09/2020,2009-00441,0.00,1278.00,R,AIDAPT BATHROOMS LTD,No
Http://opendatacommunities.org/id/metropolitan-district-council/leeds,Leeds City Council as Accountable Body,30/09/2020,Social Services Pooled Budgets,Leeds Community Equip Store Pooled Budgt,Supplies and Services,Other Equipment,203,01/09/2020,2009-00442,0.00,1430.00,R,AIDAPT BATHROOMS LTD,No
Http://opendatacommunities.org/id/metropolitan-district-council/leeds,Leeds City Council as Accountable Body,30/09/2020,Social Services Pooled Budgets,Leeds Community Equip Store Pooled Budgt,Supplies and Services,Other Equipment,203,02/09/2020,2009-00443,0.00,1326.95,R,AIDAPT BATHROOMS LTD,No
Http://opendatacommunities.org/id/metropolitan-district-council/leeds,Leeds City Council as Accountable Body,30/09/2020,Social Services Pooled Budgets,Leeds Community Equip Store Pooled Budgt,Supplies and Services,Other Equipment,203,04/09/2020,2009-00444,0.00,-418.00,R,AIDAPT BATHROOMS LTD,No
Http://opendatacommunities.org/id/metropolitan-district-council/leeds,Leeds City Council as Accountable Body,30/09/2020,Social Services Pooled Budgets,Leeds Community Equip Store Pooled Budgt,Supplies and Services,Other Equipment,203,04/09/2020,2009-00445,0.00,3360.50,R,AIDAPT BATHROOMS LTD,No
Http://opendatacommunities.org/id/metropolitan-district-council/leeds,Leeds City Council as Accountable Body,30/09/2020,Social Services Pooled Budgets,Leeds Community Equip Store Pooled Budgt,Supplies and Services,Other Equipment,203,11/09/2020,2009-00446,0.00,198.00,R,AIDAPT BATHROOMS LTD,No
Http://opendatacommunities.org/id/metropolitan-district-council/leeds,Leeds City Council as Accountable Body,30/09/2020,Social Services Pooled Budgets,Leeds Community Equip Store Pooled Budgt,Supplies and Services,Other Equipment,203,28/09/2020,2009-00447,0.00,3259.78,R,AIDAPT BATHROOMS LTD,No
Http://opendatacommunities.org/id/metropolitan-district-council/leeds,Leeds City Council as Accountable Body,30/09/2020,Social Services Pooled Budgets,Leeds Community Equip Store Pooled Budgt,Supplies and Services,Other Equipment,203,29/09/2020,2009-00448,0.00,1100.00,R,AIDAPT BATHROOMS LTD,No
Http://opendatacommunities.org/id/metropolitan-district-council/leeds,Leeds City Council as Accountable Body,30/09/2020,Social Services Pooled Budgets,Leeds Community Equip Store Pooled Budgt,Supplies and Services,Other Equipment,203,29/09/2020,2009-00449,0.00,1151.55,R,AIDAPT BATHROOMS LTD,No
Http://opendatacommunities.org/id/metropolitan-district-council/leeds,Leeds City Council as Accountable Body,30/09/2020,Social Services Pooled Budgets,Leeds Community Equip Store Pooled Budgt,Supplies and Services,Other Equipment,203,29/09/2020,2009-00450,0.00,1997.25,R,AIDAPT BATHROOMS LTD,No
Http://opendatacommunities.org/id/metropolitan-district-council/leeds,Leeds City Council as Accountable Body,30/09/2020,Social Services Pooled Budgets,Leeds Community Equip Store Pooled Budgt,Supplies and Services,Other Equipment,203,29/09/2020,2009-00451,0.00,2023.75,R,AIDAPT BATHROOMS LTD,No
Http://opendatacommunities.org/id/metropolitan-district-council/leeds,Leeds City Council,30/09/2020,Children and Families,Social Care,Transfer Payments,Leaving Care Allowances,634,28/09/2020,2009-00452,0.00,20.00,R,REDACTED PERSONAL DATA,No
Http://opendatacommunities.org/id/metropolitan-district-council/leeds,Leeds City Council,30/09/2020,Children and Families,Social Care,Transfer Payments,Leaving Care Allowances,634,29/09/2020,2009-00453,0.00,20.00,R,REDACTED PERSONAL DATA,No
Http://opendatacommunities.org/id/metropolitan-district-council/leeds,Leeds City Council,30/09/2020,City Development,Economic Development,Supplies and Services,Grants To Businesses,243,15/09/2020,2009-00454,0.00,5863.00,R,Air Force Pneumatics & Hydraulics,No
Http://opendatacommunities.org/id/metropolitan-district-council/leeds,Leeds City Council,30/09/2020,Communities and Environment,Environmental Health,Supplies and Services,Other Hired And Contracted Services,265,15/09/2020,2009-00455,0.00,564.10,R,AIR LIQUIDE UK,No
Http://opendatacommunities.org/id/metropolitan-district-council/leeds,Leeds City Council,30/09/2020,Communities and Environment,Environmental Health,Supplies and Services,Other Hired And Contracted Services,265,16/09/2020,2009-00456,0.00,10.77,R,AIR LIQUIDE UK,No
Http://opendatacommunities.org/id/metropolitan-district-council/leeds,Leeds City Council,30/09/2020,Communities and Environment,Environmental Health,Supplies and Services,Other Hired And Contracted Services,265,16/09/2020,2009-00457,0.00,10.77,R,AIR LIQUIDE UK,No
Http://opendatacommunities.org/id/metropolitan-district-council/leeds,Leeds City Council,30/09/2020,Communities and Environment,Environmental Health,Supplies and Services,Other Hired And Contracted Services,265,16/09/2020,2009-00458,0.00,75.39,R,AIR LIQUIDE UK,No
Http://opendatacommunities.org/id/metropolitan-district-council/leeds,Leeds City Council,30/09/2020,Communities and Environment,Environmental Health,Supplies and Services,Other Hired And Contracted Services,265,16/09/2020,2009-00459,0.00,10.77,R,AIR LIQUIDE UK,No
Http://opendatacommunities.org/id/metropolitan-district-council/leeds,Leeds City Council,30/09/2020,Communities and Environment,Environmental Health,Supplies and Services,Other Hired And Contracted Services,265,16/09/2020,2009-00460,0.00,10.77,R,AIR LIQUIDE UK,No
Http://opendatacommunities.org/id/metropolitan-district-council/leeds,Leeds City Council,30/09/2020,Communities and Environment,Environmental Health,Supplies and Services,Other Hired And Contracted Services,265,16/09/2020,2009-00461,0.00,16.64,R,AIR LIQUIDE UK,No
Http://opendatacommunities.org/id/metropolitan-district-council/leeds,Leeds City Council,30/09/2020,Communities and Environment,Environmental Health,Supplies and Services,Other Hired And Contracted Services,265,18/09/2020,2009-00462,0.00,16.64,R,AIR LIQUIDE UK,No
Http://opendatacommunities.org/id/metropolitan-district-council/leeds,Leeds City Council,30/09/2020,Communities and Environment,Environmental Health,Supplies and Services,Other Hired And Contracted Services,265,18/09/2020,2009-00463,0.00,75.39,R,AIR LIQUIDE UK,No
Http://opendatacommunities.org/id/metropolitan-district-council/leeds,Leeds City Council,30/09/2020,Communities and Environment,Environmental Health,Supplies and Services,Other Hired And Contracted Services,265,29/09/2020,2009-00464,0.00,-31.86,R,AIR LIQUIDE UK,No
Http://opendatacommunities.org/id/metropolitan-district-council/leeds,Leeds City Council,30/09/2020,Communities and Environment,Environmental Health,Supplies and Services,Other Hired And Contracted Services,265,29/09/2020,2009-00465,0.00,10.77,R,AIR LIQUIDE UK,No
Http://opendatacommunities.org/id/metropolitan-district-council/leeds,Leeds City Council,30/09/2020,Communities and Environment,Environmental Health,Supplies and Services,Other Hired And Contracted Services,265,29/09/2020,2009-00466,0.00,10.77,R,AIR LIQUIDE UK,No
Http://opendatacommunities.org/id/metropolitan-district-council/leeds,Leeds City Council,30/09/2020,Communities and Environment,Environmental Health,Supplies and Services,Other Hired And Contracted Services,265,29/09/2020,2009-00467,0.00,16.64,R,AIR LIQUIDE UK,No
Http://opendatacommunities.org/id/metropolitan-district-council/leeds,Leeds City Council,30/09/2020,Communities and Environment,Environmental Health,Supplies and Services,Other Hired And Contracted Services,265,29/09/2020,2009-00468,0.00,75.39,R,AIR LIQUIDE UK,No
Http://opendatacommunities.org/id/metropolitan-district-council/leeds,Leeds City Council,30/09/2020,Communities and Environment,Parks and Countryside,Supplies and Services,Operational Furniture And Equipment,203,11/09/2020,2009-00469,0.00,1053.80,R,Air Solutions (Leeds) Ltd,No
Http://opendatacommunities.org/id/metropolitan-district-council/leeds,Leeds City Council,30/09/2020,Communities and Environment,Parks and Countryside,Supplies and Services,Operational Materials,205,11/09/2020,2009-00470,0.00,341.84,R,Air Solutions (Leeds) Ltd,No
Http://opendatacommunities.org/id/metropolitan-district-council/leeds,Leeds City Council,30/09/2020,Resources and Housing,Strategic Housing Partnerships,Capital,CONSTRUCTION,3,04/09/2020,2009-00471,0.00,5000.00,C,Aire Building Services Ltd,No
Http://opendatacommunities.org/id/metropolitan-district-council/leeds,Leeds City Council,30/09/2020,Communities and Environment,Parks and Countryside,Supplies and Services,Other Hired And Contracted Services,265,04/09/2020,2009-00472,0.00,742.00,R,Aire Valley Tree Services Ltd,No
Http://opendatacommunities.org/id/metropolitan-district-council/leeds,Leeds City Council,30/09/2020,Communities and Environment,Parks and Countryside,Supplies and Services,Other Hired And Contracted Services,265,18/09/2020,2009-00473,0.00,325.00,R,Aire Valley Tree Services Ltd,No
Http://opendatacommunities.org/id/metropolitan-district-council/leeds,Leeds City Council,30/09/2020,Communities and Environment,Parks and Countryside,Supplies and Services,Other Hired And Contracted Services,265,18/09/2020,2009-00474,0.00,275.00,R,Aire Valley Tree Services Ltd,No
Http://opendatacommunities.org/id/metropolitan-district-council/leeds,Leeds City Council,30/09/2020,Communities and Environment,Parks and Countryside,Supplies and Services,Other Hired And Contracted Services,265,24/09/2020,2009-00475,0.00,829.00,R,Aire Valley Tree Services Ltd,No
Http://opendatacommunities.org/id/metropolitan-district-council/leeds,Leeds City Council,30/09/2020,Communities and Environment,Parks and Countryside,Supplies and Services,Other Hired And Contracted Services,265,25/09/2020,2009-00476,0.00,520.00,R,Aire Valley Tree Services Ltd,No
Http://opendatacommunities.org/id/metropolitan-district-council/leeds,Leeds City Council,30/09/2020,Communities and Environment,Parks and Countryside,Supplies and Services,Other Hired And Contracted Services,265,29/09/2020,2009-00477,0.00,6215.00,R,Aire Valley Tree Services Ltd,No
Http://opendatacommunities.org/id/metropolitan-district-council/leeds,Leeds City Council,30/09/2020,Adults and Health,Services For Older People - 65 And Over,Third Party Payments,Nursing Home,570,04/09/2020,2009-00478,0.00,4434.98,R,Aire View Residential Home,No
Http://opendatacommunities.org/id/metropolitan-district-council/leeds,Leeds City Council,30/09/2020,Adults and Health,Services For Older People - 65 And Over,Third Party Payments,Residential Care Dementia,571,16/09/2020,2009-00479,0.00,40581.90,R,Aire View Residential Home,No
Http://opendatacommunities.org/id/metropolitan-district-council/leeds,Leeds City Council,30/09/2020,Adults and Health,Services For Older People - 65 And Over,Third Party Payments,Residential,580,16/09/2020,2009-00480,0.00,7400.02,R,Aire View Residential Home,No
Http://opendatacommunities.org/id/metropolitan-district-council/leeds,Leeds City Council,30/09/2020,Adults and Health,Services For Older People - 65 And Over,Third Party Payments,Nursing Home,570,04/09/2020,2009-00481,0.00,1532.33,R,Airedale Care Home,No
Http://opendatacommunities.org/id/metropolitan-district-council/leeds,Leeds City Council,30/09/2020,Adults and Health,Services For Older People - 65 And Over,Third Party Payments,Residential Care Dementia,571,16/09/2020,2009-00482,0.00,1511.60,R,Airedale Care Home,No
Http://opendatacommunities.org/id/metropolitan-district-council/leeds,Leeds City Council,30/09/2020,Adults and Health,Services For Older People - 65 And Over,Third Party Payments,Residential,580,16/09/2020,2009-00483,0.00,15467.21,R,Airedale Care Home,No
Http://opendatacommunities.org/id/metropolitan-district-council/leeds,Leeds City Council,30/09/2020,Resources and Housing,Commercial Services,Premises,Fixtures & Fittings,131,18/09/2020,2009-00484,0.00,14169.00,R,AIREDALE CATERING EQUIPMENT LTD,No
Http://opendatacommunities.org/id/metropolitan-district-council/leeds,Leeds City Council,30/09/2020,Resources and Housing,Commercial Services,Premises,Fixtures & Fittings,131,18/09/2020,2009-00485,0.00,15616.00,R,AIREDALE CATERING EQUIPMENT LTD,No
Http://opendatacommunities.org/id/metropolitan-district-council/leeds,Leeds City Council,30/09/2020,Resources and Housing,Commercial Services,Premises,Fixtures & Fittings,131,18/09/2020,2009-00486,0.00,13098.00,R,AIREDALE CATERING EQUIPMENT LTD,No
Http://opendatacommunities.org/id/metropolitan-district-council/leeds,Leeds City Council,30/09/2020,Resources and Housing,Commercial Services,Premises,Fixtures & Fittings,131,25/09/2020,2009-00487,0.00,14850.00,R,AIREDALE CATERING EQUIPMENT LTD,No
Http://opendatacommunities.org/id/metropolitan-district-council/leeds,Leeds City Council,30/09/2020,Resources and Housing,Commercial Services,Premises,Fixtures & Fittings,131,30/09/2020,2009-00488,0.00,16057.00,R,AIREDALE CATERING EQUIPMENT LTD,No
Http://opendatacommunities.org/id/metropolitan-district-council/leeds,Leeds City Council,30/09/2020,Adults and Health,Services For Adults Under 65 Mental/Dis,Third Party Payments,Services Provided By Other NHS Bodies,522,02/09/2020,2009-00489,0.00,175.00,R,AIT Mitra Limited,No
Http://opendatacommunities.org/id/metropolitan-district-council/leeds,Leeds City Council,30/09/2020,Adults and Health,Services For Adults Under 65 Mental/Dis,Third Party Payments,Services Provided By Other NHS Bodies,522,02/09/2020,2009-00490,0.00,175.00,R,AIT Mitra Limited,No
Http://opendatacommunities.org/id/metropolitan-district-council/leeds,Leeds City Council,30/09/2020,Adults and Health,Services For Adults Under 65 Mental/Dis,Third Party Payments,Services Provided By Other NHS Bodies,522,04/09/2020,2009-00491,0.00,175.00,R,AIT Mitra Limited,No
Http://opendatacommunities.org/id/metropolitan-district-council/leeds,Leeds City Council,30/09/2020,Adults and Health,Services For Adults Under 65 Mental/Dis,Third Party Payments,Services Provided By Other NHS Bodies,522,04/09/2020,2009-00492,0.00,175.00,R,AIT Mitra Limited,No
Http://opendatacommunities.org/id/metropolitan-district-council/leeds,Leeds City Council,30/09/2020,Adults and Health,Services For Adults Under 65 Mental/Dis,Third Party Payments,Services Provided By Other NHS Bodies,522,04/09/2020,2009-00493,0.00,175.00,R,AIT Mitra Limited,No
Http://opendatacommunities.org/id/metropolitan-district-council/leeds,Leeds City Council,30/09/2020,Adults and Health,Services For Adults Under 65 Mental/Dis,Third Party Payments,Services Provided By Other NHS Bodies,522,08/09/2020,2009-00494,0.00,175.00,R,AIT Mitra Limited,No
Http://opendatacommunities.org/id/metropolitan-district-council/leeds,Leeds City Council,30/09/2020,Adults and Health,Services For Adults Under 65 Mental/Dis,Third Party Payments,Services Provided By Other NHS Bodies,522,08/09/2020,2009-00495,0.00,175.00,R,AIT Mitra Limited,No
Http://opendatacommunities.org/id/metropolitan-district-council/leeds,Leeds City Council,30/09/2020,Adults and Health,Services For Adults Under 65 Mental/Dis,Third Party Payments,Services Provided By Other NHS Bodies,522,08/09/2020,2009-00496,0.00,175.00,R,AIT Mitra Limited,No
Http://opendatacommunities.org/id/metropolitan-district-council/leeds,Leeds City Council,30/09/2020,Adults and Health,Services For Adults Under 65 Mental/Dis,Third Party Payments,Services Provided By Other NHS Bodies,522,08/09/2020,2009-00497,0.00,175.00,R,AIT Mitra Limited,No
Http://opendatacommunities.org/id/metropolitan-district-council/leeds,Leeds City Council,30/09/2020,Adults and Health,Services For Adults Under 65 Mental/Dis,Third Party Payments,Services Provided By Other NHS Bodies,522,17/09/2020,2009-00498,0.00,175.00,R,AIT Mitra Limited,No
Http://opendatacommunities.org/id/metropolitan-district-council/leeds,Leeds City Council as Accountable Body,30/09/2020,Social Services Pooled Budgets,Jcs For People With Learning Disabilitie,Third Party Payments,Residential,580,16/09/2020,2009-00499,0.00,6709.72,R,AITCH care homes,No
Http://opendatacommunities.org/id/metropolitan-district-council/leeds,Leeds City Council,30/09/2020,Resources and Housing,Leeds Building Services,Supplies and Services,STORES - CENTRAL AND OTHER DEPOTS,5,04/09/2020,2009-00500,0.00,958.53,R,AJM FIXINGS & POWER TOOLS LTD,No
Http://opendatacommunities.org/id/metropolitan-district-council/leeds,Leeds City Council,30/09/2020,Resources and Housing,Leeds Building Services,Supplies and Services,Operational Materials,205,04/09/2020,2009-00501,0.00,208.50,R,AJM FIXINGS & POWER TOOLS LTD,No
Http://opendatacommunities.org/id/metropolitan-district-council/leeds,Leeds City Council,30/09/2020,Resources and Housing,Leeds Building Services,Supplies and Services,STORES - CENTRAL AND OTHER DEPOTS,5,10/09/2020,2009-00502,0.00,288.30,R,AJM FIXINGS & POWER TOOLS LTD,No
Http://opendatacommunities.org/id/metropolitan-district-council/leeds,Leeds City Council,30/09/2020,Resources and Housing,Leeds Building Services,Supplies and Services,Operational Furniture And Equipment,203,10/09/2020,2009-00503,0.00,49.50,R,AJM FIXINGS & POWER TOOLS LTD,No
Http://opendatacommunities.org/id/metropolitan-district-council/leeds,Leeds City Council,30/09/2020,Resources and Housing,Leeds Building Services,Supplies and Services,Operational Materials,205,10/09/2020,2009-00504,0.00,165.00,R,AJM FIXINGS & POWER TOOLS LTD,No
Http://opendatacommunities.org/id/metropolitan-district-council/leeds,Leeds City Council,30/09/2020,Resources and Housing,Leeds Building Services,Supplies and Services,Operational Furniture And Equipment,203,10/09/2020,2009-00505,0.00,764.00,R,AJM FIXINGS & POWER TOOLS LTD,No
Http://opendatacommunities.org/id/metropolitan-district-council/leeds,Leeds City Council,30/09/2020,Resources and Housing,Leeds Building Services,Supplies and Services,Operational Materials,205,11/09/2020,2009-00506,0.00,1497.00,R,AJM FIXINGS & POWER TOOLS LTD,No
Http://opendatacommunities.org/id/metropolitan-district-council/leeds,Leeds City Council,30/09/2020,Resources and Housing,Leeds Building Services,Supplies and Services,Operational Materials,205,14/09/2020,2009-00507,0.00,179.16,R,AJM FIXINGS & POWER TOOLS LTD,No
Http://opendatacommunities.org/id/metropolitan-district-council/leeds,Leeds City Council,30/09/2020,Resources and Housing,Leeds Building Services,Supplies and Services,Operational Furniture And Equipment,203,15/09/2020,2009-00508,0.00,385.75,R,AJM FIXINGS & POWER TOOLS LTD,No
Http://opendatacommunities.org/id/metropolitan-district-council/leeds,Leeds City Council,30/09/2020,Resources and Housing,Leeds Building Services,Supplies and Services,Operational Furniture And Equipment,203,15/09/2020,2009-00509,0.00,251.62,R,AJM FIXINGS & POWER TOOLS LTD,No
Http://opendatacommunities.org/id/metropolitan-district-council/leeds,Leeds City Council,30/09/2020,Resources and Housing,Leeds Building Services,Supplies and Services,Operational Furniture And Equipment,203,16/09/2020,2009-00510,0.00,19.25,R,AJM FIXINGS & POWER TOOLS LTD,No
Http://opendatacommunities.org/id/metropolitan-district-council/leeds,Leeds City Council,30/09/2020,Resources and Housing,Strategic Housing Partnerships,Capital,CONSTRUCTION,3,04/09/2020,2009-00511,0.00,16200.00,C,AKR Construction Ltd,No
Http://opendatacommunities.org/id/metropolitan-district-council/leeds,Leeds City Council,30/09/2020,Resources and Housing,Strategic Housing Partnerships,Capital,CONSTRUCTION,3,04/09/2020,2009-00512,0.00,7000.00,C,AKR Construction Ltd,No
Http://opendatacommunities.org/id/metropolitan-district-council/leeds,Leeds City Council,30/09/2020,Resources and Housing,Strategic Housing Partnerships,Capital,CONSTRUCTION,3,24/09/2020,2009-00513,0.00,2500.00,C,AKR Construction Ltd,No
Http://opendatacommunities.org/id/metropolitan-district-council/leeds,Leeds City Council,30/09/2020,Resources and Housing,Commercial Services,Premises,Plant and Machinery,102,25/09/2020,2009-00514,0.00,210.00,R,Akua Uk Ltd,No
Http://opendatacommunities.org/id/metropolitan-district-council/leeds,Leeds City Council,30/09/2020,Adults and Health,Social Services Support Services,Employees,Training & Development,70,17/09/2020,2009-00515,0.00,13.00,R,REDACTED PERSONAL DATA,No
Http://opendatacommunities.org/id/metropolitan-district-council/leeds,Leeds City Council,30/09/2020,Resources and Housing,Democratic Services  ,Premises,Grounds Maintenance Work,111,06/08/2020,2009-00516,0.00,35.00,R,Alan Brown Flowers,Yes
Http://opendatacommunities.org/id/metropolitan-district-council/leeds,Leeds City Council,30/09/2020,City Development,Recreation,Income,Sporting & Other Recreational Fees,928,08/09/2020,2009-00517,0.00,162.65,R,REDACTED PERSONAL DATA,No
Http://opendatacommunities.org/id/metropolitan-district-council/leeds,Leeds City Council,30/09/2020,Children and Families,Social Care,Third Party Payments,Services Rendered By Other Organisations,511,04/09/2020,2009-00518,0.00,427.05,R,REDACTED PERSONAL DATA,No
Http://opendatacommunities.org/id/metropolitan-district-council/leeds,Leeds City Council,30/09/2020,Adults and Health,Services For Older People - 65 And Over,Third Party Payments,Residential,580,16/09/2020,2009-00519,0.00,1552.60,R,Albion Court Care Home,No
Http://opendatacommunities.org/id/metropolitan-district-council/leeds,Leeds City Council,30/09/2020,Communities and Environment,Parks and Countryside  ,Supplies and Services,Operational Materials,205,11/08/2020,2009-00520,0.00,22.00,R,Albion Electric Stores Lt,Yes
Http://opendatacommunities.org/id/metropolitan-district-council/leeds,Leeds City Council as Accountable Body,30/09/2020,Social Services Pooled Budgets,Leeds Community Equip Store Pooled Budgt,Supplies and Services,Other Equipment,203,21/09/2020,2009-00521,0.00,697.50,R,ALBION ELECTRIC STORES LTD,No
Http://opendatacommunities.org/id/metropolitan-district-council/leeds,Leeds City Council,30/09/2020,Communities and Environment,Communities,Supplies and Services,Computer Software & Equipment,214,18/09/2020,2009-00522,0.00,1228.33,R,Alcium Software Ltd,No
Http://opendatacommunities.org/id/metropolitan-district-council/leeds,Leeds City Council,30/09/2020,Children and Families,Social Care  ,Supplies and Services,Food & Drink,231,03/08/2020,2009-00523,0.00,18.39,R,Aldi,Yes
Http://opendatacommunities.org/id/metropolitan-district-council/leeds,Leeds City Council,30/09/2020,Children and Families,Social Care  ,Supplies and Services,Laundry Services,251,03/08/2020,2009-00524,0.00,10.02,R,Aldi,Yes
Http://opendatacommunities.org/id/metropolitan-district-council/leeds,Leeds City Council,30/09/2020,Children and Families,Social Care  ,Supplies and Services,Food & Drink,231,23/08/2020,2009-00525,0.00,14.00,R,Aldi 40 779,Yes
Http://opendatacommunities.org/id/metropolitan-district-council/leeds,Leeds City Council,30/09/2020,Children and Families,Social Care  ,Supplies and Services,Food & Drink,231,26/08/2020,2009-00526,0.00,16.77,R,Aldi 40 779,Yes
Http://opendatacommunities.org/id/metropolitan-district-council/leeds,Leeds City Council,30/09/2020,Children and Families,Social Care  ,Third Party Payments,Section 17,551,06/08/2020,2009-00527,0.00,43.13,R,Aldi 49 779,Yes
Http://opendatacommunities.org/id/metropolitan-district-council/leeds,Leeds City Council,30/09/2020,Children and Families,Social Care  ,Transfer Payments,Leaving Care Allowances,634,11/08/2020,2009-00528,0.00,64.46,R,Aldi 71 779,Yes
Http://opendatacommunities.org/id/metropolitan-district-council/leeds,Leeds City Council,30/09/2020,Children and Families,Social Care  ,Supplies and Services,Food & Drink,231,02/08/2020,2009-00529,0.00,3.83,R,Aldi 85 779,Yes
Http://opendatacommunities.org/id/metropolitan-district-council/leeds,Leeds City Council,30/09/2020,Children and Families,Social Care  ,Supplies and Services,Food & Drink,231,02/08/2020,2009-00530,0.00,4.58,R,Aldi 85 779,Yes
Http://opendatacommunities.org/id/metropolitan-district-council/leeds,Leeds City Council,30/09/2020,Children and Families,Social Care  ,Supplies and Services,Food & Drink,231,26/08/2020,2009-00531,0.00,3.27,R,Aldi Stores,Yes
Http://opendatacommunities.org/id/metropolitan-district-council/leeds,Leeds City Council,30/09/2020,Communities and Environment,Customer Access,Supplies and Services,Bought In Professional Services,277,03/09/2020,2009-00532,0.00,25.50,R,Alena Zueva,No
Http://opendatacommunities.org/id/metropolitan-district-council/leeds,Leeds City Council,30/09/2020,Resources and Housing,Commercial Services,Supplies and Services,Other Hired And Contracted Services,265,10/09/2020,2009-00533,0.00,160.00,R,ALEX WAGG,No
Http://opendatacommunities.org/id/metropolitan-district-council/leeds,Leeds City Council,30/09/2020,Resources and Housing,Commercial Services,Supplies and Services,Other Hired And Contracted Services,265,10/09/2020,2009-00534,0.00,70.00,R,ALEX WAGG,No
Http://opendatacommunities.org/id/metropolitan-district-council/leeds,Leeds City Council,30/09/2020,Resources and Housing,Commercial Services,Supplies and Services,Other Hired And Contracted Services,265,17/09/2020,2009-00535,0.00,180.00,R,ALEX WAGG,No
Http://opendatacommunities.org/id/metropolitan-district-council/leeds,Leeds City Council,30/09/2020,Resources and Housing,Commercial Services,Supplies and Services,Other Hired And Contracted Services,265,17/09/2020,2009-00536,0.00,170.00,R,ALEX WAGG,No
Http://opendatacommunities.org/id/metropolitan-district-council/leeds,Leeds City Council,30/09/2020,Resources and Housing,Commercial Services,Supplies and Services,Other Hired And Contracted Services,265,18/09/2020,2009-00537,0.00,80.00,R,ALEX WAGG,No
Http://opendatacommunities.org/id/metropolitan-district-council/leeds,Leeds City Council,30/09/2020,Resources and Housing,Commercial Services,Supplies and Services,Other Hired And Contracted Services,265,18/09/2020,2009-00538,0.00,80.00,R,ALEX WAGG,No
Http://opendatacommunities.org/id/metropolitan-district-council/leeds,Leeds City Council,30/09/2020,Resources and Housing,Commercial Services,Supplies and Services,Other Hired And Contracted Services,265,18/09/2020,2009-00539,0.00,60.00,R,ALEX WAGG,No
Http://opendatacommunities.org/id/metropolitan-district-council/leeds,Leeds City Council,30/09/2020,Resources and Housing,Commercial Services,Supplies and Services,Other Hired And Contracted Services,265,18/09/2020,2009-00540,0.00,75.00,R,ALEX WAGG,No
Http://opendatacommunities.org/id/metropolitan-district-council/leeds,Leeds City Council,30/09/2020,Resources and Housing,Commercial Services,Supplies and Services,Other Hired And Contracted Services,265,18/09/2020,2009-00541,0.00,80.00,R,ALEX WAGG,No
Http://opendatacommunities.org/id/metropolitan-district-council/leeds,Leeds City Council,30/09/2020,Resources and Housing,Commercial Services,Supplies and Services,Other Hired And Contracted Services,265,18/09/2020,2009-00542,0.00,120.00,R,ALEX WAGG,No
Http://opendatacommunities.org/id/metropolitan-district-council/leeds,Leeds City Council,30/09/2020,Resources and Housing,Commercial Services,Transport,Vehicle Spares,345,23/09/2020,2009-00543,0.00,84.49,R,ALEX WAGG,No
Http://opendatacommunities.org/id/metropolitan-district-council/leeds,Leeds City Council,30/09/2020,Resources and Housing,Commercial Services,Transport,Vehicle Spares,345,23/09/2020,2009-00544,0.00,80.00,R,ALEX WAGG,No
Http://opendatacommunities.org/id/metropolitan-district-council/leeds,Leeds City Council,30/09/2020,Resources and Housing,Commercial Services,Transport,Vehicle Spares,345,23/09/2020,2009-00545,0.00,195.00,R,ALEX WAGG,No
Http://opendatacommunities.org/id/metropolitan-district-council/leeds,Leeds City Council,30/09/2020,Resources and Housing,Commercial Services,Supplies and Services,Other Hired And Contracted Services,265,25/09/2020,2009-00546,0.00,75.00,R,ALEX WAGG,No
Http://opendatacommunities.org/id/metropolitan-district-council/leeds,Leeds City Council,30/09/2020,Communities and Environment,Car Parking Services,Income,Penalties  Fines & Car Parking Charges,934,17/09/2020,2009-00547,0.00,35.00,R,REDACTED PERSONAL DATA,No
Http://opendatacommunities.org/id/metropolitan-district-council/leeds,Leeds City Council,30/09/2020,Adults and Health,Services For Older People - 65 And Over,Third Party Payments,Nursing Home,570,04/09/2020,2009-00548,0.00,3020.33,R,ALEXANDER RESIDENTIAL HOME,No
Http://opendatacommunities.org/id/metropolitan-district-council/leeds,Leeds City Council,30/09/2020,Adults and Health,Services For Older People - 65 And Over,Third Party Payments,Residential Care Dementia,571,16/09/2020,2009-00549,0.00,14166.22,R,ALEXANDER RESIDENTIAL HOME,No
Http://opendatacommunities.org/id/metropolitan-district-council/leeds,Leeds City Council,30/09/2020,Adults and Health,Services For Older People - 65 And Over,Third Party Payments,Residential,580,16/09/2020,2009-00550,0.00,12713.92,R,ALEXANDER RESIDENTIAL HOME,No
Http://opendatacommunities.org/id/metropolitan-district-council/leeds,Leeds City Council,30/09/2020,Adults and Health,Services For Older People - 65 And Over,Third Party Payments,Nursing Home,570,04/09/2020,2009-00551,0.00,1024.85,R,ALEXANDRA COURT,No
Http://opendatacommunities.org/id/metropolitan-district-council/leeds,Leeds City Council,30/09/2020,Adults and Health,Services For Older People - 65 And Over,Third Party Payments,Residential Care Dementia,571,16/09/2020,2009-00552,0.00,1370.74,R,ALEXANDRA COURT,No
Http://opendatacommunities.org/id/metropolitan-district-council/leeds,Leeds City Council,30/09/2020,Adults and Health,Services For Older People - 65 And Over,Third Party Payments,Residential,580,16/09/2020,2009-00553,0.00,6204.28,R,ALEXANDRA COURT,No
Http://opendatacommunities.org/id/metropolitan-district-council/leeds,Leeds City Council,30/09/2020,Adults and Health,Other Adult Services,Third Party Payments,Residential,580,08/09/2020,2009-00554,0.00,11400.00,R,Alexandra Court Residential Home,No
Http://opendatacommunities.org/id/metropolitan-district-council/leeds,Leeds City Council,30/09/2020,Adults and Health,Social Services Support Services,Employees,Training & Development,70,04/09/2020,2009-00555,0.00,13.00,R,REDACTED PERSONAL DATA,No
Http://opendatacommunities.org/id/metropolitan-district-council/leeds,Leeds City Council,30/09/2020,Children and Families,Social Care,Third Party Payments,Services Rendered By Other Organisations,511,02/09/2020,2009-00556,0.00,514.80,R,REDACTED PERSONAL DATA,No
Http://opendatacommunities.org/id/metropolitan-district-council/leeds,Leeds City Council,30/09/2020,Resources and Housing,Strategic Housing Partnership & Support,Supplies and Services,Other Hired And Contracted Services,265,15/09/2020,2009-00557,0.00,320.00,R,REDACTED PERSONAL DATA,No
Http://opendatacommunities.org/id/metropolitan-district-council/leeds,Leeds City Council,30/09/2020,Resources and Housing,Strategic Housing Partnership & Support,Supplies and Services,Other Hired And Contracted Services,265,15/09/2020,2009-00558,0.00,720.00,R,REDACTED PERSONAL DATA,No
Http://opendatacommunities.org/id/metropolitan-district-council/leeds,Leeds City Council,30/09/2020,Resources and Housing,Strategic Housing Partnership & Support,Supplies and Services,Other Hired And Contracted Services,265,11/09/2020,2009-00559,0.00,1258.70,R,Alfa Estates Freehold Ltd,No
Http://opendatacommunities.org/id/metropolitan-district-council/leeds,Leeds City Council,30/09/2020,Resources and Housing,Leeds Building Services,Supplies and Services,Other Hired And Contracted Services,265,03/09/2020,2009-00560,0.00,618.00,R,Alfred Bagnall & Sons (Leeds) Ltd,No
Http://opendatacommunities.org/id/metropolitan-district-council/leeds,Leeds City Council,30/09/2020,Resources and Housing,Leeds Building Services,Supplies and Services,Other Hired And Contracted Services,265,04/09/2020,2009-00561,0.00,1378.50,R,Alfred Bagnall & Sons (Leeds) Ltd,No
Http://opendatacommunities.org/id/metropolitan-district-council/leeds,Leeds City Council,30/09/2020,Resources and Housing,Leeds Building Services,Supplies and Services,Other Hired And Contracted Services,265,04/09/2020,2009-00562,0.00,1378.50,R,Alfred Bagnall & Sons (Leeds) Ltd,No
Http://opendatacommunities.org/id/metropolitan-district-council/leeds,Leeds City Council,30/09/2020,Resources and Housing,Leeds Building Services,Supplies and Services,Other Hired And Contracted Services,265,04/09/2020,2009-00563,0.00,1378.50,R,Alfred Bagnall & Sons (Leeds) Ltd,No
Http://opendatacommunities.org/id/metropolitan-district-council/leeds,Leeds City Council,30/09/2020,Resources and Housing,Leeds Building Services,Supplies and Services,Other Hired And Contracted Services,265,08/09/2020,2009-00564,0.00,1550.00,R,Alfred Bagnall & Sons (Leeds) Ltd,No
Http://opendatacommunities.org/id/metropolitan-district-council/leeds,Leeds City Council,30/09/2020,Resources and Housing,Leeds Building Services,Supplies and Services,Other Hired And Contracted Services,265,15/09/2020,2009-00565,0.00,4050.00,R,Alfred Bagnall & Sons (Leeds) Ltd,No
Http://opendatacommunities.org/id/metropolitan-district-council/leeds,Leeds City Council,30/09/2020,Resources and Housing,Leeds Building Services,Supplies and Services,Other Hired And Contracted Services,265,17/09/2020,2009-00566,0.00,500.00,R,Alfred Bagnall & Sons (Leeds) Ltd,No
Http://opendatacommunities.org/id/metropolitan-district-council/leeds,Leeds City Council,30/09/2020,Resources and Housing,Leeds Building Services,Supplies and Services,Other Hired And Contracted Services,265,25/09/2020,2009-00567,0.00,6380.00,R,Alfred Bagnall & Sons (Leeds) Ltd,No
Http://opendatacommunities.org/id/metropolitan-district-council/leeds,Leeds City Council,30/09/2020,Resources and Housing,Leeds Building Services,Supplies and Services,Other Hired And Contracted Services,265,29/09/2020,2009-00568,0.00,350.00,R,Alfred Bagnall & Sons (Leeds) Ltd,No
Http://opendatacommunities.org/id/metropolitan-district-council/leeds,Leeds City Council,30/09/2020,Communities and Environment,Customer Access,Supplies and Services,Bought In Professional Services,277,03/09/2020,2009-00569,0.00,87.60,R,Ali Pourakaberian,No
Http://opendatacommunities.org/id/metropolitan-district-council/leeds,Leeds City Council,30/09/2020,Communities and Environment,Customer Access,Supplies and Services,Bought In Professional Services,277,09/09/2020,2009-00570,0.00,27.00,R,Ali Pourakaberian,No
Http://opendatacommunities.org/id/metropolitan-district-council/leeds,Leeds City Council,30/09/2020,Communities and Environment,Customer Access,Supplies and Services,Bought In Professional Services,277,18/09/2020,2009-00571,0.00,27.30,R,Ali Pourakaberian,No
Http://opendatacommunities.org/id/metropolitan-district-council/leeds,Leeds City Council,30/09/2020,Communities and Environment,Customer Access,Supplies and Services,Bought In Professional Services,277,23/09/2020,2009-00572,0.00,22.50,R,Ali Pourakaberian,No
Http://opendatacommunities.org/id/metropolitan-district-council/leeds,Leeds City Council,30/09/2020,Communities and Environment,Customer Access,Supplies and Services,Bought In Professional Services,277,30/09/2020,2009-00573,0.00,10.00,R,Ali Pourakaberian,No
Http://opendatacommunities.org/id/metropolitan-district-council/leeds,Leeds City Council,30/09/2020,Communities and Environment,Customer Access,Supplies and Services,Bought In Professional Services,277,30/09/2020,2009-00574,0.00,27.00,R,Ali Pourakaberian,No
Http://opendatacommunities.org/id/metropolitan-district-council/leeds,Leeds City Council,30/09/2020,City Development,Recreation,Supplies and Services,Bought In Professional Services,277,04/09/2020,2009-00575,0.00,9.00,R,Alice M Richardson,No
Http://opendatacommunities.org/id/metropolitan-district-council/leeds,Leeds City Council,30/09/2020,Children and Families,Social Care,Income,Nursery Fees Income,926,15/09/2020,2009-00576,0.00,161.70,R,REDACTED PERSONAL DATA,No
Http://opendatacommunities.org/id/metropolitan-district-council/leeds,Leeds City Council,30/09/2020,Strategic Landlord,Property and Contracts,Support Services,Legal Disbursements,411,03/09/2020,2009-00577,0.00,2750.00,R,Alison Law Solicitors,No
Http://opendatacommunities.org/id/metropolitan-district-council/leeds,Leeds City Council,30/09/2020,Strategic Landlord,Property and Contracts,Supplies and Services,Insurance Claims,248,14/09/2020,2009-00578,0.00,1450.00,R,Alison Law Solicitors,No
Http://opendatacommunities.org/id/metropolitan-district-council/leeds,Leeds City Council,30/09/2020,Strategic Landlord,Property and Contracts,Supplies and Services,Insurance Claims,248,22/09/2020,2009-00579,0.00,5055.00,R,Alison Law Solicitors,No
Http://opendatacommunities.org/id/metropolitan-district-council/leeds,Leeds City Council,30/09/2020,City Development,Recreation,Income,Sporting & Other Recreational Fees,928,21/09/2020,2009-00580,0.00,169.74,R,REDACTED PERSONAL DATA,No
Http://opendatacommunities.org/id/metropolitan-district-council/leeds,Leeds City Council,30/09/2020,City Development,Economic Development,Supplies and Services,Grants To Businesses,243,11/09/2020,2009-00581,0.00,10000.00,R,Alivini North Limited,No
Http://opendatacommunities.org/id/metropolitan-district-council/leeds,Leeds City Council,30/09/2020,Adults and Health,Services For Adults Under 65 Mental/Dis,Third Party Payments,Home Care,568,04/09/2020,2009-00582,0.00,306.00,R,All Seasons Home Care,No
Http://opendatacommunities.org/id/metropolitan-district-council/leeds,Leeds City Council,30/09/2020,Children and Families,Social Care,Third Party Payments,Services Rendered By Other Organisations,511,02/09/2020,2009-00583,0.00,1029.60,R,All Stars Childcare,No
Http://opendatacommunities.org/id/metropolitan-district-council/leeds,Leeds City Council,30/09/2020,Children and Families,Social Care,Third Party Payments,Services Rendered By Other Organisations,511,04/09/2020,2009-00584,0.00,9181.58,R,All Stars Childcare,No
Http://opendatacommunities.org/id/metropolitan-district-council/leeds,Leeds City Council,30/09/2020,City Development,Economic Development,Supplies and Services,Grants To Businesses,243,09/09/2020,2009-00585,0.00,2445.00,R,All Stars Childcare,No
Http://opendatacommunities.org/id/metropolitan-district-council/leeds,Leeds City Council,30/09/2020,Children and Families,Social Care,Income,Nursery Fees Income,926,02/09/2020,2009-00586,0.00,139.02,R,REDACTED PERSONAL DATA,No
Http://opendatacommunities.org/id/metropolitan-district-council/leeds,Leeds City Council as Accountable Body,30/09/2020,Social Services Pooled Budgets,Jcs For People With Learning Disabilitie,Third Party Payments,Sheltered Accommodation,569,16/09/2020,2009-00587,0.00,19562.68,R,Allerton Avenue,No
Http://opendatacommunities.org/id/metropolitan-district-council/leeds,Leeds City Council,30/09/2020,Adults and Health,Services For Older People - 65 And Over,Third Party Payments,Nursing Care Dementia,574,16/09/2020,2009-00588,0.00,2320.36,R,ALLERTON PARK N H,No
Http://opendatacommunities.org/id/metropolitan-district-council/leeds,Leeds City Council,30/09/2020,Resources and Housing,Finance,Supplies and Services,Bank Charges,263,04/09/2020,2009-00589,0.00,5.45,R,ALLIANCE & LEICESTER COMMERCIAL BANK,No
Http://opendatacommunities.org/id/metropolitan-district-council/leeds,Leeds City Council,30/09/2020,Resources and Housing,Finance,Supplies and Services,Bank Charges,263,04/09/2020,2009-00590,0.00,100.14,R,ALLIANCE & LEICESTER COMMERCIAL BANK,No
Http://opendatacommunities.org/id/metropolitan-district-council/leeds,Leeds City Council,30/09/2020,Resources and Housing,Commercial Services,Supplies and Services,Operational Materials,205,01/09/2020,2009-00591,0.00,144.05,R,ALLIANCE DISPOSABLES LTD,No
Http://opendatacommunities.org/id/metropolitan-district-council/leeds,Leeds City Council,30/09/2020,Resources and Housing,Commercial Services,Supplies and Services,Operational Materials,205,01/09/2020,2009-00592,0.00,195.67,R,ALLIANCE DISPOSABLES LTD,No
Http://opendatacommunities.org/id/metropolitan-district-council/leeds,Leeds City Council,30/09/2020,Resources and Housing,Commercial Services,Supplies and Services,Operational Materials,205,02/09/2020,2009-00593,0.00,119.43,R,ALLIANCE DISPOSABLES LTD,No
Http://opendatacommunities.org/id/metropolitan-district-council/leeds,Leeds City Council,30/09/2020,Resources and Housing,Commercial Services,Supplies and Services,Operational Materials,205,02/09/2020,2009-00594,0.00,195.67,R,ALLIANCE DISPOSABLES LTD,No
Http://opendatacommunities.org/id/metropolitan-district-council/leeds,Leeds City Council,30/09/2020,Resources and Housing,Commercial Services,Supplies and Services,Operational Materials,205,02/09/2020,2009-00595,0.00,195.67,R,ALLIANCE DISPOSABLES LTD,No
Http://opendatacommunities.org/id/metropolitan-district-council/leeds,Leeds City Council,30/09/2020,Resources and Housing,Commercial Services,Supplies and Services,Operational Materials,205,02/09/2020,2009-00596,0.00,10.80,R,ALLIANCE DISPOSABLES LTD,No
Http://opendatacommunities.org/id/metropolitan-district-council/leeds,Leeds City Council,30/09/2020,Resources and Housing,Commercial Services,Supplies and Services,Operational Materials,205,02/09/2020,2009-00597,0.00,10.80,R,ALLIANCE DISPOSABLES LTD,No
Http://opendatacommunities.org/id/metropolitan-district-council/leeds,Leeds City Council,30/09/2020,Resources and Housing,Commercial Services,Supplies and Services,Operational Materials,205,02/09/2020,2009-00598,0.00,195.67,R,ALLIANCE DISPOSABLES LTD,No
Http://opendatacommunities.org/id/metropolitan-district-council/leeds,Leeds City Council,30/09/2020,Resources and Housing,Commercial Services,Supplies and Services,Operational Materials,205,02/09/2020,2009-00599,0.00,195.67,R,ALLIANCE DISPOSABLES LTD,No
Http://opendatacommunities.org/id/metropolitan-district-council/leeds,Leeds City Council,30/09/2020,Resources and Housing,Commercial Services,Supplies and Services,Operational Materials,205,02/09/2020,2009-00600,0.00,195.67,R,ALLIANCE DISPOSABLES LTD,No
Http://opendatacommunities.org/id/metropolitan-district-council/leeds,Leeds City Council,30/09/2020,Resources and Housing,Commercial Services,Supplies and Services,Operational Materials,205,02/09/2020,2009-00601,0.00,10.80,R,ALLIANCE DISPOSABLES LTD,No
Http://opendatacommunities.org/id/metropolitan-district-council/leeds,Leeds City Council,30/09/2020,Resources and Housing,Commercial Services,Supplies and Services,Operational Materials,205,17/09/2020,2009-00602,0.00,30.77,R,ALLIANCE DISPOSABLES LTD,No
Http://opendatacommunities.org/id/metropolitan-district-council/leeds,Leeds City Council,30/09/2020,Resources and Housing,Commercial Services,Supplies and Services,Operational Materials,205,18/09/2020,2009-00603,0.00,209.05,R,ALLIANCE DISPOSABLES LTD,No
Http://opendatacommunities.org/id/metropolitan-district-council/leeds,Leeds City Council,30/09/2020,Resources and Housing,Commercial Services,Supplies and Services,Operational Materials,205,18/09/2020,2009-00604,0.00,30.77,R,ALLIANCE DISPOSABLES LTD,No
Http://opendatacommunities.org/id/metropolitan-district-council/leeds,Leeds City Council,30/09/2020,Resources and Housing,Commercial Services,Supplies and Services,Operational Materials,205,18/09/2020,2009-00605,0.00,195.67,R,ALLIANCE DISPOSABLES LTD,No
Http://opendatacommunities.org/id/metropolitan-district-council/leeds,Leeds City Council,30/09/2020,City Development,Recreation,Supplies and Services,Printing,215,24/09/2020,2009-00606,0.00,230.00,R,Alliance Leisure Service Ltd,No
Http://opendatacommunities.org/id/metropolitan-district-council/leeds,Leeds City Council,30/09/2020,City Development,Recreation,Supplies and Services,Printing,215,24/09/2020,2009-00607,0.00,201.00,R,Alliance Leisure Service Ltd,No
Http://opendatacommunities.org/id/metropolitan-district-council/leeds,Leeds City Council,30/09/2020,City Development,Highways,Supplies and Services,Other Hired And Contracted Services,265,02/09/2020,2009-00608,0.00,3232.80,R,ALLIED EXPLORATION & GEOTECHNICS LTD,No
Http://opendatacommunities.org/id/metropolitan-district-council/leeds,Leeds City Council,30/09/2020,City Development,Highways,Capital,OTHER COSTS,7,30/09/2020,2009-00609,0.00,7677.20,C,ALLIED EXPLORATION & GEOTECHNICS LTD,No
Http://opendatacommunities.org/id/metropolitan-district-council/leeds,Leeds City Council as Accountable Body,30/09/2020,Social Services Pooled Budgets,Jcs For People With Learning Disabilitie,Third Party Payments,Home Care,568,01/09/2020,2009-00610,0.00,212.01,R,Allied Healthcare,No
Http://opendatacommunities.org/id/metropolitan-district-council/leeds,Leeds City Council as Accountable Body,30/09/2020,Social Services Pooled Budgets,Jcs For People With Learning Disabilitie,Third Party Payments,Home Care,568,01/09/2020,2009-00611,0.00,269.76,R,Allied Healthcare,No
Http://opendatacommunities.org/id/metropolitan-district-council/leeds,Leeds City Council,30/09/2020,Children and Families,Social Care,Third Party Payments,Services Rendered By Voluntary Sector,505,01/09/2020,2009-00612,0.00,342.00,R,Allied Healthcare,No
Http://opendatacommunities.org/id/metropolitan-district-council/leeds,Leeds City Council,30/09/2020,Adults and Health,Services For Older People - 65 And Over,Third Party Payments,Home Care,568,09/09/2020,2009-00613,0.00,778.40,R,Allied Healthcare,No
Http://opendatacommunities.org/id/metropolitan-district-council/leeds,Leeds City Council,30/09/2020,Adults and Health,Services For Adults Under 65 Mental/Dis,Third Party Payments,Home Care,568,16/09/2020,2009-00614,0.00,483.02,R,Allied Healthcare,No
Http://opendatacommunities.org/id/metropolitan-district-council/leeds,Leeds City Council,30/09/2020,Adults and Health,Services For Older People - 65 And Over,Third Party Payments,Home Care,568,16/09/2020,2009-00615,0.00,11888.56,R,Allied Healthcare,No
Http://opendatacommunities.org/id/metropolitan-district-council/leeds,Leeds City Council,30/09/2020,Adults and Health,Services For Older People Under 65 P/Dis,Third Party Payments,Home Care,568,16/09/2020,2009-00616,0.00,1188.07,R,Allied Healthcare,No
Http://opendatacommunities.org/id/metropolitan-district-council/leeds,Leeds City Council,30/09/2020,Adults and Health,Services For Older People Under 65 P/Dis,Third Party Payments,HCAIT Other,577,16/09/2020,2009-00617,0.00,208.80,R,Allied Healthcare,No
Http://opendatacommunities.org/id/metropolitan-district-council/leeds,Leeds City Council,30/09/2020,Adults and Health,Services For Adults Under 65 Mental/Dis,Third Party Payments,Home Care,568,23/09/2020,2009-00618,0.00,791.35,R,Allied Healthcare,No
Http://opendatacommunities.org/id/metropolitan-district-council/leeds,Leeds City Council,30/09/2020,Adults and Health,Services For Older People - 65 And Over,Third Party Payments,Home Care,568,23/09/2020,2009-00619,0.00,23921.83,R,Allied Healthcare,No
Http://opendatacommunities.org/id/metropolitan-district-council/leeds,Leeds City Council,30/09/2020,Adults and Health,Services For Older People Under 65 P/Dis,Third Party Payments,Home Care,568,23/09/2020,2009-00620,0.00,4116.14,R,Allied Healthcare,No
Http://opendatacommunities.org/id/metropolitan-district-council/leeds,Leeds City Council as Accountable Body,30/09/2020,Social Services Pooled Budgets,Jcs For People With Learning Disabilitie,Third Party Payments,Home Care,568,29/09/2020,2009-00621,0.00,157.12,R,Allied Healthcare,No
Http://opendatacommunities.org/id/metropolitan-district-council/leeds,Leeds City Council,30/09/2020,Children and Families,Social Care,Third Party Payments,Services Rendered By Voluntary Sector,505,29/09/2020,2009-00622,0.00,342.00,R,Allied Healthcare,No
Http://opendatacommunities.org/id/metropolitan-district-council/leeds,Leeds City Council,30/09/2020,Adults and Health,Services For Older People - 65 And Over,Third Party Payments,Home Care,568,30/09/2020,2009-00623,0.00,3893.42,R,Allied Healthcare,No
Http://opendatacommunities.org/id/metropolitan-district-council/leeds,Leeds City Council,30/09/2020,Adults and Health,Services For Older People - 65 And Over,Third Party Payments,Home Care,568,30/09/2020,2009-00624,0.00,12682.51,R,Allied Healthcare,No
Http://opendatacommunities.org/id/metropolitan-district-council/leeds,Leeds City Council,30/09/2020,Adults and Health,Services For Older People Under 65 P/Dis,Third Party Payments,Home Care,568,30/09/2020,2009-00625,0.00,3009.15,R,Allied Healthcare,No
Http://opendatacommunities.org/id/metropolitan-district-council/leeds,Leeds City Council,30/09/2020,Communities and Environment,Customer Access,Supplies and Services,Printing,215,25/09/2020,2009-00626,0.00,2499.83,R,Allied Publicity Services,No
Http://opendatacommunities.org/id/metropolitan-district-council/leeds,Leeds City Council,30/09/2020,Communities and Environment,Parks and Countryside,Transport,Fuel (Non LCC Supplies),321,07/09/2020,2009-00627,0.00,398.93,R,Allstar Business Solutions Ltd,No
Http://opendatacommunities.org/id/metropolitan-district-council/leeds,Leeds City Council,30/09/2020,Children and Families,Learning,Transport,Fuel (Non LCC Supplies),321,07/09/2020,2009-00628,0.00,187.09,R,Allstar Business Solutions Ltd,No
Http://opendatacommunities.org/id/metropolitan-district-council/leeds,Leeds City Council,30/09/2020,City Development,Highways,Transport,Fuel (Non LCC Supplies),321,07/09/2020,2009-00629,0.00,192.09,R,Allstar Business Solutions Ltd,No
Http://opendatacommunities.org/id/metropolitan-district-council/leeds,Leeds City Council,30/09/2020,Resources and Housing,Leeds Building Services,Transport,Fuel (Non LCC Supplies),321,14/09/2020,2009-00630,0.00,31.15,R,Allstar Business Solutions Ltd,No
Http://opendatacommunities.org/id/metropolitan-district-council/leeds,Leeds City Council,30/09/2020,Resources and Housing,Commercial Services,Transport,Fuel (Non LCC Supplies),321,30/09/2020,2009-00631,0.00,2129.88,R,Allstar Business Solutions Ltd,No
Http://opendatacommunities.org/id/metropolitan-district-council/leeds,Leeds City Council,30/09/2020,Adults and Health,Services For Older People Under 65 P/Dis,Third Party Payments,Residential,580,16/09/2020,2009-00632,0.00,3534.24,R,Alne Hall,No
Http://opendatacommunities.org/id/metropolitan-district-council/leeds,Leeds City Council,30/09/2020,Children and Families,Social Care,Third Party Payments,Placement Support,550,17/09/2020,2009-00633,0.00,45.00,R,Alpha Hospitals Sheffield Patient Acc,No
Http://opendatacommunities.org/id/metropolitan-district-council/leeds,Leeds City Council,30/09/2020,Children and Families,Social Care,Third Party Payments,Placement Support,550,25/09/2020,2009-00634,0.00,15.00,R,Alpha Hospitals Sheffield Patient Acc,No
Http://opendatacommunities.org/id/metropolitan-district-council/leeds,Leeds City Council,30/09/2020,Children and Families,Social Care,Support Services,Legal Disbursements,411,02/09/2020,2009-00635,0.00,649.00,R,Alphabiolabs,No
Http://opendatacommunities.org/id/metropolitan-district-council/leeds,Leeds City Council,30/09/2020,Children and Families,Social Care,Support Services,Legal Disbursements,411,02/09/2020,2009-00636,0.00,374.80,R,Alphabiolabs,No
Http://opendatacommunities.org/id/metropolitan-district-council/leeds,Leeds City Council,30/09/2020,Children and Families,Social Care,Support Services,Legal Disbursements,411,04/09/2020,2009-00637,0.00,420.00,R,Alphabiolabs,No
Http://opendatacommunities.org/id/metropolitan-district-council/leeds,Leeds City Council,30/09/2020,Children and Families,Social Care,Support Services,Legal Disbursements,411,04/09/2020,2009-00638,0.00,161.25,R,Alphabiolabs,No
Http://opendatacommunities.org/id/metropolitan-district-council/leeds,Leeds City Council,30/09/2020,Children and Families,Social Care,Support Services,Legal Disbursements,411,08/09/2020,2009-00639,0.00,574.00,R,Alphabiolabs,No
Http://opendatacommunities.org/id/metropolitan-district-council/leeds,Leeds City Council,30/09/2020,Children and Families,Social Care,Support Services,Legal Disbursements,411,08/09/2020,2009-00640,0.00,95.00,R,Alphabiolabs,No
Http://opendatacommunities.org/id/metropolitan-district-council/leeds,Leeds City Council,30/09/2020,Children and Families,Social Care,Support Services,Legal Disbursements,411,15/09/2020,2009-00641,0.00,130.33,R,Alphabiolabs,No
Http://opendatacommunities.org/id/metropolitan-district-council/leeds,Leeds City Council,30/09/2020,Children and Families,Social Care,Support Services,Legal Disbursements,411,15/09/2020,2009-00642,0.00,62.00,R,Alphabiolabs,No
Http://opendatacommunities.org/id/metropolitan-district-council/leeds,Leeds City Council,30/09/2020,Children and Families,Social Care,Support Services,Legal Disbursements,411,17/09/2020,2009-00643,0.00,60.00,R,Alphabiolabs,No
Http://opendatacommunities.org/id/metropolitan-district-council/leeds,Leeds City Council,30/09/2020,Children and Families,Social Care,Support Services,Legal Disbursements,411,18/09/2020,2009-00644,0.00,95.00,R,Alphabiolabs,No
Http://opendatacommunities.org/id/metropolitan-district-council/leeds,Leeds City Council,30/09/2020,Children and Families,Social Care,Support Services,Legal Disbursements,411,25/09/2020,2009-00645,0.00,106.25,R,Alphabiolabs,No
Http://opendatacommunities.org/id/metropolitan-district-council/leeds,Leeds City Council,30/09/2020,Children and Families,Social Care,Support Services,Legal Disbursements,411,25/09/2020,2009-00646,0.00,425.00,R,Alphabiolabs,No
Http://opendatacommunities.org/id/metropolitan-district-council/leeds,Leeds City Council,30/09/2020,Children and Families,Social Care,Support Services,Legal Disbursements,411,30/09/2020,2009-00647,0.00,93.34,R,Alphabiolabs,No
Http://opendatacommunities.org/id/metropolitan-district-council/leeds,Leeds City Council,30/09/2020,Strategic Landlord,Property and Contracts,Premises,General Maintenance,104,02/09/2020,2009-00648,0.00,180.00,R,Alphyra Payment Services Ltd (Payzone),No
Http://opendatacommunities.org/id/metropolitan-district-council/leeds,Leeds City Council,30/09/2020,Strategic Landlord,Property and Contracts,Premises,General Maintenance,104,02/09/2020,2009-00649,0.00,-0.20,R,Alphyra Payment Services Ltd (Payzone),No
Http://opendatacommunities.org/id/metropolitan-district-council/leeds,Leeds City Council,30/09/2020,Strategic Landlord,Property and Contracts,Premises,General Maintenance,104,08/09/2020,2009-00650,0.00,49.75,R,Alphyra Payment Services Ltd (Payzone),No
Http://opendatacommunities.org/id/metropolitan-district-council/leeds,Leeds City Council,30/09/2020,Strategic Landlord,Property and Contracts,Premises,General Maintenance,104,10/09/2020,2009-00651,0.00,40.00,R,Alphyra Payment Services Ltd (Payzone),No
Http://opendatacommunities.org/id/metropolitan-district-council/leeds,Leeds City Council,30/09/2020,Strategic Landlord,Property and Contracts,Premises,General Maintenance,104,24/09/2020,2009-00652,0.00,90.00,R,Alphyra Payment Services Ltd (Payzone),No
Http://opendatacommunities.org/id/metropolitan-district-council/leeds,Leeds City Council,30/09/2020,City Development,Economic Development,Supplies and Services,Grants To Businesses,243,09/09/2020,2009-00653,0.00,3716.00,R,Alpine Scaffolding Contractors Ltd,No
Http://opendatacommunities.org/id/metropolitan-district-council/leeds,Leeds City Council,30/09/2020,Adults and Health,Services For Older People - 65 And Over,Third Party Payments,Nursing Care Dementia,574,16/09/2020,2009-00654,0.00,1393.28,R,Alt Park Nursing Home,No
Http://opendatacommunities.org/id/metropolitan-district-council/leeds,Leeds City Council,30/09/2020,Adults and Health,Public Health,Third Party Payments,Public Health Commissioned Services,526,04/09/2020,2009-00655,0.00,1892.96,R,Alwoodley Medical Centre,No
Http://opendatacommunities.org/id/metropolitan-district-council/leeds,Leeds City Council,30/09/2020,Children and Families,Social Care,Third Party Payments,Placement Support,550,04/09/2020,2009-00656,0.00,90.00,R,AM Electrical Harrogate Ltd,No
Http://opendatacommunities.org/id/metropolitan-district-council/leeds,Leeds City Council,30/09/2020,Children and Families,Social Care,Income,Nursery Fees Income,926,28/09/2020,2009-00657,0.00,220.64,R,REDACTED PERSONAL DATA,No
Http://opendatacommunities.org/id/metropolitan-district-council/leeds,Leeds City Council,30/09/2020,Children and Families,Social Care,Third Party Payments,Contact,548,25/09/2020,2009-00658,0.00,41.02,R,REDACTED PERSONAL DATA,No
Http://opendatacommunities.org/id/metropolitan-district-council/leeds,Leeds City Council,30/09/2020,Children and Families,Social Care,Third Party Payments,Contact,548,28/09/2020,2009-00659,0.00,37.98,R,REDACTED PERSONAL DATA,No
Http://opendatacommunities.org/id/metropolitan-district-council/leeds,Leeds City Council,30/09/2020,Children and Families,Social Care,Third Party Payments,Services Rendered By Other Organisations,511,04/09/2020,2009-00660,0.00,640.58,R,REDACTED PERSONAL DATA,No
Http://opendatacommunities.org/id/metropolitan-district-council/leeds,Leeds City Council,30/09/2020,City Development,Recreation,Supplies and Services,Bought In Professional Services,277,24/09/2020,2009-00661,0.00,866.00,R,Amanda Ellis,No
Http://opendatacommunities.org/id/metropolitan-district-council/leeds,Leeds City Council,30/09/2020,Children and Families,Social Care,Third Party Payments,Services Rendered By Other Organisations,511,04/09/2020,2009-00662,0.00,213.53,R,REDACTED PERSONAL DATA,No
Http://opendatacommunities.org/id/metropolitan-district-council/leeds,Leeds City Council,30/09/2020,Children and Families,Social Care,Third Party Payments,Allowances,546,10/09/2020,2009-00663,0.00,246.44,R,REDACTED PERSONAL DATA,No
Http://opendatacommunities.org/id/metropolitan-district-council/leeds,Leeds City Council,30/09/2020,Children and Families,Social Care,Third Party Payments,Services Rendered By Other Organisations,511,02/09/2020,2009-00664,0.00,257.40,R,REDACTED PERSONAL DATA,No
Http://opendatacommunities.org/id/metropolitan-district-council/leeds,Leeds City Council,30/09/2020,Children and Families,Social Care,Third Party Payments,Services Rendered By Other Organisations,511,04/09/2020,2009-00665,0.00,242.00,R,REDACTED PERSONAL DATA,No
Http://opendatacommunities.org/id/metropolitan-district-council/leeds,Leeds City Council,30/09/2020,Strategic Accounts,Miscellaneous,Supplies and Services,Non-Recurring Grants,227,07/09/2020,2009-00666,0.00,400.00,R,AMARANTH FOOTBALL CLUB,No
Http://opendatacommunities.org/id/metropolitan-district-council/leeds,Leeds City Council,30/09/2020,City Development,Recreation,Supplies and Services,Non-Recurring Grants,227,17/09/2020,2009-00667,0.00,250.00,R,AMARANTH FOOTBALL CLUB,No
Http://opendatacommunities.org/id/metropolitan-district-council/leeds,Leeds City Council,30/09/2020,Children and Families,Social Care,Third Party Payments,Services Rendered By Other Organisations,511,02/09/2020,2009-00668,0.00,3861.00,R,Amazing Grace Early Years Childcare,No
Http://opendatacommunities.org/id/metropolitan-district-council/leeds,Leeds City Council,30/09/2020,Children and Families,Social Care,Third Party Payments,Services Rendered By Other Organisations,511,04/09/2020,2009-00669,0.00,5978.70,R,Amazing Grace Early Years Childcare,No
Http://opendatacommunities.org/id/metropolitan-district-council/leeds,Leeds City Council,30/09/2020,City Development,Economic Development,Supplies and Services,Grants To Businesses,243,09/09/2020,2009-00670,0.00,264.00,R,Amazing Grace Early Years Childcare,No
Http://opendatacommunities.org/id/metropolitan-district-council/leeds,Leeds City Council,30/09/2020,City Development,Recreation,Supplies and Services,Operational Furniture And Equipment,203,17/09/2020,2009-00671,0.00,138.75,R,AMAZON LEISURE UK LTD,No
Http://opendatacommunities.org/id/metropolitan-district-council/leeds,Leeds City Council,30/09/2020,City Development,Libraries  Arts & Heritage  ,Supplies and Services,Operational Materials,205,08/08/2020,2009-00672,0.00,14.99,R,Amazon Music*zu6sj25e5,Yes
Http://opendatacommunities.org/id/metropolitan-district-council/leeds,Leeds City Council,30/09/2020,Resources and Housing,Human Resources  ,Employees,Best Value Training,70,10/08/2020,2009-00673,0.00,-7.99,R,Amazon Prime,Yes
Http://opendatacommunities.org/id/metropolitan-district-council/leeds,Leeds City Council,30/09/2020,Resources and Housing,Human Resources  ,Employees,Best Value Training,70,10/08/2020,2009-00674,0.00,-7.99,R,Amazon Prime Amzn.Co.Uk/P,Yes
Http://opendatacommunities.org/id/metropolitan-district-council/leeds,Leeds City Council,30/09/2020,Resources and Housing,Human Resources  ,Employees,Best Value Training,70,10/08/2020,2009-00675,0.00,-7.99,R,Amazon Prime Amzn.Co.Uk/P,Yes
Http://opendatacommunities.org/id/metropolitan-district-council/leeds,Leeds City Council,30/09/2020,Resources and Housing,Human Resources  ,Employees,Best Value Training,70,10/08/2020,2009-00676,0.00,-7.99,R,Amazon Prime Amzn.Co.Uk/P,Yes
Http://opendatacommunities.org/id/metropolitan-district-council/leeds,Leeds City Council,30/09/2020,Communities and Environment,Parks and Countryside  ,Supplies and Services,Operational Materials,205,14/08/2020,2009-00677,0.00,7.99,R,Amazon Prime*1i5mq6w35,Yes
Http://opendatacommunities.org/id/metropolitan-district-council/leeds,Leeds City Council,30/09/2020,Resources and Housing,Shared Services  ,Supplies and Services,Computer Software & Equipment,214,06/06/2020,2009-00678,0.00,79.00,R,Amazon Prime*4h3q88vu5,Yes
Http://opendatacommunities.org/id/metropolitan-district-council/leeds,Leeds City Council,30/09/2020,Communities and Environment,Parks and Countryside  ,Supplies and Services,Postages,212,25/08/2020,2009-00679,0.00,7.99,R,Amazon Prime*4h5j079l5 Am,Yes
Http://opendatacommunities.org/id/metropolitan-district-council/leeds,Leeds City Council,30/09/2020,Children and Families,Social Care  ,Supplies and Services,Office Consumables,210,22/08/2020,2009-00680,0.00,7.99,R,Amazon Prime*7i9py04o5 Am,Yes
Http://opendatacommunities.org/id/metropolitan-district-council/leeds,Leeds City Council,30/09/2020,Communities and Environment,Parks and Countryside  ,Supplies and Services,Operational Materials,205,27/07/2020,2009-00681,0.00,7.99,R,Amazon Prime*8v1y03sn5 Am,Yes
Http://opendatacommunities.org/id/metropolitan-district-council/leeds,Leeds City Council,30/09/2020,Communities and Environment,Community Safety  ,Supplies and Services,Office Consumables,210,16/08/2020,2009-00682,0.00,7.99,R,Amazon Prime*ak7dy1t85,Yes
Http://opendatacommunities.org/id/metropolitan-district-council/leeds,Leeds City Council,30/09/2020,Adults and Health,Services For Adults Under 65 Learn/Dis  ,Supplies and Services,Office Consumables,210,10/08/2020,2009-00683,0.00,7.99,R,Amazon Prime*f75ja1tn5,Yes
Http://opendatacommunities.org/id/metropolitan-district-council/leeds,Leeds City Council,30/09/2020,Resources and Housing,Commercial Services  ,Supplies and Services,Memberships,226,05/08/2020,2009-00684,0.00,7.99,R,Amazon Prime*h67ge9gf5 Am,Yes
Http://opendatacommunities.org/id/metropolitan-district-council/leeds,Leeds City Council,30/09/2020,City Development,Libraries  Arts & Heritage  ,Supplies and Services,Operational Materials,205,09/08/2020,2009-00685,0.00,7.99,R,Amazon Prime*ho8x193c5 Am,Yes
Http://opendatacommunities.org/id/metropolitan-district-council/leeds,Leeds City Council,30/09/2020,Resources and Housing,Strategic Housing Partnership & Support  ,Supplies and Services,Other Hired And Contracted Services,265,27/08/2020,2009-00686,0.00,7.99,R,Amazon Prime*jr2nr9ff5,Yes
Http://opendatacommunities.org/id/metropolitan-district-council/leeds,Leeds City Council,30/09/2020,Children and Families,Social Care  ,Income,Admissions  Booking Fees & Ticket Sales,933,17/08/2020,2009-00687,0.00,0.99,R,Amazon Prime*jw1ks9ew5,Yes
Http://opendatacommunities.org/id/metropolitan-district-council/leeds,Leeds City Council,30/09/2020,Resources and Housing,Commercial Services  ,Supplies and Services,Operational Furniture And Equipment,203,27/08/2020,2009-00688,0.00,7.99,R,Amazon Prime*m34r20e75 Am,Yes
Http://opendatacommunities.org/id/metropolitan-district-council/leeds,Leeds City Council,30/09/2020,City Development,Libraries  Arts & Heritage  ,Supplies and Services,Memberships,226,21/08/2020,2009-00689,0.00,7.99,R,Amazon Prime*os38a4v85 Am,Yes
Http://opendatacommunities.org/id/metropolitan-district-council/leeds,Leeds City Council,30/09/2020,Communities and Environment,Parks and Countryside  ,Supplies and Services,Operational Materials,205,23/08/2020,2009-00690,0.00,7.99,R,Amazon Prime*oz6mt23u5,Yes
Http://opendatacommunities.org/id/metropolitan-district-council/leeds,Leeds City Council,30/09/2020,Communities and Environment,Customer Access  ,Supplies and Services,Office Consumables,210,19/08/2020,2009-00691,0.00,7.99,R,Amazon Prime*su54932o5,Yes
Http://opendatacommunities.org/id/metropolitan-district-council/leeds,Leeds City Council,30/09/2020,Communities and Environment,Parks and Countryside  ,Supplies and Services,Operational Materials,205,27/08/2020,2009-00692,0.00,7.99,R,Amazon Prime*tw7057d35,Yes
Http://opendatacommunities.org/id/metropolitan-district-council/leeds,Leeds City Council,30/09/2020,Adults and Health,Services For Adults Under 65 Mental/Dis  ,Supplies and Services,Clothing & Uniforms,241,13/08/2020,2009-00693,0.00,7.99,R,Amazon Prime*tx7ns25h5 Am,Yes
Http://opendatacommunities.org/id/metropolitan-district-council/leeds,Leeds City Council,30/09/2020,Resources and Housing,Finance  ,Supplies and Services,Other Hired And Contracted Services,265,07/08/2020,2009-00694,0.00,79.00,R,Amazon Prime*v122x5vx5 Am,Yes
Http://opendatacommunities.org/id/metropolitan-district-council/leeds,Leeds City Council,30/09/2020,Communities and Environment,Customer Access  ,Supplies and Services,Memberships,226,08/08/2020,2009-00695,0.00,7.99,R,Amazon Prime*xl53r4895 Am,Yes
Http://opendatacommunities.org/id/metropolitan-district-council/leeds,Leeds City Council,30/09/2020,Children and Families,Social Care  ,Supplies and Services,General Amenity For Clients/Residents,285,13/08/2020,2009-00696,0.00,21.89,R,Amazon.Co.Uk*0r5x86qj5,Yes
Http://opendatacommunities.org/id/metropolitan-district-council/leeds,Leeds City Council,30/09/2020,Children and Families,Social Care  ,Supplies and Services,Publication And Promotion,267,26/08/2020,2009-00697,0.00,10.00,R,Amazon.Co.Uk*134mo0q15 Am,Yes
Http://opendatacommunities.org/id/metropolitan-district-council/leeds,Leeds City Council,30/09/2020,City Development,Highways  ,Supplies and Services,Operational Furniture And Equipment,203,26/08/2020,2009-00698,0.00,11.74,R,Amazon.Co.Uk*1a2r06to5,Yes
Http://opendatacommunities.org/id/metropolitan-district-council/leeds,Leeds City Council,30/09/2020,City Development,Recreation  ,Supplies and Services,Operational Materials,205,04/08/2020,2009-00699,0.00,13.80,R,Amazon.Co.Uk*1l5uq9t15,Yes
Http://opendatacommunities.org/id/metropolitan-district-council/leeds,Leeds City Council,30/09/2020,Children and Families,Social Care  ,Supplies and Services,Computer Software & Equipment,214,04/08/2020,2009-00700,0.00,33.83,R,Amazon.Co.Uk*3u60675z5,Yes
Http://opendatacommunities.org/id/metropolitan-district-council/leeds,Leeds City Council,30/09/2020,Children and Families,Social Care  ,Transfer Payments,Leaving Care Grants,635,06/08/2020,2009-00701,0.00,130.00,R,Amazon.Co.Uk*3w3yy9ma5 Am,Yes
Http://opendatacommunities.org/id/metropolitan-district-council/leeds,Leeds City Council,30/09/2020,Children and Families,Social Care  ,Supplies and Services,Publication And Promotion,267,27/08/2020,2009-00702,0.00,10.00,R,Amazon.Co.Uk*4j6qo7uk5,Yes
Http://opendatacommunities.org/id/metropolitan-district-council/leeds,Leeds City Council,30/09/2020,City Development,Libraries  Arts & Heritage  ,Supplies and Services,Office Consumables,210,05/08/2020,2009-00703,0.00,51.98,R,Amazon.Co.Uk*5l7u60vy5,Yes
Http://opendatacommunities.org/id/metropolitan-district-council/leeds,Leeds City Council,30/09/2020,Children and Families,Social Care  ,Transfer Payments,Leaving Care Allowances,634,06/08/2020,2009-00704,0.00,12.61,R,Amazon.Co.Uk*5x4sz7p35,Yes
Http://opendatacommunities.org/id/metropolitan-district-council/leeds,Leeds City Council,30/09/2020,Children and Families,Partnerships & Health  ,Supplies and Services,Hospitality,255,13/08/2020,2009-00705,0.00,20.00,R,Amazon.Co.Uk*6k25a9zn5,Yes
Http://opendatacommunities.org/id/metropolitan-district-council/leeds,Leeds City Council,30/09/2020,Children and Families,Social Care  ,Supplies and Services,Operational Materials,205,01/08/2020,2009-00706,0.00,33.28,R,Amazon.Co.Uk*6t7qe10h5,Yes
Http://opendatacommunities.org/id/metropolitan-district-council/leeds,Leeds City Council,30/09/2020,Children and Families,Social Care  ,Supplies and Services,Office Consumables,210,21/08/2020,2009-00707,0.00,41.44,R,Amazon.Co.Uk*6u8ae2eh5,Yes
Http://opendatacommunities.org/id/metropolitan-district-council/leeds,Leeds City Council,30/09/2020,Communities and Environment,Customer Access  ,Supplies and Services,Publication And Promotion,267,27/08/2020,2009-00708,0.00,40.00,R,Amazon.Co.Uk*6x1at4gb5,Yes
Http://opendatacommunities.org/id/metropolitan-district-council/leeds,Leeds City Council,30/09/2020,Adults and Health,Services For Older People - 65 And Over  ,Supplies and Services,Office Furniture & Equipment,201,01/08/2020,2009-00709,0.00,21.26,R,Amazon.Co.Uk*7806q4g55,Yes
Http://opendatacommunities.org/id/metropolitan-district-council/leeds,Leeds City Council,30/09/2020,City Development,Libraries  Arts & Heritage  ,Supplies and Services,Computer Software & Equipment,214,25/08/2020,2009-00710,0.00,4.46,R,Amazon.Co.Uk*7r7yy9ye5,Yes
Http://opendatacommunities.org/id/metropolitan-district-council/leeds,Leeds City Council,30/09/2020,City Development,Libraries  Arts & Heritage  ,Supplies and Services,Operational Materials,205,18/08/2020,2009-00711,0.00,25.00,R,Amazon.Co.Uk*8c6ce2hp5 Am,Yes
Http://opendatacommunities.org/id/metropolitan-district-council/leeds,Leeds City Council,30/09/2020,Resources and Housing,Finance  ,Supplies and Services,Office Consumables,210,20/08/2020,2009-00712,0.00,3.78,R,Amazon.Co.Uk*b63c72w95 Am,Yes
Http://opendatacommunities.org/id/metropolitan-district-council/leeds,Leeds City Council,30/09/2020,Children and Families,Social Care  ,Supplies and Services,Office Consumables,210,01/08/2020,2009-00713,0.00,11.23,R,Amazon.Co.Uk*bu3e87zk5 Am,Yes
Http://opendatacommunities.org/id/metropolitan-district-council/leeds,Leeds City Council,30/09/2020,Communities and Environment,Parks and Countryside  ,Supplies and Services,Operational Furniture And Equipment,203,20/08/2020,2009-00714,0.00,24.45,R,Amazon.Co.Uk*bu4yc7ti5 Am,Yes
Http://opendatacommunities.org/id/metropolitan-district-council/leeds,Leeds City Council,30/09/2020,Children and Families,Social Care  ,Third Party Payments,Placement Support,550,05/08/2020,2009-00715,0.00,12.61,R,Amazon.Co.Uk*cq5fg9ud5,Yes
Http://opendatacommunities.org/id/metropolitan-district-council/leeds,Leeds City Council,30/09/2020,Children and Families,Social Care  ,Supplies and Services,Teaching Materials,202,25/08/2020,2009-00716,0.00,12.89,R,Amazon.Co.Uk*d33g55065 Am,Yes
Http://opendatacommunities.org/id/metropolitan-district-council/leeds,Leeds City Council,30/09/2020,City Development,Highways  ,Supplies and Services,Office Consumables,210,25/08/2020,2009-00717,0.00,67.17,R,Amazon.Co.Uk*d73hn2j55,Yes
Http://opendatacommunities.org/id/metropolitan-district-council/leeds,Leeds City Council,30/09/2020,Communities and Environment,Customer Access  ,Supplies and Services,Schools related grant expenditure,299,23/08/2020,2009-00718,0.00,17.18,R,Amazon.Co.Uk*di9yo0ie5,Yes
Http://opendatacommunities.org/id/metropolitan-district-council/leeds,Leeds City Council,30/09/2020,City Development,Planning & Sustainable Development  ,Supplies and Services,Office Consumables,210,04/08/2020,2009-00719,0.00,109.57,R,Amazon.Co.Uk*en8kl7rf5,Yes
Http://opendatacommunities.org/id/metropolitan-district-council/leeds,Leeds City Council,30/09/2020,City Development,Highways  ,Supplies and Services,Operational Furniture And Equipment,203,19/08/2020,2009-00720,0.00,108.68,R,Amazon.Co.Uk*f45wr7s35,Yes
Http://opendatacommunities.org/id/metropolitan-district-council/leeds,Leeds City Council,30/09/2020,Communities and Environment,Car Parking Services  ,Supplies and Services,Office Consumables,210,13/08/2020,2009-00721,0.00,43.70,R,Amazon.Co.Uk*fq95424a5,Yes
Http://opendatacommunities.org/id/metropolitan-district-council/leeds,Leeds City Council,30/09/2020,Children and Families,Social Care  ,Third Party Payments,Placement Support,550,21/08/2020,2009-00722,0.00,56.60,R,Amazon.Co.Uk*g47xa06a5 Am,Yes
Http://opendatacommunities.org/id/metropolitan-district-council/leeds,Leeds City Council,30/09/2020,Children and Families,Social Care  ,Supplies and Services,Operational Furniture And Equipment,203,16/08/2020,2009-00723,0.00,20.83,R,Amazon.Co.Uk*gg1x56ln5,Yes
Http://opendatacommunities.org/id/metropolitan-district-council/leeds,Leeds City Council,30/09/2020,City Development,Highways  ,Supplies and Services,Operational Furniture And Equipment,203,18/08/2020,2009-00724,0.00,19.94,R,Amazon.Co.Uk*hk4wz0t45,Yes
Http://opendatacommunities.org/id/metropolitan-district-council/leeds,Leeds City Council,30/09/2020,Communities and Environment,Customer Access  ,Supplies and Services,Computer Software & Equipment,214,24/08/2020,2009-00725,0.00,6.73,R,Amazon.Co.Uk*hr99k0zq5,Yes
Http://opendatacommunities.org/id/metropolitan-district-council/leeds,Leeds City Council,30/09/2020,City Development,Recreation  ,Supplies and Services,Operational Furniture And Equipment,203,19/08/2020,2009-00726,0.00,4.17,R,Amazon.Co.Uk*id7115ve5 Am,Yes
Http://opendatacommunities.org/id/metropolitan-district-council/leeds,Leeds City Council,30/09/2020,Resources and Housing,Commercial Services  ,Supplies and Services,Operational Materials,205,01/08/2020,2009-00727,0.00,119.60,R,Amazon.Co.Uk*im8xy7685,Yes
Http://opendatacommunities.org/id/metropolitan-district-council/leeds,Leeds City Council,30/09/2020,Communities and Environment,Parks and Countryside  ,Supplies and Services,Operational Furniture And Equipment,203,20/08/2020,2009-00728,0.00,69.50,R,Amazon.Co.Uk*jf1q55pf5 Am,Yes
Http://opendatacommunities.org/id/metropolitan-district-council/leeds,Leeds City Council,30/09/2020,Children and Families,Social Care  ,Supplies and Services,Teaching Materials,202,04/08/2020,2009-00729,0.00,37.49,R,Amazon.Co.Uk*ji8ua6az5,Yes
Http://opendatacommunities.org/id/metropolitan-district-council/leeds,Leeds City Council,30/09/2020,City Development,Highways  ,Supplies and Services,Operational Furniture And Equipment,203,25/08/2020,2009-00730,0.00,25.91,R,Amazon.Co.Uk*jy6b63i15 Am,Yes
Http://opendatacommunities.org/id/metropolitan-district-council/leeds,Leeds City Council,30/09/2020,Children and Families,Social Care  ,Third Party Payments,Section 17,551,07/08/2020,2009-00731,0.00,9.99,R,Amazon.Co.Uk*l50f02ex5,Yes
Http://opendatacommunities.org/id/metropolitan-district-council/leeds,Leeds City Council,30/09/2020,Children and Families,Social Care  ,Supplies and Services,Teaching Materials,202,10/08/2020,2009-00732,0.00,11.65,R,Amazon.Co.Uk*md85715d4 Am,Yes
Http://opendatacommunities.org/id/metropolitan-district-council/leeds,Leeds City Council,30/09/2020,Children and Families,Social Care  ,Third Party Payments,Section 17,551,02/08/2020,2009-00733,0.00,56.59,R,Amazon.Co.Uk*ok6nw2525 Am,Yes
Http://opendatacommunities.org/id/metropolitan-district-council/leeds,Leeds City Council,30/09/2020,Communities and Environment,Customer Access  ,Supplies and Services,Schools related grant expenditure,299,24/08/2020,2009-00734,0.00,9.72,R,Amazon.Co.Uk*pl6995vw5,Yes
Http://opendatacommunities.org/id/metropolitan-district-council/leeds,Leeds City Council,30/09/2020,Children and Families,Social Care  ,Third Party Payments,Placement Support,550,06/08/2020,2009-00735,0.00,9.99,R,Amazon.Co.Uk*q64td8qi5,Yes
Http://opendatacommunities.org/id/metropolitan-district-council/leeds,Leeds City Council,30/09/2020,Resources and Housing,Technology  ,Supplies and Services,Computer Software & Equipment,214,26/08/2020,2009-00736,0.00,51.50,R,Amazon.Co.Uk*qu4ov0qc5,Yes
Http://opendatacommunities.org/id/metropolitan-district-council/leeds,Leeds City Council,30/09/2020,Children and Families,Social Care  ,Supplies and Services,Teaching Materials,202,25/08/2020,2009-00737,0.00,14.38,R,Amazon.Co.Uk*rb53g9bt5,Yes
Http://opendatacommunities.org/id/metropolitan-district-council/leeds,Leeds City Council,30/09/2020,City Development,Libraries  Arts & Heritage  ,Supplies and Services,Books & Audio-Visual Materials,206,18/08/2020,2009-00738,0.00,29.95,R,Amazon.Co.Uk*rd2k97od5,Yes
Http://opendatacommunities.org/id/metropolitan-district-council/leeds,Leeds City Council,30/09/2020,Communities and Environment,Parks and Countryside  ,Supplies and Services,Food & Drink,231,24/08/2020,2009-00739,0.00,17.13,R,Amazon.Co.Uk*so4r40dh5,Yes
Http://opendatacommunities.org/id/metropolitan-district-council/leeds,Leeds City Council,30/09/2020,City Development,Libraries  Arts & Heritage  ,Supplies and Services,Office Consumables,210,06/08/2020,2009-00740,0.00,26.24,R,Amazon.Co.Uk*t95jq0y55,Yes
Http://opendatacommunities.org/id/metropolitan-district-council/leeds,Leeds City Council,30/09/2020,Children and Families,Social Care  ,Transfer Payments,Payments To Residents,622,01/08/2020,2009-00741,0.00,18.18,R,Amazon.Co.Uk*u031d8745 Am,Yes
Http://opendatacommunities.org/id/metropolitan-district-council/leeds,Leeds City Council,30/09/2020,Children and Families,Social Care  ,Supplies and Services,Teaching Materials,202,12/08/2020,2009-00742,0.00,66.66,R,Amazon.Co.Uk*u75fb77e5 Am,Yes
Http://opendatacommunities.org/id/metropolitan-district-council/leeds,Leeds City Council,30/09/2020,Children and Families,Partnerships & Health  ,Supplies and Services,Hospitality,255,04/08/2020,2009-00743,0.00,20.00,R,Amazon.Co.Uk*ve59b3q55,Yes
Http://opendatacommunities.org/id/metropolitan-district-council/leeds,Leeds City Council,30/09/2020,Children and Families,Social Care  ,Supplies and Services,Operational Materials,205,12/08/2020,2009-00744,0.00,34.58,R,Amazon.Co.Uk*x597x78b5 Am,Yes
Http://opendatacommunities.org/id/metropolitan-district-council/leeds,Leeds City Council,30/09/2020,City Development,Libraries  Arts & Heritage  ,Supplies and Services,Office Furniture & Equipment,201,25/08/2020,2009-00745,0.00,11.50,R,Amazon.Co.Uk*xa6fz0ir5,Yes
Http://opendatacommunities.org/id/metropolitan-district-council/leeds,Leeds City Council,30/09/2020,City Development,Libraries  Arts & Heritage  ,Supplies and Services,Teaching Materials,202,10/08/2020,2009-00746,0.00,17.55,R,Amazon.Co.Uk*xr7673t15 Am,Yes
Http://opendatacommunities.org/id/metropolitan-district-council/leeds,Leeds City Council,30/09/2020,City Development,Highways  ,Supplies and Services,Operational Furniture And Equipment,203,09/08/2020,2009-00747,0.00,26.43,R,Amazon.Co.Uk*xw4aw6ok5 Am,Yes
Http://opendatacommunities.org/id/metropolitan-district-council/leeds,Leeds City Council,30/09/2020,City Development,Libraries  Arts & Heritage  ,Supplies and Services,Operational Materials,205,15/08/2020,2009-00748,0.00,29.99,R,Amazon.Co.Uk*y591k28g5 Am,Yes
Http://opendatacommunities.org/id/metropolitan-district-council/leeds,Leeds City Council,30/09/2020,Communities and Environment,Community Safety  ,Supplies and Services,Other Hired And Contracted Services,265,16/08/2020,2009-00749,0.00,6.61,R,Amazon.Co.Uk*z964y1245,Yes
Http://opendatacommunities.org/id/metropolitan-district-council/leeds,Leeds City Council,30/09/2020,Resources and Housing,Strategy and Improvement  ,Supplies and Services,Books & Audio-Visual Materials,206,24/08/2020,2009-00750,0.00,9.76,R,Amazon.Com*mm7ky3bc2,Yes
Http://opendatacommunities.org/id/metropolitan-district-council/leeds,Leeds City Council,30/09/2020,Communities and Environment,Communities,Supplies and Services,Grant Related Expenditure,290,01/09/2020,2009-00751,0.00,1470.68,R,Ambassadors Of Christ Global,No
Http://opendatacommunities.org/id/metropolitan-district-council/leeds,Leeds City Council,30/09/2020,Resources and Housing,Strategic Housing Partnership & Support  ,Transport,Public Transport Expenses,310,16/08/2020,2009-00752,0.00,4.80,R,Amber Cars,Yes
Http://opendatacommunities.org/id/metropolitan-district-council/leeds,Leeds City Council,30/09/2020,Strategic Accounts,Central Control Accounts (Ex Cttee 07),Supplies and Services,Travel invoices,1,02/09/2020,2009-00753,0.00,1525.54,R,Amber Cars,No
Http://opendatacommunities.org/id/metropolitan-district-council/leeds,Leeds City Council,30/09/2020,Strategic Accounts,Central Control Accounts (Ex Cttee 07),Supplies and Services,Travel invoices,1,08/09/2020,2009-00754,0.00,1254.25,R,Amber Cars,No
Http://opendatacommunities.org/id/metropolitan-district-council/leeds,Leeds City Council,30/09/2020,Strategic Accounts,Central Control Accounts (Ex Cttee 07),Supplies and Services,Travel invoices,1,16/09/2020,2009-00755,0.00,188.00,R,Amber Cars,No
Http://opendatacommunities.org/id/metropolitan-district-council/leeds,Leeds City Council,30/09/2020,Strategic Accounts,Central Control Accounts (Ex Cttee 07),Supplies and Services,Travel invoices,1,16/09/2020,2009-00756,0.00,815.53,R,Amber Cars,No
Http://opendatacommunities.org/id/metropolitan-district-council/leeds,Leeds City Council,30/09/2020,Strategic Accounts,Central Control Accounts (Ex Cttee 07),Supplies and Services,Travel invoices,1,22/09/2020,2009-00757,0.00,751.41,R,Amber Cars,No
Http://opendatacommunities.org/id/metropolitan-district-council/leeds,Leeds City Council,30/09/2020,Strategic Accounts,Central Control Accounts (Ex Cttee 07),Supplies and Services,Travel invoices,1,22/09/2020,2009-00758,0.00,778.85,R,Amber Cars,No
Http://opendatacommunities.org/id/metropolitan-district-council/leeds,Leeds City Council,30/09/2020,Resources and Housing,Commercial Services,Transport,Private Hire,360,24/09/2020,2009-00759,0.00,1690.00,R,Amber Cars,No
Http://opendatacommunities.org/id/metropolitan-district-council/leeds,Leeds City Council,30/09/2020,Resources and Housing,Commercial Services,Transport,Private Hire,360,24/09/2020,2009-00760,0.00,132.70,R,Amber Cars,No
Http://opendatacommunities.org/id/metropolitan-district-council/leeds,Leeds City Council,30/09/2020,Resources and Housing,Commercial Services,Transport,Private Hire,360,24/09/2020,2009-00761,0.00,908.91,R,Amber Cars,No
Http://opendatacommunities.org/id/metropolitan-district-council/leeds,Leeds City Council,30/09/2020,Resources and Housing,Commercial Services,Transport,Private Hire,360,24/09/2020,2009-00762,0.00,27.40,R,Amber Cars,No
Http://opendatacommunities.org/id/metropolitan-district-council/leeds,Leeds City Council,30/09/2020,Communities and Environment,Benefits  Wlefare and Poverty,Transport,Private Hire,360,25/09/2020,2009-00763,0.00,39.00,R,Amber Cars,No
Http://opendatacommunities.org/id/metropolitan-district-council/leeds,Leeds City Council,30/09/2020,Strategic Accounts,Central Control Accounts (Ex Cttee 07),Supplies and Services,Travel invoices,1,29/09/2020,2009-00764,0.00,896.41,R,Amber Cars,No
Http://opendatacommunities.org/id/metropolitan-district-council/leeds,Leeds City Council,30/09/2020,Communities and Environment,Benefits  Wlefare and Poverty,Transport,Private Hire,360,29/09/2020,2009-00765,0.00,242.50,R,Amber Cars,No
Http://opendatacommunities.org/id/metropolitan-district-council/leeds,Leeds City Council,30/09/2020,Children and Families,Social Care,Support Services,Internal charge from Resources,487,29/09/2020,2009-00766,0.00,21.41,R,Amber Cars,No
Http://opendatacommunities.org/id/metropolitan-district-council/leeds,Leeds City Council,30/09/2020,Children and Families,Social Care,Support Services,Internal charge from Resources,487,29/09/2020,2009-00767,0.00,142.20,R,Amber Cars,No
Http://opendatacommunities.org/id/metropolitan-district-council/leeds,Leeds City Council,30/09/2020,Children and Families,Social Care,Support Services,Internal charge from Resources,487,29/09/2020,2009-00768,0.00,405.61,R,Amber Cars,No
Http://opendatacommunities.org/id/metropolitan-district-council/leeds,Leeds City Council,30/09/2020,Children and Families,Social Care,Transport,Private Hire,360,30/09/2020,2009-00769,0.00,-8.60,R,Amber Cars,No
Http://opendatacommunities.org/id/metropolitan-district-council/leeds,Leeds City Council,30/09/2020,Children and Families,Social Care,Transport,Private Hire,360,30/09/2020,2009-00770,0.00,1344.52,R,Amber Cars,No
Http://opendatacommunities.org/id/metropolitan-district-council/leeds,Leeds City Council,30/09/2020,Communities and Environment,Customer Access,Supplies and Services,Bought In Professional Services,277,09/09/2020,2009-00771,0.00,18.00,R,Ambreen Mohammed,No
